Workbook

Sheet PPNE1
B1: Plan Operativo Anual
B2: Servicio Nacional de Salud
B3: Dirección de Planificación y Desarrollo | K3: 2025 | L3: 2026 | M3: 2027 | N3: 2028
B4: Programación Insumos por Producto Nivel Especializado | K4: Cibao Norte | L4: Cibao Sur | M4: Cibao Nordeste | N4: Cibao Noroeste | O4: Valdesia | P4: El Valle | Q4: Enriquillo | R4: Yuma | S4: Higüamo | T4: Ozama
B5: Año | C5: 2026
A6: Servicio Regional de Salud: | B6: Cibao Norte
A7: CEAS
A8: Productos Terminales | B8: Unidad de Medida | C8: Meta Lograda Año 2024 | D8: Meta Proyectada a Lograr Año 2025 | E8: Meta Proyectada Año 2026 | F8: Programación Trimestral | K8: Meta Lograda actual periodo Año 2025
F9: 1er. Trimestre | G9: 2do. Trimestre | H9: 3er. Trimestre | I9: 4to. Trimestre
A10: Servicio de Consulta Externa | B10: Consultas | C10: =SUM(C11:C12) -> 50278 | D10: =SUM(D11:D12) -> 70,243 | E10: 99,874 | F10: 21,878 | G10: 23,608 | H10: 27,232 | I10: 27,155 | K10: =SUM(K11:K12) -> 40,975
A11: Primera Vez | C11: 31626 | D11: =(K11/7)*12 -> 39668.57143 | E11: =IF(C11="",0,(D11/C11)*D11) -> 49756 | F11: 12551.5864 | G11: 11640.66029 | H11: 12830.05604 | I11: 12734.08628 | K11: 23140
A12: Subsecuente | C12: 18652 | D12: =(K12/7)*12 -> 30574.28571 | E12: =IF(C12="",0,(D12/C12)*D12) -> 50117 | F12: 9,326 | G12: 11,968 | H12: 14,402 | I12: 14,421 | K12: 17,835
A13: Servicio de Emergencia | B13: Consultas | C13: =SUM(C14) -> 30089 | D13: =D14 -> 48,057 | E13: 76,753 | F13: 15,484 | G13: 16,027 | H13: 18,104 | I13: 27,139 | K13: 28,033
A14: Emergencias | C14: 30089 | D14: =(K14/7)*12 -> 48056.57143 | E14: =IF(C14="",0,(D14/C14)*D14) -> 76753 | F14: 15,484 | G14: 16,027 | H14: 18,104 | I14: 27,139 | K14: 28,033
A15: Servicio Hospitalización | B15: Egresos | C15: =SUM(C16:C29) -> 50303 | D15: =SUM(D16:D29) -> 70,243 | E15: 105,757 | F15: 22,007 | G15: 23,009 | H15: 27,962 | I15: 32,778 | K15: =SUM(K16:K29) -> 40,975
A16: Medicina General | D16: =(K16/7)*12 -> 0 | E16: =IF(C16="",0,(D16/C16)*D16) -> 0
A17: Cirugia General | C17: 2490 | D17: =(K17/7)*12 -> 6510.857143 | E17: 17025 | F17: 752 | G17: 2,427 | H17: 5,101 | I17: 8,745 | K17: 3,798
A18: Ginecología | C18: 2327 | D18: 2233.714286 | E18: 2144 | F18: 587 | G18: 547 | H18: 498 | I18: 512 | K18: 1,303
A19: Obstetricia | D19: 0 | E19: 0
A20: Pediatria | D20: 0 | E20: 0
A21: Cardiologia | C21: 4370 | D21: 4443.428571 | E21: 4518 | F21: 1,285 | G21: 1,145 | H21: 1,224 | I21: 864 | K21: 2,592
A22: Gastroenterologia | C22: 3259 | D22: 4074.857143 | E22: 5095 | F22: 1,130 | G22: 1,171 | H22: 1,459 | I22: 1,335 | K22: 2,377
A23: Endocrinologia | D23: 0 | E23: 0
A24: Medicina Interna | C24: 2674 | D24: 5376 | E24: 10808 | F24: 3,896 | G24: 2,110 | H24: 2,583 | I24: 2,219 | K24: 3,136
A25: Ortopedia | D25: 0 | E25: 0
A26: Neumología | C26: 2248 | D26: 3512.571429 | E26: 5489 | F26: 2,036 | G26: 1,721 | H26: 1,016 | I26: 715 | K26: 2,049
A27: Cardiología | D27: 0 | E27: 0
A28: Cuidados Intensivos | C28: 25 | D28: 236.5714286 | E28: 2239 | F28: 0 | G28: 0 | H28: 0 | I28: 2,239 | K28: 138
A29: Otros | C29: 32910 | D29: 43854.85714 | E29: 58440 | F29: 12,320 | G29: 13,888 | H29: 16,083 | I29: 16,149 | K29: 25,582
A30: Servicios de Apoyo Diagnóstico | C30: =SUM(C31:C32) -> 261705 | D30: =SUM(D31:D32) -> 470,229 | E30: 903,988 | F30: 188,995 | G30: 217,950 | H30: 225,699 | I30: 271,344 | K30: =SUM(K31:K32) -> 274,300
A31: Análisis de Laboratorio | B31: Pruebas | C31: 233067 | D31: =(K31/7)*12 -> 379952.5714 | E31: =IF(C31="",0,(D31/C31)*D31) -> 619410 | F31: 119,634 | G31: 153,886 | H31: 165,590 | I31: 180,300 | K31: 221,639
A32: Servicio de Imágenes | B32: Imágenes | C32: 28638 | D32: =(K32/7)*12 -> 90276 | E32: 284578 | F32: 69,361 | G32: 64,064 | H32: 60,109 | I32: 91,044 | K32: 52,661
A33: Indicadores de Producción
A34: Años | B34: Camas Disponibles | C34: Egresos Hospitalarios | D34: Día Cama Disponibles | E34: Dias Pacientes | F34: Promedio Días Estada | G34: Porcentaje Ocupacional | H34: Porcentaje nacimientos prematuros | I34: Porcentaje de cesárea
A35: 2022 | D35: =+B35*365 -> 0 | F35: =+E35/C35 ->  | G35: =+E35/D35*100 -> 
A36: 2023 | D36: =+B36*365 -> 0 | F36: =+E36/C36 ->  | G36: =+E36/D36*100 -> 
A37: 2024 | B37: 87 | D37: 31755 | G37: 0

Sheet PPNE2
A1: =+PPNE1!$B$1 -> Plan Operativo Anual
A2: Servicio Nacional de Salud
A3: Dirección de Planificación y Desarrollo | K3: Anticipo Financiero
A4: Programación de actividades | K4: Nómina
A5: =PPNE1!$C$5 -> 2026 | K5: Venta Servicios
A6: Servicio Regional de Salud: | K6: Recursos Externos
A7: CEAS:
A8: Resultados Esperados | B8: Productos | C8: Código | D8: Actividades Programables Presupuestables | E8: Ene | F8: Feb | G8: Mar | H8: Abr | I8: May | J8: Jun | K8: Jul | L8: Ago | M8: Sep | N8: Oct | O8: Nov | P8: Dic | Q8: Total de Acciones | R8: Medio de Verificación 1 | S8: Medio de Verificación 2 | T8: Medio de Verificación 3 | U8: Observaciones/ Comentarios | V8: Área Responsable
A9: 1.6 Incrementado el acceso oportuno a servicios de salud de calidad, aumentando el acceso a servicios preventivos de 2.23% de la población prioritaria en 2023 al 5.24% en 2028 en todas las regiones del país. | B9: 1.6.5 La población usuaria recibe servicios odontológicos fortalecidos y de calidad mediante la ejecución de planes de mejora de la atención dental. | C9: 1.6.5.01 | D9: Capacitaciones a RRHH de las areas de odontología de acuerdo a las necesidades. | G9: 1 | J9: 1 | M9: 1 | Q9: =SUM(E9:P9) -> 3 | R9: Listado de participación | S9: Plan | V9: Odontología
A10: 1.6 Incrementado el acceso oportuno a servicios de salud de calidad, aumentando el acceso a servicios preventivos de 2.23% de la población prioritaria en 2023 al 5.24% en 2028 en todas las regiones del país. | B10: 1.6.5 La población usuaria recibe servicios odontológicos fortalecidos y de calidad mediante la ejecución de planes de mejora de la atención dental. | C10: 1.6.5.02 | D10: Desarrollo de plan de acciones para el acondicionamiento de infraestructura, mantenimiento de equipos y equipamiento de las áreas de odontología EES | G10: 1 | J10: 1 | M10: 1 | O10: 1 | Q10: 4 | R10: Informe | S10: Plan | V10: Odontología
A11: 1.6 Incrementado el acceso oportuno a servicios de salud de calidad, aumentando el acceso a servicios preventivos de 2.23% de la población prioritaria en 2023 al 5.24% en 2028 en todas las regiones del país. | B11: 1.6.5 La población usuaria recibe servicios odontológicos fortalecidos y de calidad mediante la ejecución de planes de mejora de la atención dental. | C11: 1.6.5.03 | D11: Desarrollo del Programa Fomento de la Salud bucal. | H11: 1 | L11: 1 | N11: 1 | Q11: 3 | R11: Informe | V11: Odontología
A12: 1.6 Incrementado el acceso oportuno a servicios de salud de calidad, aumentando el acceso a servicios preventivos de 2.23% de la población prioritaria en 2023 al 5.24% en 2028 en todas las regiones del país. | B12: 1.6.5 La población usuaria recibe servicios odontológicos fortalecidos y de calidad mediante la ejecución de planes de mejora de la atención dental. | C12: 1.6.5.04 | D12: Desarrollo del Programa Hospitales libre de caries | H12: 1 | M12: 1 | Q12: 2 | R12: Informe | V12: Odontología
A13: 1.7 Aumentada la disponibilidad de medicamentos esenciales en los establecimientos de la Red Pública de Servicios de Salud, incrementando el cumplimiento promedio de abastecimiento del 88% en 2023 al 93% en 2028 en todas las regiones del país. | B13: 1.7.1 Pacientes reciben medicamentos esenciales para el tratamiento adecuado y oportuno de sus condiciones de salud. | C13: 1.7.1.01 | D13: Reunión Comité Farmaco Terapeutico (CFT) Hospitalario y promoción del uso racional de los medicamentos. | E13: 1 | H13: 1 | K13: 1 | N13: 1 | Q13: 4 | R13: Listado de participación | S13: Minuta | V13: Medicamentos
A14: 1.8 Superadas las deficiencias en la organización e implementación de las Redes Integradas de Servicios de Salud (RISS) beneficiando a toda la población que utiliza los servicios de salud de la Red Pública, aumentando del 38% en 2023 al 50% en 2028 en todo el territorio nacional. | B14: 1.8.2 La población recibe acceso equitativo a servicios de salud, incluidos los de emergencia, de calidad, seguros, integrales, continuos e inclusivos, mediante redes integradas que incorporan mejora continua de procesos y avances tecnológicos. | C14: 1.8.2.01 | D14: Implementación del Modelo hospitalario y flujos de Asistencia Emergencias y Urgencias | J14: 1 | Q14: 1 | R14: Reporte | V14: Emergencia
A15: 1.8 Superadas las deficiencias en la organización e implementación de las Redes Integradas de Servicios de Salud (RISS) beneficiando a toda la población que utiliza los servicios de salud de la Red Pública, aumentando del 38% en 2023 al 50% en 2028 en todo el territorio nacional. | B15: 1.8.2 La población recibe acceso equitativo a servicios de salud, incluidos los de emergencia, de calidad, seguros, integrales, continuos e inclusivos, mediante redes integradas que incorporan mejora continua de procesos y avances tecnológicos. | C15: 1.8.2.02 | D15: Socializacion e implementación del RAC-Triaje en las Salas de Emergencias Centros Hospitalarios | J15: 1 | O15: 1 | Q15: 2 | R15: Listado de participación | S15: Reporte | V15: Emergencia
A16: 1.8 Superadas las deficiencias en la organización e implementación de las Redes Integradas de Servicios de Salud (RISS) beneficiando a toda la población que utiliza los servicios de salud de la Red Pública, aumentando del 38% en 2023 al 50% en 2028 en todo el territorio nacional. | B16: 1.8.2 La población recibe acceso equitativo a servicios de salud, incluidos los de emergencia, de calidad, seguros, integrales, continuos e inclusivos, mediante redes integradas que incorporan mejora continua de procesos y avances tecnológicos. | C16: 1.8.2.03 | D16: Llenado de historia clinica de emergencias y registro de todos los pacientes del libro de emergencias | M16: 1 | Q16: 1 | R16: Reporte | V16: Emergencia
A17: 1.8 Superadas las deficiencias en la organización e implementación de las Redes Integradas de Servicios de Salud (RISS) beneficiando a toda la población que utiliza los servicios de salud de la Red Pública, aumentando del 38% en 2023 al 50% en 2028 en todo el territorio nacional. | B17: 1.8.2 La población recibe acceso equitativo a servicios de salud, incluidos los de emergencia, de calidad, seguros, integrales, continuos e inclusivos, mediante redes integradas que incorporan mejora continua de procesos y avances tecnológicos. | C17: 1.8.2.04 | D17: Implementación del procedimiento para la entrega, recibo y reposicion de carro de paro | F17: 1 | I17: 1 | L17: 1 | O17: 1 | Q17: 4 | T17: Formularios de verificacion de Carro de paro (Apertura, Stock y Verificacion de desfibrilador) | V17: Emergencia
A18: 1.8 Superadas las deficiencias en la organización e implementación de las Redes Integradas de Servicios de Salud (RISS) beneficiando a toda la población que utiliza los servicios de salud de la Red Pública, aumentando del 38% en 2023 al 50% en 2028 en todo el territorio nacional. | B18: 1.8.2 La población recibe acceso equitativo a servicios de salud, incluidos los de emergencia, de calidad, seguros, integrales, continuos e inclusivos, mediante redes integradas que incorporan mejora continua de procesos y avances tecnológicos. | C18: 1.8.2.05 | D18: Registros en el tablero de Indicadores de Gestión de las Salas de Emergencias de los Centros de Salud. | G18: 1 | J18: 1 | M18: 1 | P18: 1 | Q18: 4 | R18: Reporte | V18: Emergencia
A19: 1.8 Superadas las deficiencias en la organización e implementación de las Redes Integradas de Servicios de Salud (RISS) beneficiando a toda la población que utiliza los servicios de salud de la Red Pública, aumentando del 38% en 2023 al 50% en 2028 en todo el territorio nacional. | B19: 1.8.2 La población recibe acceso equitativo a servicios de salud, incluidos los de emergencia, de calidad, seguros, integrales, continuos e inclusivos, mediante redes integradas que incorporan mejora continua de procesos y avances tecnológicos. | C19: 1.8.2.06 | D19: Socialización de los procedimientos de traslado de pacientes | I19: 1 | Q19: 1 | R19: Listado de participación | S19: Agenda | V19: Emergencia
A20: 1.8 Superadas las deficiencias en la organización e implementación de las Redes Integradas de Servicios de Salud (RISS) beneficiando a toda la población que utiliza los servicios de salud de la Red Pública, aumentando del 38% en 2023 al 50% en 2028 en todo el territorio nacional. | B20: 1.8.2 La población recibe acceso equitativo a servicios de salud, incluidos los de emergencia, de calidad, seguros, integrales, continuos e inclusivos, mediante redes integradas que incorporan mejora continua de procesos y avances tecnológicos. | C20: 1.8.2.07 | D20: Elaboración y/o actualización de los Planes de Emergencias y Desastres Hospitalarios | G20: 1 | Q20: 1 | R20: Plan | V20: Emergencia
A21: 1.8 Superadas las deficiencias en la organización e implementación de las Redes Integradas de Servicios de Salud (RISS) beneficiando a toda la población que utiliza los servicios de salud de la Red Pública, aumentando del 38% en 2023 al 50% en 2028 en todo el territorio nacional. | B21: 1.8.2 La población recibe acceso equitativo a servicios de salud, incluidos los de emergencia, de calidad, seguros, integrales, continuos e inclusivos, mediante redes integradas que incorporan mejora continua de procesos y avances tecnológicos. | C21: 1.8.2.08 | D21: Reunion del comité de emergencias para socializacion del plan Hospitalarios Emergencias de salud publica y desastres naturales con el personal del hospital. | G21: 1 | J21: 1 | M21: 1 | Q21: 3 | R21: Listado de participación | S21: Minuta | V21: Emergencia
A22: 1.8 Superadas las deficiencias en la organización e implementación de las Redes Integradas de Servicios de Salud (RISS) beneficiando a toda la población que utiliza los servicios de salud de la Red Pública, aumentando del 38% en 2023 al 50% en 2028 en todo el territorio nacional. | B22: 1.8.2 La población recibe acceso equitativo a servicios de salud, incluidos los de emergencia, de calidad, seguros, integrales, continuos e inclusivos, mediante redes integradas que incorporan mejora continua de procesos y avances tecnológicos. | C22: 1.8.2.09 | D22: Simulacro para probar la funcionabilidad de los Planes de Emergencias y Desastres Hospitalarios. | N22: 1 | Q22: 1 | R22: Listado de participación | S22: Reporte | V22: Emergencia
A23: 1.8 Superadas las deficiencias en la organización e implementación de las Redes Integradas de Servicios de Salud (RISS) beneficiando a toda la población que utiliza los servicios de salud de la Red Pública, aumentando del 38% en 2023 al 50% en 2028 en todo el territorio nacional. | B23: 1.8.2 La población recibe acceso equitativo a servicios de salud, incluidos los de emergencia, de calidad, seguros, integrales, continuos e inclusivos, mediante redes integradas que incorporan mejora continua de procesos y avances tecnológicos. | C23: 1.8.2.10 | D23: Reunión con el Comite Hospitalario de Emergencias y Desastres para preparar el Operativo de Navidad y Año Nuevo comité de emergencias | P23: 1 | Q23: 1 | R23: Listado de participación | S23: Minuta | V23: Emergencia
A24: 1.8 Superadas las deficiencias en la organización e implementación de las Redes Integradas de Servicios de Salud (RISS) beneficiando a toda la población que utiliza los servicios de salud de la Red Pública, aumentando del 38% en 2023 al 50% en 2028 en todo el territorio nacional. | B24: 1.8.2 La población recibe acceso equitativo a servicios de salud, incluidos los de emergencia, de calidad, seguros, integrales, continuos e inclusivos, mediante redes integradas que incorporan mejora continua de procesos y avances tecnológicos. | C24: 1.8.2.11 | D24: Reunión con el Comite Hospitalario de Emergencias y Desastres para preparar el Operativo de Semana Santa comité de emergencias | G24: 1 | Q24: 1 | R24: Listado de participación | S24: Minuta | V24: Emergencia
A25: 1.8 Superadas las deficiencias en la organización e implementación de las Redes Integradas de Servicios de Salud (RISS) beneficiando a toda la población que utiliza los servicios de salud de la Red Pública, aumentando del 38% en 2023 al 50% en 2028 en todo el territorio nacional. | B25: 1.8.2 La población recibe acceso equitativo a servicios de salud, incluidos los de emergencia, de calidad, seguros, integrales, continuos e inclusivos, mediante redes integradas que incorporan mejora continua de procesos y avances tecnológicos. | C25: 1.8.2.12 | D25: Reunión con el Comite Hospitalario de Emergencias y Desastres para respuesta a Temporada Ciclonica y Eventos Hidrometeorologicos comité de emergencias | E25: 1 | O25: 1 | Q25: 2 | R25: Listado de participación | S25: Minuta | V25: Emergencia
A26: 1.8 Superadas las deficiencias en la organización e implementación de las Redes Integradas de Servicios de Salud (RISS) beneficiando a toda la población que utiliza los servicios de salud de la Red Pública, aumentando del 38% en 2023 al 50% en 2028 en todo el territorio nacional. | B26: 1.8.2 La población recibe acceso equitativo a servicios de salud, incluidos los de emergencia, de calidad, seguros, integrales, continuos e inclusivos, mediante redes integradas que incorporan mejora continua de procesos y avances tecnológicos. | C26: 1.8.2.13 | D26: Reunión con el Comite Hospitalario de Emergencias y Desastres para respuesta a Temporada Ciclonica y Eventos Hidrometeorologicos comité de emergencias | I26: 1 | Q26: 1 | R26: Listado de participación | S26: Minuta | V26: Emergencia
A27: 1.8 Superadas las deficiencias en la organización e implementación de las Redes Integradas de Servicios de Salud (RISS) beneficiando a toda la población que utiliza los servicios de salud de la Red Pública, aumentando del 38% en 2023 al 50% en 2028 en todo el territorio nacional. | B27: 1.8.3 La población usuaria recibe servicios hospitalarios fortalecidos, integrales y de calidad mediante la mejora continua de procesos y servicios, la optimización de la gestión y el fortalecimiento de la infraestructura, el equipamiento y las capacidades del personal. | C27: 1.8.3.01 | D27: Supervision de indicadores de calidad en el programa de hemodialisis y diálisis peritoneal, para los centros que apliquen para el programa. | E27: 1 | F27: 1 | G27: 1 | H27: 1 | I27: 1 | J27: 1 | K27: 1 | L27: 1 | M27: 1 | N27: 1 | O27: 1 | P27: 1 | Q27: 12 | R27: Informe | V27: Centros Hospitalarios
A28: 1.8 Superadas las deficiencias en la organización e implementación de las Redes Integradas de Servicios de Salud (RISS) beneficiando a toda la población que utiliza los servicios de salud de la Red Pública, aumentando del 38% en 2023 al 50% en 2028 en todo el territorio nacional. | B28: 1.8.3 La población usuaria recibe servicios hospitalarios fortalecidos, integrales y de calidad mediante la mejora continua de procesos y servicios, la optimización de la gestión y el fortalecimiento de la infraestructura, el equipamiento y las capacidades del personal. | C28: 1.8.3.02 | D28: Plan de mejora a partir de los resultados de la evaluacion de indicadores de calidad en el programa de hemodialisis y diálisis peritoneal, para los centros que apliquen para el programa. | G28: 1 | J28: 1 | M28: 1 | P28: 1 | Q28: 4 | R28: Protocolo | V28: Centros Hospitalarios
A29: 1.8 Superadas las deficiencias en la organización e implementación de las Redes Integradas de Servicios de Salud (RISS) beneficiando a toda la población que utiliza los servicios de salud de la Red Pública, aumentando del 38% en 2023 al 50% en 2028 en todo el territorio nacional. | B29: 1.8.3 La población usuaria recibe servicios hospitalarios fortalecidos, integrales y de calidad mediante la mejora continua de procesos y servicios, la optimización de la gestión y el fortalecimiento de la infraestructura, el equipamiento y las capacidades del personal. | C29: 1.8.3.03 | D29: Seguimiento a los planes de mejora de la evaluacion de indicadores de calidad en el programa de hemodialisis y diálisis peritoneal, para los centros que apliquen para el programa. | H29: 1 | K29: 1 | N29: 1 | Q29: 3 | R29: Informe | S29: Plan | V29: Centros Hospitalarios
A30: 1.8 Superadas las deficiencias en la organización e implementación de las Redes Integradas de Servicios de Salud (RISS) beneficiando a toda la población que utiliza los servicios de salud de la Red Pública, aumentando del 38% en 2023 al 50% en 2028 en todo el territorio nacional. | B30: 1.8.3 La población usuaria recibe servicios hospitalarios fortalecidos, integrales y de calidad mediante la mejora continua de procesos y servicios, la optimización de la gestión y el fortalecimiento de la infraestructura, el equipamiento y las capacidades del personal. | C30: 1.8.3.04 | D30: Seguimiento al plan de mejora de las evaluaciones de la calidad de los servicios de nutrición | G30: 1 | J30: 1 | M30: 1 | P30: 1 | Q30: 4 | R30: Informe | S30: Plan | V30: Centros Hospitalarios
A31: 1.8 Superadas las deficiencias en la organización e implementación de las Redes Integradas de Servicios de Salud (RISS) beneficiando a toda la población que utiliza los servicios de salud de la Red Pública, aumentando del 38% en 2023 al 50% en 2028 en todo el territorio nacional. | B31: 1.8.3 La población usuaria recibe servicios hospitalarios fortalecidos, integrales y de calidad mediante la mejora continua de procesos y servicios, la optimización de la gestión y el fortalecimiento de la infraestructura, el equipamiento y las capacidades del personal. | C31: 1.8.3.05 | D31: Implementacion de los procesos de bioseguridad hospitalaria | G31: 1 | J31: 1 | M31: 1 | P31: 1 | Q31: 4 | R31: Informe | V31: Centros Hospitalarios
A32: 1.8 Superadas las deficiencias en la organización e implementación de las Redes Integradas de Servicios de Salud (RISS) beneficiando a toda la población que utiliza los servicios de salud de la Red Pública, aumentando del 38% en 2023 al 50% en 2028 en todo el territorio nacional. | B32: 1.8.3 La población usuaria recibe servicios hospitalarios fortalecidos, integrales y de calidad mediante la mejora continua de procesos y servicios, la optimización de la gestión y el fortalecimiento de la infraestructura, el equipamiento y las capacidades del personal. | C32: 1.8.3.06 | D32: Elaboración de los planes de mejora a partir de los resultados de evaluacion de procesos de bioseguridad hospitalaria | H32: 1 | K32: 1 | N32: 1 | Q32: 3 | R32: Plan | V32: Centros Hospitalarios
A33: 1.8 Superadas las deficiencias en la organización e implementación de las Redes Integradas de Servicios de Salud (RISS) beneficiando a toda la población que utiliza los servicios de salud de la Red Pública, aumentando del 38% en 2023 al 50% en 2028 en todo el territorio nacional. | B33: 1.8.3 La población usuaria recibe servicios hospitalarios fortalecidos, integrales y de calidad mediante la mejora continua de procesos y servicios, la optimización de la gestión y el fortalecimiento de la infraestructura, el equipamiento y las capacidades del personal. | C33: 1.8.3.07 | D33: Seguimiento a los planes de mejora de evaluación de procesos de bioseguridad hospitalaria | J33: 1 | M33: 1 | P33: 1 | Q33: 3 | R33: Informe | S33: Plan | V33: Centros Hospitalarios
A34: 1.8 Superadas las deficiencias en la organización e implementación de las Redes Integradas de Servicios de Salud (RISS) beneficiando a toda la población que utiliza los servicios de salud de la Red Pública, aumentando del 38% en 2023 al 50% en 2028 en todo el territorio nacional. | B34: 1.8.3 La población usuaria recibe servicios hospitalarios fortalecidos, integrales y de calidad mediante la mejora continua de procesos y servicios, la optimización de la gestión y el fortalecimiento de la infraestructura, el equipamiento y las capacidades del personal. | C34: 1.8.3.08 | D34: Notificación oportuna de las enfermedades bajo vigilancia epidemiológica (Epi 1 y 2) | E34: 1 | F34: 1 | G34: 1 | H34: 1 | I34: 1 | J34: 1 | K34: 1 | L34: 1 | M34: 1 | N34: 1 | O34: 1 | P34: 1 | Q34: 12 | R34: Reporte | V34: Centros Hospitalarios
A35: 1.8 Superadas las deficiencias en la organización e implementación de las Redes Integradas de Servicios de Salud (RISS) beneficiando a toda la población que utiliza los servicios de salud de la Red Pública, aumentando del 38% en 2023 al 50% en 2028 en todo el territorio nacional. | B35: 1.8.3 La población usuaria recibe servicios hospitalarios fortalecidos, integrales y de calidad mediante la mejora continua de procesos y servicios, la optimización de la gestión y el fortalecimiento de la infraestructura, el equipamiento y las capacidades del personal. | C35: 1.8.3.09 | D35: Implementación del procedimiento de hosteleria hospitalaria | J35: 1 | P35: 1 | Q35: 2 | R35: Informe | V35: Centros Hospitalarios
A36: 1.8 Superadas las deficiencias en la organización e implementación de las Redes Integradas de Servicios de Salud (RISS) beneficiando a toda la población que utiliza los servicios de salud de la Red Pública, aumentando del 38% en 2023 al 50% en 2028 en todo el territorio nacional. | B36: 1.8.3 La población usuaria recibe servicios hospitalarios fortalecidos, integrales y de calidad mediante la mejora continua de procesos y servicios, la optimización de la gestión y el fortalecimiento de la infraestructura, el equipamiento y las capacidades del personal. | C36: 1.8.3.10 | D36: Diagnóstico situacional de la conformación de los comités hospitalarios | G36: 1 | J36: 1 | M36: 1 | P36: 1 | Q36: 4 | R36: Informe | V36: Centros Hospitalarios
A37: 1.8 Superadas las deficiencias en la organización e implementación de las Redes Integradas de Servicios de Salud (RISS) beneficiando a toda la población que utiliza los servicios de salud de la Red Pública, aumentando del 38% en 2023 al 50% en 2028 en todo el territorio nacional. | B37: 1.8.3 La población usuaria recibe servicios hospitalarios fortalecidos, integrales y de calidad mediante la mejora continua de procesos y servicios, la optimización de la gestión y el fortalecimiento de la infraestructura, el equipamiento y las capacidades del personal. | C37: 1.8.3.11 | D37: Conformacion de los comité Hospitalarios | G37: 1 | J37: 1 | M37: 1 | P37: 1 | Q37: 4 | R37: Reporte | T37: Matriz | V37: Centros Hospitalarios
A38: 1.8 Superadas las deficiencias en la organización e implementación de las Redes Integradas de Servicios de Salud (RISS) beneficiando a toda la población que utiliza los servicios de salud de la Red Pública, aumentando del 38% en 2023 al 50% en 2028 en todo el territorio nacional. | B38: 1.8.3 La población usuaria recibe servicios hospitalarios fortalecidos, integrales y de calidad mediante la mejora continua de procesos y servicios, la optimización de la gestión y el fortalecimiento de la infraestructura, el equipamiento y las capacidades del personal. | C38: 1.8.3.12 | D38: Evaluacion de la Metodologia de Gestion Productiva | G38: 1 | J38: 1 | M38: 1 | P38: 1 | Q38: 4 | R38: Informe | V38: Centros Hospitalarios
A39: 1.8 Superadas las deficiencias en la organización e implementación de las Redes Integradas de Servicios de Salud (RISS) beneficiando a toda la población que utiliza los servicios de salud de la Red Pública, aumentando del 38% en 2023 al 50% en 2028 en todo el territorio nacional. | B39: 1.8.3 La población usuaria recibe servicios hospitalarios fortalecidos, integrales y de calidad mediante la mejora continua de procesos y servicios, la optimización de la gestión y el fortalecimiento de la infraestructura, el equipamiento y las capacidades del personal. | C39: 1.8.3.13 | D39: Plan de mejora a partir de los resultados de la evaluacion de la metodologia de gestion productiva | H39: 1 | K39: 1 | N39: 1 | P39: 1 | Q39: 4 | R39: Plan | V39: Centros Hospitalarios
A40: 1.8 Superadas las deficiencias en la organización e implementación de las Redes Integradas de Servicios de Salud (RISS) beneficiando a toda la población que utiliza los servicios de salud de la Red Pública, aumentando del 38% en 2023 al 50% en 2028 en todo el territorio nacional. | B40: 1.8.3 La población usuaria recibe servicios hospitalarios fortalecidos, integrales y de calidad mediante la mejora continua de procesos y servicios, la optimización de la gestión y el fortalecimiento de la infraestructura, el equipamiento y las capacidades del personal. | C40: 1.8.3.14 | D40: Seguimiento a los planes de mejora de la MGP | I40: 1 | L40: 1 | P40: 1 | Q40: 3 | R40: Informe | S40: Plan | V40: Centros Hospitalarios
A41: 1.8 Superadas las deficiencias en la organización e implementación de las Redes Integradas de Servicios de Salud (RISS) beneficiando a toda la población que utiliza los servicios de salud de la Red Pública, aumentando del 38% en 2023 al 50% en 2028 en todo el territorio nacional. | B41: 1.8.3 La población usuaria recibe servicios hospitalarios fortalecidos, integrales y de calidad mediante la mejora continua de procesos y servicios, la optimización de la gestión y el fortalecimiento de la infraestructura, el equipamiento y las capacidades del personal. | C41: 1.8.3.15 | D41: Supervisión de la calidad de los servicios de nutrición | E41: 1 | F41: 1 | G41: 1 | H41: 1 | I41: 1 | J41: 1 | K41: 1 | L41: 1 | M41: 1 | N41: 1 | O41: 1 | P41: 1 | Q41: 12 | R41: Informe | V41: Centros Hospitalarios
A42: 1.8 Superadas las deficiencias en la organización e implementación de las Redes Integradas de Servicios de Salud (RISS) beneficiando a toda la población que utiliza los servicios de salud de la Red Pública, aumentando del 38% en 2023 al 50% en 2028 en todo el territorio nacional. | B42: 1.8.3 La población usuaria recibe servicios hospitalarios fortalecidos, integrales y de calidad mediante la mejora continua de procesos y servicios, la optimización de la gestión y el fortalecimiento de la infraestructura, el equipamiento y las capacidades del personal. | C42: 1.8.3.16 | D42: Desarrollo de los planes de mejora a partir de los resultados de las evaluaciones de la calidad de los servicios de nutrición | G42: 1 | J42: 1 | M42: 1 | P42: 1 | Q42: 4 | R42: Plan | V42: Centros Hospitalarios
A43: 1.8 Superadas las deficiencias en la organización e implementación de las Redes Integradas de Servicios de Salud (RISS) beneficiando a toda la población que utiliza los servicios de salud de la Red Pública, aumentando del 38% en 2023 al 50% en 2028 en todo el territorio nacional. | B43: 1.8.3 La población usuaria recibe servicios hospitalarios fortalecidos, integrales y de calidad mediante la mejora continua de procesos y servicios, la optimización de la gestión y el fortalecimiento de la infraestructura, el equipamiento y las capacidades del personal. | C43: 1.8.3.17 | D43: Implementación del plan de mejora de las evaluaciones de la calidad de los servicios de nutrición | H43: 1 | K43: 1 | N43: 1 | Q43: 3 | R43: Informe | V43: Centros Hospitalarios
A44: 1.8 Superadas las deficiencias en la organización e implementación de las Redes Integradas de Servicios de Salud (RISS) beneficiando a toda la población que utiliza los servicios de salud de la Red Pública, aumentando del 38% en 2023 al 50% en 2028 en todo el territorio nacional. | B44: 1.8.3 La población usuaria recibe servicios hospitalarios fortalecidos, integrales y de calidad mediante la mejora continua de procesos y servicios, la optimización de la gestión y el fortalecimiento de la infraestructura, el equipamiento y las capacidades del personal. | C44: 1.8.3.18 | D44: Análisis del comportamiento de las objeciones médicas y administrativas | E44: 1 | F44: 1 | G44: 1 | H44: 1 | I44: 1 | J44: 1 | K44: 1 | L44: 1 | M44: 1 | N44: 1 | O44: 1 | P44: 1 | Q44: 12 | R44: Informe | U44: Hosp. Regionales y Especializados/Hosp. Provinciales y Municipales | V44: Centros Hospitalarios
A45: 1.8 Superadas las deficiencias en la organización e implementación de las Redes Integradas de Servicios de Salud (RISS) beneficiando a toda la población que utiliza los servicios de salud de la Red Pública, aumentando del 38% en 2023 al 50% en 2028 en todo el territorio nacional. | B45: 1.8.3 La población usuaria recibe servicios hospitalarios fortalecidos, integrales y de calidad mediante la mejora continua de procesos y servicios, la optimización de la gestión y el fortalecimiento de la infraestructura, el equipamiento y las capacidades del personal. | C45: 1.8.3.19 | D45: Elaboracion de los planes de mejora para la disminucion de las objeciones médicas, administrativas y el incremento de la facturación de los CEAS, en coordinacion de los SRS los centros de salud. | G45: 1 | J45: 1 | M45: 1 | P45: 1 | Q45: 4 | R45: Plan | V45: Centros Hospitalarios
A46: 1.8 Superadas las deficiencias en la organización e implementación de las Redes Integradas de Servicios de Salud (RISS) beneficiando a toda la población que utiliza los servicios de salud de la Red Pública, aumentando del 38% en 2023 al 50% en 2028 en todo el territorio nacional. | B46: 1.8.3 La población usuaria recibe servicios hospitalarios fortalecidos, integrales y de calidad mediante la mejora continua de procesos y servicios, la optimización de la gestión y el fortalecimiento de la infraestructura, el equipamiento y las capacidades del personal. | C46: 1.8.3.20 | D46: Seguimiento a la ejecución de planes de mejora para la disminucion de las objeciones médicas, administrativas y el incremento de la facturación de los CEAS. | G46: 1 | J46: 1 | M46: 1 | P46: 1 | Q46: 4 | R46: Informe | S46: Plan | V46: Centros Hospitalarios
A47: 2.1 Reducida la escasez de recursos humanos de salud, aumentando un 12% en el 2028 la dotación de personal en establecimientos públicos del país. | B47: 2.1.1 El personal del SNS recibe desarrollo de competencias (técnicas y blandas), evaluación del desempeño y gestión de seguridad y salud en el trabajo, con procesos efectivos de relaciones laborales, para mejorar el desempeño, el bienestar y el cumplimiento normativo en toda la red. | C47: 2.1.1.01 | D47: Ejecución Plan de Capacitación 2026. | G47: 1 | J47: 1 | M47: 1 | P47: 1 | Q47: 4 | R47: Informe | S47: Plan | U47: 1- El informe trimestral se realiza en el formulario estandarizado por el INAP. 2-Adicional presentar listados de asistencia y plan de capacitación 2026. | V47: Recursos Humanos
A48: 2.1 Reducida la escasez de recursos humanos de salud, aumentando un 12% en el 2028 la dotación de personal en establecimientos públicos del país. | B48: 2.1.1 El personal del SNS recibe desarrollo de competencias (técnicas y blandas), evaluación del desempeño y gestión de seguridad y salud en el trabajo, con procesos efectivos de relaciones laborales, para mejorar el desempeño, el bienestar y el cumplimiento normativo en toda la red. | C48: 2.1.1.02 | D48: Detección necesidades capacitación por departamento CEAS Plan 2027. | M48: 1 | Q48: 1 | R48: Reporte | U48: Presentar anexo formulario por departamento, de acuerdo a la estructura organizativa de cada dependencia. | V48: Recursos Humanos
A49: 2.1 Reducida la escasez de recursos humanos de salud, aumentando un 12% en el 2028 la dotación de personal en establecimientos públicos del país. | B49: 2.1.1 El personal del SNS recibe desarrollo de competencias (técnicas y blandas), evaluación del desempeño y gestión de seguridad y salud en el trabajo, con procesos efectivos de relaciones laborales, para mejorar el desempeño, el bienestar y el cumplimiento normativo en toda la red. | C49: 2.1.1.03 | D49: Elaboración del Plan de Capacitación CEAS 2027. | N49: 1 | Q49: 1 | R49: Plan | U49: Realizar plan de capacitación en formulario estándarizado por el INAP. | V49: Recursos Humanos
A50: 2.1 Reducida la escasez de recursos humanos de salud, aumentando un 12% en el 2028 la dotación de personal en establecimientos públicos del país. | B50: 2.1.1 El personal del SNS recibe desarrollo de competencias (técnicas y blandas), evaluación del desempeño y gestión de seguridad y salud en el trabajo, con procesos efectivos de relaciones laborales, para mejorar el desempeño, el bienestar y el cumplimiento normativo en toda la red. | C50: 2.1.1.04 | D50: Consolidado de resultados de evaluación del desempeño laboral 2025. | E50: 1 | Q50: 1 | R50: Reporte | U50: Matriz para reportar resultados de evaluación del desempeño laboral 2025. | V50: Recursos Humanos
A51: 2.1 Reducida la escasez de recursos humanos de salud, aumentando un 12% en el 2028 la dotación de personal en establecimientos públicos del país. | B51: 2.1.1 El personal del SNS recibe desarrollo de competencias (técnicas y blandas), evaluación del desempeño y gestión de seguridad y salud en el trabajo, con procesos efectivos de relaciones laborales, para mejorar el desempeño, el bienestar y el cumplimiento normativo en toda la red. | C51: 2.1.1.05 | D51: Consolidado de resultados de acuerdos del desempeño laboral 2026. | E51: 1 | Q51: 1 | R51: Reporte | U51: Matriz para reportar acuerdos del desempeño laboral 2026. | V51: Recursos Humanos
A52: 2.1 Reducida la escasez de recursos humanos de salud, aumentando un 12% en el 2028 la dotación de personal en establecimientos públicos del país. | B52: 2.1.1 El personal del SNS recibe desarrollo de competencias (técnicas y blandas), evaluación del desempeño y gestión de seguridad y salud en el trabajo, con procesos efectivos de relaciones laborales, para mejorar el desempeño, el bienestar y el cumplimiento normativo en toda la red. | C52: 2.1.1.06 | D52: Elaboración informe técnico resultados de evaluación del desempeño laboral 2025 CEAS y remisión al SRS. | G52: 1 | Q52: 1 | R52: Informe | U52: Informe técnico de resultados evaluación del desempeño laboral 2025. | V52: Recursos Humanos
A53: 2.1 Reducida la escasez de recursos humanos de salud, aumentando un 12% en el 2028 la dotación de personal en establecimientos públicos del país. | B53: 2.1.1 El personal del SNS recibe desarrollo de competencias (técnicas y blandas), evaluación del desempeño y gestión de seguridad y salud en el trabajo, con procesos efectivos de relaciones laborales, para mejorar el desempeño, el bienestar y el cumplimiento normativo en toda la red. | C53: 2.1.1.07 | D53: Monitoreo por departamento de los acuerdos de desempeño laboral 2026 | H53: 1 | K53: 1 | N53: 1 | Q53: 3 | R53: Minuta | U53: No se requiere listado de asistencia adicional, ya que la minuta estandarizada del MAP es firmada por los colaboradores que participan en la reunión de revisión. | V53: Recursos Humanos
A54: 2.1 Reducida la escasez de recursos humanos de salud, aumentando un 12% en el 2028 la dotación de personal en establecimientos públicos del país. | B54: 2.1.1 El personal del SNS recibe desarrollo de competencias (técnicas y blandas), evaluación del desempeño y gestión de seguridad y salud en el trabajo, con procesos efectivos de relaciones laborales, para mejorar el desempeño, el bienestar y el cumplimiento normativo en toda la red. | C54: 2.1.1.08 | D54: Remisión al SRS consolidado trimestral de acuerdos de desempeño personal nuevo ingreso CEAS | H54: 1 | K54: 1 | N54: 1 | Q54: 3 | R54: Reporte | V54: Recursos Humanos
A55: 3.1 Fortalecida la capacidad institucional para aumentar el acceso a servicios públicos de calidad mediante la optimización de procesos, empoderamiento del talento humano, articulación efectiva, incorporación de tecnologías de la información y comunicación, modernización de la infraestructura física y equipamiento adecuado. | B55: 3.1.1 Los Centros de Atención y Servicios (CEAS) y las Oficinas Regionales de Salud (ORS) reciben el Formulario de Levantamiento de Necesidades de Cooperación No Reembolsable como instrumento estandarizado, | C55: 3.1.1.01 | D55: Llenado y envío del formulario de levantamiento de necesidades de cooperación no reembolsable a la ORS. | E55: 1 | Q55: 1 | T55: 1. Formulario de levantamiento de necesidades de cooperación no reembolsable completo y firmado. 2. Remisión vía correo electrónico del formulario a la ORS. | V55: Planificación
A56: 3.1 Fortalecida la capacidad institucional para aumentar el acceso a servicios públicos de calidad mediante la optimización de procesos, empoderamiento del talento humano, articulación efectiva, incorporación de tecnologías de la información y comunicación, modernización de la infraestructura física y equipamiento adecuado. | B56: 3.1.1 Los Centros de Atención y Servicios (CEAS) y las Oficinas Regionales de Salud (ORS) reciben el Formulario de Levantamiento de Necesidades de Cooperación No Reembolsable como instrumento estandarizado, | C56: 3.1.1.02 | D56: Llenado y envío del Formulario de Reporte de Donaciones a la ORS. | K56: 1 | P56: 1 | Q56: 2 | T56: 1. Formulario de Reporte de Donaciones sellado y firmado. 2. Remisión vía correo electrónico del formulario a la ORS. | V56: Planificación
A57: 3.1 Fortalecida la capacidad institucional para aumentar el acceso a servicios públicos de calidad mediante la optimización de procesos, empoderamiento del talento humano, articulación efectiva, incorporación de tecnologías de la información y comunicación, modernización de la infraestructura física y equipamiento adecuado. | B57: 3.1.5 Personal y usuarios del SNS reciben servicios tecnológicos confiables | C57: 3.1.5.01 | D57: Actualización de portales web | G57: 1 | J57: 1 | M57: 1 | P57: 1 | Q57: 4 | R57: Reporte | V57: Tecnología
A58: 3.1 Fortalecida la capacidad institucional para aumentar el acceso a servicios públicos de calidad mediante la optimización de procesos, empoderamiento del talento humano, articulación efectiva, incorporación de tecnologías de la información y comunicación, modernización de la infraestructura física y equipamiento adecuado. | B58: 3.1.5 Personal y usuarios del SNS reciben servicios tecnológicos confiables | C58: 3.1.5.02 | D58: Soportes incidencias tecnológicas atendidas | G58: 1 | J58: 1 | M58: 1 | P58: 1 | Q58: 4 | R58: Reporte | V58: Tecnología
A59: 3.1 Fortalecida la capacidad institucional para aumentar el acceso a servicios públicos de calidad mediante la optimización de procesos, empoderamiento del talento humano, articulación efectiva, incorporación de tecnologías de la información y comunicación, modernización de la infraestructura física y equipamiento adecuado. | B59: 3.1.5 Personal y usuarios del SNS reciben servicios tecnológicos confiables | C59: 3.1.5.03 | D59: Inventario de activos tecnológicos | G59: 1 | J59: 1 | M59: 1 | P59: 1 | Q59: 4 | R59: Inventario | V59: Tecnología
A60: 3.1 Fortalecida la capacidad institucional para aumentar el acceso a servicios públicos de calidad mediante la optimización de procesos, empoderamiento del talento humano, articulación efectiva, incorporación de tecnologías de la información y comunicación, modernización de la infraestructura física y equipamiento adecuado. | B60: 3.1.6 La población usuaria recibe servicios seguros y de calidad mediante el fortalecimiento del modelo institucional de gestión y monitoreo de la calidad, con estándares, indicadores, auditorías y acciones de mejora continua en todas las unidades. | C60: 3.1.6.01 | D60: Elaboración de la memoria institucional 2026 | O60: 1 | Q60: 1 | R60: Memoria | V60: Planificación
A61: 3.1 Fortalecida la capacidad institucional para aumentar el acceso a servicios públicos de calidad mediante la optimización de procesos, empoderamiento del talento humano, articulación efectiva, incorporación de tecnologías de la información y comunicación, modernización de la infraestructura física y equipamiento adecuado. | B61: 3.1.6 La población usuaria recibe servicios seguros y de calidad mediante el fortalecimiento del modelo institucional de gestión y monitoreo de la calidad, con estándares, indicadores, auditorías y acciones de mejora continua en todas las unidades. | C61: 3.1.6.02 | D61: Elaboración del Plan Operativo Anual 2027 | M61: 1 | Q61: 1 | R61: Plan | V61: Planificación
A62: 3.1 Fortalecida la capacidad institucional para aumentar el acceso a servicios públicos de calidad mediante la optimización de procesos, empoderamiento del talento humano, articulación efectiva, incorporación de tecnologías de la información y comunicación, modernización de la infraestructura física y equipamiento adecuado. | B62: 3.1.6 La población usuaria recibe servicios seguros y de calidad mediante el fortalecimiento del modelo institucional de gestión y monitoreo de la calidad, con estándares, indicadores, auditorías y acciones de mejora continua en todas las unidades. | C62: 3.1.6.03 | D62: Autoevaluación POA 2026 | E62: 1 | H62: 1 | K62: 1 | N62: 1 | Q62: 4 | T62: MEP | V62: Planificación
A63: 3.1 Fortalecida la capacidad institucional para aumentar el acceso a servicios públicos de calidad mediante la optimización de procesos, empoderamiento del talento humano, articulación efectiva, incorporación de tecnologías de la información y comunicación, modernización de la infraestructura física y equipamiento adecuado. | B63: 3.1.6 La población usuaria recibe servicios seguros y de calidad mediante el fortalecimiento del modelo institucional de gestión y monitoreo de la calidad, con estándares, indicadores, auditorías y acciones de mejora continua en todas las unidades. | C63: 3.1.6.04 | D63: Elaboración y seguimiento a la ejecución de los planes de mejora acorde a los hallazgos del MEP | F63: 1 | I63: 1 | L63: 1 | O63: 1 | Q63: 4 | R63: Listado de participación | S63: Informe | T63: Plan | V63: Planificación
A64: 3.1 Fortalecida la capacidad institucional para aumentar el acceso a servicios públicos de calidad mediante la optimización de procesos, empoderamiento del talento humano, articulación efectiva, incorporación de tecnologías de la información y comunicación, modernización de la infraestructura física y equipamiento adecuado. | B64: 3.1.6 La población usuaria recibe servicios seguros y de calidad mediante el fortalecimiento del modelo institucional de gestión y monitoreo de la calidad, con estándares, indicadores, auditorías y acciones de mejora continua en todas las unidades. | C64: 3.1.6.05 | D64: Elaboración del informe de autodiagnóstico y sistema afinado de puntuación CAF | I64: 1 | Q64: 1 | R64: Informe | V64: Planificación
A65: 3.1 Fortalecida la capacidad institucional para aumentar el acceso a servicios públicos de calidad mediante la optimización de procesos, empoderamiento del talento humano, articulación efectiva, incorporación de tecnologías de la información y comunicación, modernización de la infraestructura física y equipamiento adecuado. | B65: 3.1.6 La población usuaria recibe servicios seguros y de calidad mediante el fortalecimiento del modelo institucional de gestión y monitoreo de la calidad, con estándares, indicadores, auditorías y acciones de mejora continua en todas las unidades. | C65: 3.1.6.06 | D65: Informe de seguimiento a plan de mejora CAF año en curso | I65: 1 | Q65: 1 | R65: Informe | V65: Planificación
A66: 3.1 Fortalecida la capacidad institucional para aumentar el acceso a servicios públicos de calidad mediante la optimización de procesos, empoderamiento del talento humano, articulación efectiva, incorporación de tecnologías de la información y comunicación, modernización de la infraestructura física y equipamiento adecuado. | B66: 3.1.6 La población usuaria recibe servicios seguros y de calidad mediante el fortalecimiento del modelo institucional de gestión y monitoreo de la calidad, con estándares, indicadores, auditorías y acciones de mejora continua en todas las unidades. | C66: 3.1.6.07 | D66: Elaboración plan de mejora CAF del próximo año | K66: 1 | Q66: 1 | R66: Plan | V66: Planificación
A67: 3.1 Fortalecida la capacidad institucional para aumentar el acceso a servicios públicos de calidad mediante la optimización de procesos, empoderamiento del talento humano, articulación efectiva, incorporación de tecnologías de la información y comunicación, modernización de la infraestructura física y equipamiento adecuado. | B67: 3.1.6 La población usuaria recibe servicios seguros y de calidad mediante el fortalecimiento del modelo institucional de gestión y monitoreo de la calidad, con estándares, indicadores, auditorías y acciones de mejora continua en todas las unidades. | C67: 3.1.6.08 | D67: Implementación, renovación o actualización de CCC (Carta Compromiso al Ciudadano) según aplique | O67: 1 | Q67: 1 | T67: Resolución aprobatoria | V67: Planificación
A68: 3.1 Fortalecida la capacidad institucional para aumentar el acceso a servicios públicos de calidad mediante la optimización de procesos, empoderamiento del talento humano, articulación efectiva, incorporación de tecnologías de la información y comunicación, modernización de la infraestructura física y equipamiento adecuado. | B68: 3.1.6 La población usuaria recibe servicios seguros y de calidad mediante el fortalecimiento del modelo institucional de gestión y monitoreo de la calidad, con estándares, indicadores, auditorías y acciones de mejora continua en todas las unidades. | C68: 3.1.6.09 | D68: Seguimiento al cumplimiento de la CCC (Carta Compromiso al Ciudadano) | G68: 1 | J68: 1 | M68: 1 | P68: 1 | Q68: 4 | R68: Reporte | V68: Planificación
A69: 3.1 Fortalecida la capacidad institucional para aumentar el acceso a servicios públicos de calidad mediante la optimización de procesos, empoderamiento del talento humano, articulación efectiva, incorporación de tecnologías de la información y comunicación, modernización de la infraestructura física y equipamiento adecuado. | B69: 3.1.6 La población usuaria recibe servicios seguros y de calidad mediante el fortalecimiento del modelo institucional de gestión y monitoreo de la calidad, con estándares, indicadores, auditorías y acciones de mejora continua en todas las unidades. | C69: 3.1.6.10 | D69: Seguimiento a la implementación plan de mejora SISMAP Salud y Programa de Desempeño SNS | O69: 1 | Q69: 1 | R69: Informe | V69: Planificación
A70: 3.1 Fortalecida la capacidad institucional para aumentar el acceso a servicios públicos de calidad mediante la optimización de procesos, empoderamiento del talento humano, articulación efectiva, incorporación de tecnologías de la información y comunicación, modernización de la infraestructura física y equipamiento adecuado. | B70: 3.1.6 La población usuaria recibe servicios seguros y de calidad mediante el fortalecimiento del modelo institucional de gestión y monitoreo de la calidad, con estándares, indicadores, auditorías y acciones de mejora continua en todas las unidades. | C70: 3.1.6.11 | D70: Ejecución de las sesiones del comité de calidad del CEAS | J70: 1 | Q70: 1 | R70: Listado de participación | S70: Minuta | V70: Planificación
A71: 3.1 Fortalecida la capacidad institucional para aumentar el acceso a servicios públicos de calidad mediante la optimización de procesos, empoderamiento del talento humano, articulación efectiva, incorporación de tecnologías de la información y comunicación, modernización de la infraestructura física y equipamiento adecuado. | B71: 3.1.7 Los establecimientos de la red SNS disponen de bienes oportunos, custodiados y en condiciones óptimas mediante el fortalecimiento del Sistema de Administración de Bienes: registro e inventario, control y trazabilidad, mantenimiento, distribución y bajas, con enfoque de ciclo de vida y transparencia. | C71: 3.1.7.01 | D71: Actualizacion de Inventarios de la ORS | J71: 1 | P71: 1 | Q71: 2 | R71: Informe | S71: Inventario | V71: Administrativo-Financiero
A72: 3.1 Fortalecida la capacidad institucional para aumentar el acceso a servicios públicos de calidad mediante la optimización de procesos, empoderamiento del talento humano, articulación efectiva, incorporación de tecnologías de la información y comunicación, modernización de la infraestructura física y equipamiento adecuado. | B72: 3.1.7 Los establecimientos de la red SNS disponen de bienes oportunos, custodiados y en condiciones óptimas mediante el fortalecimiento del Sistema de Administración de Bienes: registro e inventario, control y trazabilidad, mantenimiento, distribución y bajas, con enfoque de ciclo de vida y transparencia. | C72: 3.1.7.02 | D72: Registro de Activos en el Sistema de Administracion de Bienes (SIAB) | G72: 1 | J72: 1 | M72: 1 | P72: 1 | Q72: 4 | R72: Reporte | V72: Administrativo-Financiero
A73: 3.2 Incrementada la satisfacción de usuarios y la calidad percibida de los servicios públicos | B73: 3.2.1 Los pacientes reciben cuidados seguros y de calidad mediante la continuidad en la implementación y aplicación de los siete estándares de calidad de los servicios de enfermería. | C73: 3.2.1.01 | D73: Supervisión y aplicación expediente clínico en el hospital | G73: 1 | J73: 1 | M73: 1 | O73: 1 | Q73: 4 | R73: Informe | V73: Enfermería
A74: 3.2 Incrementada la satisfacción de usuarios y la calidad percibida de los servicios públicos | B74: 3.2.1 Los pacientes reciben cuidados seguros y de calidad mediante la continuidad en la implementación y aplicación de los siete estándares de calidad de los servicios de enfermería. | C74: 3.2.1.02 | D74: Capacitación y retroalimentación en dosificación y administración de medicamentos al personal de enfermería | F74: 1 | H74: 1 | J74: 1 | L74: 1 | N74: 1 | Q74: 5 | R74: Listado de participación | S74: Agenda | V74: Enfermería
A75: 3.2 Incrementada la satisfacción de usuarios y la calidad percibida de los servicios públicos | B75: 3.2.1 Los pacientes reciben cuidados seguros y de calidad mediante la continuidad en la implementación y aplicación de los siete estándares de calidad de los servicios de enfermería. | C75: 3.2.1.03 | D75: Seguimiento a la aplicación de los 7 estándares de cuidados de enfermería | M75: 1 | Q75: 1 | R75: Informe | V75: Enfermería
A76: 3.2 Incrementada la satisfacción de usuarios y la calidad percibida de los servicios públicos | B76: 3.2.2 La población usuaria y los clínicos reciben diagnósticos confiables y oportunos mediante el fortalecimiento de la red del SNS: monitoreo y evaluación continua de la calidad para guiar decisiones, habilitación/acreditación de establecimientos y cumplimiento de estándares de seguridad, asegurando acceso eficiente a servicios de calidad. | C76: 3.2.2.01 | D76: Autoevaluacion SLIPTA para cumplimiento de SISMAP SALUD | H76: 1 | M76: 1 | Q76: 2 | T76: Lista de verificacion y formulario plan de mejora | V76: Laboratorios e Imágenes
A77: 3.2 Incrementada la satisfacción de usuarios y la calidad percibida de los servicios públicos | B77: 3.2.2 La población usuaria y los clínicos reciben diagnósticos confiables y oportunos mediante el fortalecimiento de la red del SNS: monitoreo y evaluación continua de la calidad para guiar decisiones, habilitación/acreditación de establecimientos y cumplimiento de estándares de seguridad, asegurando acceso eficiente a servicios de calidad. | C77: 3.2.2.02 | D77: Garantizar la disponibilidad de pruebas de laboratorios y estudios de imágenes que se realizan a embarazadas y recien nacidos en hospitales maternos. | F77: 1 | I77: 1 | L77: 1 | Q77: 3 | R77: Informe | T77: Hosp. Regionales y Especializados/Hosp. Provinciales y Municipales | U77: Febrero EES que apliquen de : ozama, el valle, higuamo Abril EES que apliquen de: valdesia, cibao noroeste Junio EES que apliquen de: enriquillo, cibao norte, cibao sur Agosto EES que apliquen de: cibao nordeste,yuma | V77: Laboratorios e Imágenes
A78: 3.2 Incrementada la satisfacción de usuarios y la calidad percibida de los servicios públicos | B78: 3.2.2 La población usuaria y los clínicos reciben diagnósticos confiables y oportunos mediante el fortalecimiento de la red del SNS: monitoreo y evaluación continua de la calidad para guiar decisiones, habilitación/acreditación de establecimientos y cumplimiento de estándares de seguridad, asegurando acceso eficiente a servicios de calidad. | C78: 3.2.2.03 | D78: Automatización de los servicios/ mantenimiento a los equipos y calibracion de cabinas de los departamentos de microbiologia en los EES que cuentan con departamento de microbiologia clinica. | G78: 1 | M78: 1 | Q78: 2 | R78: Informe | T78: Hosp. Regionales y Especializados/Hosp. Provinciales y Municipales | V78: laboratorios e Imágenes
A79: 3.2 Incrementada la satisfacción de usuarios y la calidad percibida de los servicios públicos | B79: 3.2.2 La población usuaria y los clínicos reciben diagnósticos confiables y oportunos mediante el fortalecimiento de la red del SNS: monitoreo y evaluación continua de la calidad para guiar decisiones, habilitación/acreditación de establecimientos y cumplimiento de estándares de seguridad, asegurando acceso eficiente a servicios de calidad. | C79: 3.2.2.04 | D79: Cumplimiento la ruta de recolecion y/o envio y/o recepción de las muestras. | F79: 1 | I79: 1 | K79: 1 | Q79: 3 | T79: Cumplimiento la ruta de recolecion y/o envio y/o recepción de las muestras. (EES donde aplique) | U79: Enero EES que apliquen de : ozama, el valle, higuamo Abril EES de: valdesia, cibao noroeste Julio EES de: enriquillo, cibao norte, cibao sur Septiembre EES de : cibao nordeste,yuma | V79: Laboratorios e Imágenes
A80: 3.2 Incrementada la satisfacción de usuarios y la calidad percibida de los servicios públicos | B80: 3.2.2 La población usuaria y los clínicos reciben diagnósticos confiables y oportunos mediante el fortalecimiento de la red del SNS: monitoreo y evaluación continua de la calidad para guiar decisiones, habilitación/acreditación de establecimientos y cumplimiento de estándares de seguridad, asegurando acceso eficiente a servicios de calidad. | C80: 3.2.2.05 | D80: Autoevaluacion para cumplimiento de habilitacion en los EES que cuentan con servicios de hemoterapia. | E80: 1 | J80: 1 | Q80: 2 | R80: Informe | V80: Laboratorios e Imágenes
A81: 3.2 Incrementada la satisfacción de usuarios y la calidad percibida de los servicios públicos | B81: 3.2.2 La población usuaria y los clínicos reciben diagnósticos confiables y oportunos mediante el fortalecimiento de la red del SNS: monitoreo y evaluación continua de la calidad para guiar decisiones, habilitación/acreditación de establecimientos y cumplimiento de estándares de seguridad, asegurando acceso eficiente a servicios de calidad. | C81: 3.2.2.06 | D81: Conformación y/o actualización de clubes de donantes de sangre en EES que cuentan con servicios de hemoterapia. | E81: 1 | J81: 1 | Q81: 2 | T81: Acta de formación/ Listado actualizado del club de donantes. | V81: Laboratorios e Imágenes
A82: 3.2 Incrementada la satisfacción de usuarios y la calidad percibida de los servicios públicos | B82: 3.2.2 La población usuaria y los clínicos reciben diagnósticos confiables y oportunos mediante el fortalecimiento de la red del SNS: monitoreo y evaluación continua de la calidad para guiar decisiones, habilitación/acreditación de establecimientos y cumplimiento de estándares de seguridad, asegurando acceso eficiente a servicios de calidad. | C82: 3.2.2.07 | D82: Mantenimiento a los equipos y calibracion de cabinas. | F82: 1 | I82: 1 | L82: 1 | Q82: 3 | R82: Reporte | T82: Reporte de los mantenimientos de equipos y calibración de cabinas. | U82: EES donde aplique, Marzo: enriquillo, cibao norte, cibao sur mayo: ozama, el valle, higuamo agosto: valdesia, cibao noroeste,Yuma y cibao nordeste | V82: Laboratorios e Imágenes
A83: 3.2 Incrementada la satisfacción de usuarios y la calidad percibida de los servicios públicos | B83: 3.2.2 La población usuaria y los clínicos reciben diagnósticos confiables y oportunos mediante el fortalecimiento de la red del SNS: monitoreo y evaluación continua de la calidad para guiar decisiones, habilitación/acreditación de establecimientos y cumplimiento de estándares de seguridad, asegurando acceso eficiente a servicios de calidad. | C83: 3.2.2.08 | D83: Compra de insumos para la toma de las muestras. | G83: 1 | M83: 1 | Q83: 2 | T83: Listado de disponibilidad de insumos de toma de muestras. Evidencia de compra de insumos actualizada. | V83: Laboratorios e Imágenes
A84: 3.2 Incrementada la satisfacción de usuarios y la calidad percibida de los servicios públicos | B84: 3.2.2 La población usuaria y los clínicos reciben diagnósticos confiables y oportunos mediante el fortalecimiento de la red del SNS: monitoreo y evaluación continua de la calidad para guiar decisiones, habilitación/acreditación de establecimientos y cumplimiento de estándares de seguridad, asegurando acceso eficiente a servicios de calidad. | C84: 3.2.2.09 | D84: Envio mensual Infolab a SRS | E84: 1 | F84: 1 | G84: 1 | H84: 1 | I84: 1 | J84: 1 | K84: 1 | L84: 1 | M84: 1 | N84: 1 | O84: 1 | P84: 1 | Q84: 12 | T84: Captura de envio a SRS | V84: Laboratorios e Imágenes
A85: 3.2 Incrementada la satisfacción de usuarios y la calidad percibida de los servicios públicos | B85: 3.2.2 La población usuaria y los clínicos reciben diagnósticos confiables y oportunos mediante el fortalecimiento de la red del SNS: monitoreo y evaluación continua de la calidad para guiar decisiones, habilitación/acreditación de establecimientos y cumplimiento de estándares de seguridad, asegurando acceso eficiente a servicios de calidad. | C85: 3.2.2.10 | D85: Reunion con DPS cordinar entrega insumos de malaria | H85: 1 | O85: 1 | Q85: 2 | R85: Minuta | S85: Listado de participación | V85: Laboratorios e Imágenes
A86: 3.2 Incrementada la satisfacción de usuarios y la calidad percibida de los servicios públicos | B86: 3.2.2 La población usuaria y los clínicos reciben diagnósticos confiables y oportunos mediante el fortalecimiento de la red del SNS: monitoreo y evaluación continua de la calidad para guiar decisiones, habilitación/acreditación de establecimientos y cumplimiento de estándares de seguridad, asegurando acceso eficiente a servicios de calidad. | C86: 3.2.2.11 | D86: Ejecución del Monitoreo Interno en Adherencia a Protocolos, Guías de Atención y otras Normativas de Salud. | E86: 1 | F86: 1 | G86: 1 | I86: 1 | J86: 1 | K86: 1 | M86: 1 | N86: 1 | O86: 1 | Q86: =SUM(E86:P86) -> 9 | R86: Formularios | U86: Aplica solo a CEAS que no estén en remozamiento/remoción y que ofrezcan el servicio a monitorear. En caso de no realizar el monitoreo, debe entregarse una carta justificativa firmada y sellada por la Dirección. ENERO-MARZO: consulta prenatal, morbilidades maternas y lista de seguridad en cirugía. MAYO-JULIO: morbilidades neonatales, pediátricas y de salud pública. SEPTIEMBRE-NOVIEMBRE: completitud de expedientes. | V86: Calidad de los Servicios de Salud
A87: 3.2 Incrementada la satisfacción de usuarios y la calidad percibida de los servicios públicos | B87: 3.2.2 La población usuaria y los clínicos reciben diagnósticos confiables y oportunos mediante el fortalecimiento de la red del SNS: monitoreo y evaluación continua de la calidad para guiar decisiones, habilitación/acreditación de establecimientos y cumplimiento de estándares de seguridad, asegurando acceso eficiente a servicios de calidad. | C87: 3.2.2.12 | D87: Elaboración y/o Actualización de los Planes de Mejora asociados al Monitoreo Interno de la Adherencia a Protocolos, Guias de Atención y Otras Normativas de Salud. | H87: 1 | L87: 1 | P87: 1 | Q87: 3 | R87: Planes de Mejora | U87: Cada establecimiento debe contar con planes de mejora aprobados (firmados y sellados), con actividades acorde a los hallazgos identificados en el Monitoreo Interno de la Adherencia a Protocolos, Guias de Atención y Otras Normativas de Salud. OJO: Es una evidencia a cargar para SISMAP Salud. | V87: Calidad de los Servicios de Salud
A88: 3.2 Incrementada la satisfacción de usuarios y la calidad percibida de los servicios públicos | B88: 3.2.2 La población usuaria y los clínicos reciben diagnósticos confiables y oportunos mediante el fortalecimiento de la red del SNS: monitoreo y evaluación continua de la calidad para guiar decisiones, habilitación/acreditación de establecimientos y cumplimiento de estándares de seguridad, asegurando acceso eficiente a servicios de calidad. | C88: 3.2.2.13 | D88: Avances en la Ejecución de los Planes de Mejora asociados al Monitoreo Interno de la Adherencia a Protocolos, Guias de Atención y Otras Normativas de Salud. | J88: 1 | O88: 1 | Q88: 2 | R88: Informe | U88: El informe (firmado y sellado) debe reflejar los avances en la ejecución de las actividades aprobadas en los planes de mejora. OJO: Es una evidencia a cargar para SISMAP Salud. | V88: Calidad de los Servicios de Salud
A89: 3.2 Incrementada la satisfacción de usuarios y la calidad percibida de los servicios públicos | B89: 3.2.2 La población usuaria y los clínicos reciben diagnósticos confiables y oportunos mediante el fortalecimiento de la red del SNS: monitoreo y evaluación continua de la calidad para guiar decisiones, habilitación/acreditación de establecimientos y cumplimiento de estándares de seguridad, asegurando acceso eficiente a servicios de calidad. | C89: 3.2.2.14 | D89: Informe de seguimiento a la implementación y correcto llenado de la Lista de Verificación de la Seguridad de la Cirugía. | H89: 1 | Q89: 1 | R89: Informe | U89: El informe (firmado y sellado) debe mencionar los resultados del monitoreo interno, brechas detectadas, aciones de seguimiento y análisis comparativo con monitoreos anteriores para conocer el nivel de avance. OJO: Es una evidencia a cargar para SISMAP Salud. | V89: Calidad de los Servicios de Salud
A90: 3.2 Incrementada la satisfacción de usuarios y la calidad percibida de los servicios públicos | B90: 3.2.2 La población usuaria y los clínicos reciben diagnósticos confiables y oportunos mediante el fortalecimiento de la red del SNS: monitoreo y evaluación continua de la calidad para guiar decisiones, habilitación/acreditación de establecimientos y cumplimiento de estándares de seguridad, asegurando acceso eficiente a servicios de calidad. | C90: 3.2.2.15 | D90: Conformación vigente del Comité de Mejora Continua de la Calidad de la Atención y Seguridad del Paciente en el establecimiento de salud. | E90: 1 | K90: 1 | Q90: 2 | R90: Acta Constitutiva | U90: Cada establecimiento debe contar con un acta vigente del comité (firmada, sellada, con todos sus campos llenos). Se actualiza solo ante cambios en sus integrantes o inactividad igual o mayor a 3 meses. OJO: Es una evidencia a cargar para SISMAP Salud. | V90: Calidad de los Servicios de Salud
A91: 3.2 Incrementada la satisfacción de usuarios y la calidad percibida de los servicios públicos | B91: 3.2.2 La población usuaria y los clínicos reciben diagnósticos confiables y oportunos mediante el fortalecimiento de la red del SNS: monitoreo y evaluación continua de la calidad para guiar decisiones, habilitación/acreditación de establecimientos y cumplimiento de estándares de seguridad, asegurando acceso eficiente a servicios de calidad. | C91: 3.2.2.16 | D91: Reuniones del Comité de Mejora Continua de la Calidad de la Atención y Seguridad del Paciente. | E91: 1 | F91: 1 | G91: 1 | H91: 1 | I91: 1 | J91: 1 | K91: 1 | L91: 1 | M91: 1 | N91: 1 | O91: 1 | P91: 1 | Q91: 12 | R91: Actas de Reunión (Minutas); Listados de participación | U91: El Comité debe reunirse MENSUAL. Las actas de reuniones (minutas) deben tener todos los campos llenos, firmada y sellada. Su contenido debe reflejar los temas tratados por el comité, con seguimiento a acuerdos y compromisos. OJO: Es una evidencia a cargar para SISMAP Salud. | V91: Calidad de los Servicios de Salud
A92: 3.2 Incrementada la satisfacción de usuarios y la calidad percibida de los servicios públicos | B92: 3.2.2 La población usuaria y los clínicos reciben diagnósticos confiables y oportunos mediante el fortalecimiento de la red del SNS: monitoreo y evaluación continua de la calidad para guiar decisiones, habilitación/acreditación de establecimientos y cumplimiento de estándares de seguridad, asegurando acceso eficiente a servicios de calidad. | C92: 3.2.2.17 | D92: Capacitación en Humanización de los Servicios | G92: 1 | K92: 1 | O92: 1 | Q92: 3 | R92: Agenda; Listados de participación; Fotos | U92: Agenda con el sello del establecimiento; listado de participación firmado y sellado, sin campos vacíos. Mínimo 3 fotografías. OJO: Es una evidencia a cargar para SISMAP Salud. | V92: Calidad de los Servicios de Salud
A93: 3.2 Incrementada la satisfacción de usuarios y la calidad percibida de los servicios públicos | B93: 3.2.2 La población usuaria y los clínicos reciben diagnósticos confiables y oportunos mediante el fortalecimiento de la red del SNS: monitoreo y evaluación continua de la calidad para guiar decisiones, habilitación/acreditación de establecimientos y cumplimiento de estándares de seguridad, asegurando acceso eficiente a servicios de calidad. | C93: 3.2.2.18 | D93: Capacitación en la Guía Técnica para la Implementación de la Lista de Verificación de la Seguridad de la Cirugía del Ministerio de Salud Pública. | F93: 1 | Q93: 1 | R93: Agenda; Listados de participación; Fotos | U93: Dirigida a cirujanos, anestesiólogos, instrumentistas, enfermeras de cirugía y personal de enfermería de las salas de recuperación, así como otros que se consideren necesarios. OJO: Es una evidencia a cargar para SISMAP Salud. | V93: Calidad de los Servicios de Salud
A94: 3.2 Incrementada la satisfacción de usuarios y la calidad percibida de los servicios públicos | B94: 3.2.2 La población usuaria y los clínicos reciben diagnósticos confiables y oportunos mediante el fortalecimiento de la red del SNS: monitoreo y evaluación continua de la calidad para guiar decisiones, habilitación/acreditación de establecimientos y cumplimiento de estándares de seguridad, asegurando acceso eficiente a servicios de calidad. | C94: 3.2.2.19 | D94: Capacitación en Protocolos y Guías de Atención emitidos por el Ministerio de Salud Pública (los que apliquen según su cartera de servicios). | H94: 1 | M94: 1 | Q94: 2 | R94: Agenda; Listados de participación; Fotos | U94: La agenda y la lista de participantes deben especificar claramente el nombre oficial del protocolo o guía nacional abordado en la capacitación, según lo establecido por el Ministerio de Salud Pública. Mínimo 3 fotografías. OJO: Es una evidencia a cargar para SISMAP Salud. | V94: Calidad de los Servicios de Salud
A95: 3.2 Incrementada la satisfacción de usuarios y la calidad percibida de los servicios públicos | B95: 3.2.3 Establecimientos de salud garantizan un entorno de atención seguro y confiable para los usuarios, conforme a estándares nacionales e internacionales | C95: 3.2.3.01 | D95: Aplicación del formulario de evaluación del programa de Prevención y Control de Infecciones (PCI) | F95: 1 | Q95: 1 | T95: Formulario completado | U95: Formulario de Evaluación de los Programas de Prevención y Control de Infecciones de OMS (provistos por PCR) y Formulario DCH-FO-035. | V95: Calidad de los Servicios de Salud
A96: 3.2 Incrementada la satisfacción de usuarios y la calidad percibida de los servicios públicos | B96: 3.2.3 Establecimientos de salud garantizan un entorno de atención seguro y confiable para los usuarios, conforme a estándares nacionales e internacionales | C96: 3.2.3.02 | D96: Elaboración de plan de mejora del programa de prevención y control de infecciones , con base en los hallazgos de las autoevaluaciones . | G96: 1 | Q96: =SUM(E96:P96) -> 1 | R96: Plan | U96: Cada establecimiento debe contar con un plan de mejora, aprobado por su dirección y área administrativa (firmado y sellado), que incluya actividades alineadas con los hallazgos identificados en los resultados de las evaluaciones de PCI y bioseguridad. OJO: EVIDENCIA SISMAP. | V96: Calidad de los Servicios de Salud
A97: 3.2 Incrementada la satisfacción de usuarios y la calidad percibida de los servicios públicos | B97: 3.2.3 Establecimientos de salud garantizan un entorno de atención seguro y confiable para los usuarios, conforme a estándares nacionales e internacionales | C97: 3.2.3.03 | D97: Seguimiento a la ejecución del plan de mejora de prevencion y control de infecciones | L97: 1 | Q97: 1 | R97: Informe | U97: El informe, debidamente aprobado por la dirección y el área administrativa (firmado y sellado), debe incluir las evidencias de las mejoras alcanzadas y las acciones realizadas para gestionar el cierre de las brechas pendientes. OJO: EVIDENCIA SISMAP. | V97: Calidad de los Servicios de Salud
A98: 3.2 Incrementada la satisfacción de usuarios y la calidad percibida de los servicios públicos | B98: 3.2.3 Establecimientos de salud garantizan un entorno de atención seguro y confiable para los usuarios, conforme a estándares nacionales e internacionales | C98: 3.2.3.04 | D98: Monitoreo de la calidad del agua | G98: 1 | J98: 1 | M98: 1 | P98: 1 | Q98: 4 | R98: Informe, matriz de registro diario de cloro residual, resultado de estudios microbiológicos | U98: El establecimiento deberá elaborar un informe trimestral que integre los hallazgos del monitoreo diario del cloro residual en fuentes y puntos críticos de agua (intensivos, urgencias, quirófano, cocina, etc), así como los resultados de los análisis microbiológicos (mensuales o, como mínimo, trimestrales). El informe deberá incluir las medidas correctivas aplicadas ante desviaciones o contaminaciones detectadas y la última fecha de limpieza y desinfección de cisterna y/o red de distribución de agua. OJO: EVIDENCIA SISMAP | V98: Calidad de los Servicios de Salud
A99: 3.2 Incrementada la satisfacción de usuarios y la calidad percibida de los servicios públicos | B99: 3.2.3 Establecimientos de salud garantizan un entorno de atención seguro y confiable para los usuarios, conforme a estándares nacionales e internacionales | C99: 3.2.3.05 | D99: Limpieza y desinfección de la cisterna y/o red de distribución de agua del establecimiento | M99: 1 | Q99: 1 | R99: Fotografias del proceso, constancia de servicio recibido, en caso de terceros | U99: Limpieza y desinfección semestral o, como mínimo, anual y de manera inmediata si se detecta: | V99: Calidad de los Servicios de Salud
A100: 3.2 Incrementada la satisfacción de usuarios y la calidad percibida de los servicios públicos | B100: 3.2.3 Establecimientos de salud garantizan un entorno de atención seguro y confiable para los usuarios, conforme a estándares nacionales e internacionales | C100: 3.2.3.06 | D100: Registro y análisis de eventos adversos: IAAS, caída de pacientes, errores de medicación, relacionados a cirugía, transfusiones, embarazo, parto y puerperio. | G100: 1 | J100: 1 | M100: 1 | P100: 1 | Q100: 4 | R100: Formularios completados | U100: - Presencia de sedimentos o suciedad visible. | V100: Calidad de los Servicios de Salud
A101: 3.2 Incrementada la satisfacción de usuarios y la calidad percibida de los servicios públicos | B101: 3.2.3 Establecimientos de salud garantizan un entorno de atención seguro y confiable para los usuarios, conforme a estándares nacionales e internacionales | C101: 3.2.3.07 | D101: Capacitación a personal de servicios generales en higiene de manos, uso de EPP y gestión de desechos. | E101: 1 | K101: 1 | Q101: 2 | R101: Listado de participantes | U101: - Resultados microbiológicos con patógenos indicadores (ej. E. coli, coliformes totales, Pseudomonas). | V101: Calidad de los Servicios de Salud
A102: 3.2 Incrementada la satisfacción de usuarios y la calidad percibida de los servicios públicos | B102: 3.2.3 Establecimientos de salud garantizan un entorno de atención seguro y confiable para los usuarios, conforme a estándares nacionales e internacionales | C102: 3.2.3.08 | D102: Capacitación a personal médico, enfermería y laboratorio en higiene de manos, uso de EPP y gestión de desechos. | F102: 1 | L102: 1 | Q102: 2 | R102: Listado de participantes | U102: - Reparaciones o interrupciones prolongadas en el suministro de agua. | V102: Calidad de los Servicios de Salud
A103: 3.5 Atendidas las solicitudes de información recibidas en los plazos establecidos, con reportes de cumplimiento mensual y mecanismos de retroalimentación al usuario. | B103: 3.5.1 La ciudadanía y los usuarios del SNS acceden a información pública y mecanismos de participación (consultas, veedurías y control social), fortaleciendo la transparencia, la rendición de cuentas y la mejora continua de los servicios. | C103: 3.5.1.01 | D103: Actualización del Portal de Transparencia. | E103: 1 | F103: 1 | G103: 1 | H103: 1 | I103: 1 | J103: 1 | K103: 1 | L103: 1 | M103: 1 | N103: 1 | O103: 1 | P103: 1 | Q103: =SUM(E103:P103) -> 12 | R103: Reporte | U103: Formulario de registro compartido por PCR y Formularios de reportes y accion preventiva de eventos adversos (DGCSS-FO-071) | V103: OAI
A104: 3.5 Atendidas las solicitudes de información recibidas en los plazos establecidos, con reportes de cumplimiento mensual y mecanismos de retroalimentación al usuario. | B104: 3.5.1 La ciudadanía y los usuarios del SNS acceden a información pública y mecanismos de participación (consultas, veedurías y control social), fortaleciendo la transparencia, la rendición de cuentas y la mejora continua de los servicios. | C104: 3.5.1.02 | D104: Levantamiento del estatus y necesidades de la Oficina de Acceso la Información | F104: 1 | L104: 1 | Q104: 2 | R104: Reporte | U104: OJO: EVIDENCIA SISMAP. | V104: OAI
A105: 3.5 Atendidas las solicitudes de información recibidas en los plazos establecidos, con reportes de cumplimiento mensual y mecanismos de retroalimentación al usuario. | B105: 3.5.1 La ciudadanía y los usuarios del SNS acceden a información pública y mecanismos de participación (consultas, veedurías y control social), fortaleciendo la transparencia, la rendición de cuentas y la mejora continua de los servicios. | C105: 3.5.1.03 | D105: Capacitación en la Ley 200-04 y la Resolución No. 002-21de la Dirección General de Ética e Integridad Gubernamental, dirigida al personal administrativo del Hospital. | J105: 1 | Q105: 1 | R105: Listado de participación | S105: Agenda | U105: OJO: EVIDENCIA SISMAP. | V105: OAI
A106: 3.5 Atendidas las solicitudes de información recibidas en los plazos establecidos, con reportes de cumplimiento mensual y mecanismos de retroalimentación al usuario. | B106: 3.5.1 La ciudadanía y los usuarios del SNS acceden a información pública y mecanismos de participación (consultas, veedurías y control social), fortaleciendo la transparencia, la rendición de cuentas y la mejora continua de los servicios. | C106: 3.5.1.04 | D106: Capacitación en el Sistema Nacional de Atención Ciudadana 311, dirigida al personal del Hospital. | L106: 1 | Q106: 1 | R106: Listado de participación | S106: Agenda | U106: El RAI tiene dos opciones para realizar esta actividad: 1. Solicitar al Ministerio de la Presidencia que imparta la capacitación; o, 2. Solicitar al RAIs de la regional la capacitación. | V106: OAI
A107: 3.5 Atendidas las solicitudes de información recibidas en los plazos establecidos, con reportes de cumplimiento mensual y mecanismos de retroalimentación al usuario. | B107: 3.5.1 La ciudadanía y los usuarios del SNS acceden a información pública y mecanismos de participación (consultas, veedurías y control social), fortaleciendo la transparencia, la rendición de cuentas y la mejora continua de los servicios. | C107: 3.5.1.05 | D107: Capacitación sobre declaración jurada de bienes, a los funcionarios competentes, de conformidad con la Ley 311-14. | P107: 1 | Q107: 1 | R107: Listado de participación | S107: Agenda | U107: El RAI tiene dos opciones para realizar esta actividad: 1. Solicitar a la Cámara de Cuentas que imparta la capacitación; o, 2. Preparar la capacitación e impartirla a todo el personal que le corresponda presentarla | V107: OAI
A108: 3.5 Atendidas las solicitudes de información recibidas en los plazos establecidos, con reportes de cumplimiento mensual y mecanismos de retroalimentación al usuario. | B108: 3.5.1 La ciudadanía y los usuarios del SNS acceden a información pública y mecanismos de participación (consultas, veedurías y control social), fortaleciendo la transparencia, la rendición de cuentas y la mejora continua de los servicios. | C108: 3.5.1.06 | D108: Capacitación en la Ley No. 172-13 sobre Protección de Datos Personales a todo el personal del hospital. | M108: 1 | Q108: 1 | R108: Listado de participación | S108: Agenda | U108: El RAI debe preparar la capacitación e impartirla a todo el personal de la hospitales. | V108: OAI
A109: 3.5 Atendidas las solicitudes de información recibidas en los plazos establecidos, con reportes de cumplimiento mensual y mecanismos de retroalimentación al usuario. | B109: 3.5.1 La ciudadanía y los usuarios del SNS acceden a información pública y mecanismos de participación (consultas, veedurías y control social), fortaleciendo la transparencia, la rendición de cuentas y la mejora continua de los servicios. | C109: 3.5.1.07 | D109: Creación de la Matriz de Responsabilidad y socialización con el personal del hospital | G109: 1 | Q109: 1 | R109: Registro Digital | U109: El RAI es el responsable de crear, socializar y actualizar la Matriz de Responsabilidad Informacional. También debe agotar el proceso de registro ante la DIGEIG. Cada vez que se produzca un cambio (desvinculación o renuncia) de una de las personas responsables de suministrar la información, se debe modificar la Matriz de Responsabilidad Informacional y agotar nuevamente todo el proceso. Este documento debe estar publicado en el Portal de Transparencia. Ver Resolución 03-2012 emitida por la DIGEIG en fecha 7 de diciembre de 2012. | V109: OAI
A110: 3.5 Atendidas las solicitudes de información recibidas en los plazos establecidos, con reportes de cumplimiento mensual y mecanismos de retroalimentación al usuario. | B110: 3.5.1 La ciudadanía y los usuarios del SNS acceden a información pública y mecanismos de participación (consultas, veedurías y control social), fortaleciendo la transparencia, la rendición de cuentas y la mejora continua de los servicios. | C110: 3.5.1.08 | D110: Creación y/ o actualización de la Resolución de Información Clasificada, si aplica | H110: 1 | Q110: 1 | R110: Resolución | U110: El RAI es el responsable de crear y actualizar la Resolución de Información Clasificada. | V110: OAI
A111: 3.6 Registradas y procesadas en el Sistema Electrónico de Compras Públicas las adquisiciones y contrataciones institucionales y de la Red Pública. | B111: 3.6.1 Los establecimientos de la red y unidades usuarias del SNS disponen oportunamente de bienes y servicios esenciales mediante la eficientización de la gestión de compras y contrataciones, asegurando planificación, transparencia, competencia y ahorro. | C111: 3.6.1.01 | D111: Consolidación y validación de la plantilla para el Plan Anual de Compras y Contrataciones 2027 | M111: 1 | Q111: 1 | T111: Matriz PACC | V111: Planificación
A112: 3.6 Registradas y procesadas en el Sistema Electrónico de Compras Públicas las adquisiciones y contrataciones institucionales y de la Red Pública. | B112: 3.6.1 Los establecimientos de la red y unidades usuarias del SNS disponen oportunamente de bienes y servicios esenciales mediante la eficientización de la gestión de compras y contrataciones, asegurando planificación, transparencia, competencia y ahorro. | C112: 3.6.1.02 | D112: Seguimiento a la formulación del presupuesto 2027 | M112: 1 | Q112: 1 | R112: Reporte | T112: Matrix Presupuesto | V112: Planificación
A113: 3.6 Registradas y procesadas en el Sistema Electrónico de Compras Públicas las adquisiciones y contrataciones institucionales y de la Red Pública. | B113: 3.6.1 Los establecimientos de la red y unidades usuarias del SNS disponen oportunamente de bienes y servicios esenciales mediante la eficientización de la gestión de compras y contrataciones, asegurando planificación, transparencia, competencia y ahorro. | C113: 3.6.1.03 | D113: Reporte ejecución Metas Físicas y Financieras en el SIGEF 2026 | E113: 1 | H113: 1 | K113: 1 | N113: 1 | Q113: 4 | R113: Reporte | U113: Sólo aplica a hospitales autogestionados | V113: Planificación
A114: 3.6 Registradas y procesadas en el Sistema Electrónico de Compras Públicas las adquisiciones y contrataciones institucionales y de la Red Pública. | B114: 3.6.1 Los establecimientos de la red y unidades usuarias del SNS disponen oportunamente de bienes y servicios esenciales mediante la eficientización de la gestión de compras y contrataciones, asegurando planificación, transparencia, competencia y ahorro. | C114: 3.6.1.04 | D114: Autoevaluación del desempeño hospitalario del SISCOMPRA y elaboración de un plan de mejora conforme hallazgos | G114: 1 | J114: 1 | M114: 1 | P114: 1 | Q114: 4 | R114: Informe | U114: Solo aplica a hospitales que tienen SECP | V114: Administrativo-Financiero
A115: 3.8 Implementados y operativos los controles internos definidos por las NOBACI, con revisiones de cumplimiento semestrales y planes de mejora continua. | B115: 3.8.1 Los establecimientos de la red y las unidades gestoras del SNS reciben fortalecimiento de la gestión financiera mediante la fiscalización del gasto, la evaluación del control interno, el seguimiento de indicadores financieros y la regularización de anticipos según su naturaleza, asegurando uso eficiente, transparente y oportuno de los recursos. | C115: 3.8.1.01 | D115: Implementación del plan de mejora con las recomendaciones resultados de las auditorías realizadas. | E115: 1 | H115: 1 | L115: 1 | P115: 1 | Q115: 4 | R115: Informe | S115: Plan | T115: Soportes de la ejecución | U115: 22 Hospitales convencionales y hospitales de autogestión. | V115: Fiscalización
A116: 3.8 Implementados y operativos los controles internos definidos por las NOBACI, con revisiones de cumplimiento semestrales y planes de mejora continua. | B116: 3.8.1 Los establecimientos de la red y las unidades gestoras del SNS reciben fortalecimiento de la gestión financiera mediante la fiscalización del gasto, la evaluación del control interno, el seguimiento de indicadores financieros y la regularización de anticipos según su naturaleza, asegurando uso eficiente, transparente y oportuno de los recursos. | C116: 3.8.1.03 | D116: Ejecución de planes de mejora resultados de la evaluación de control interno aplicada. | E116: 1 | H116: 1 | L116: 1 | P116: 1 | Q116: 4 | R116: Informe | S116: Plan | T116: Soportes de la ejecución | U116: Hospitales bajo seguimiento en el SISMAP Salud | V116: Fiscalización
A117: 3.8 Implementados y operativos los controles internos definidos por las NOBACI, con revisiones de cumplimiento semestrales y planes de mejora continua. | B117: 3.8.1 Los establecimientos de la red y las unidades gestoras del SNS reciben fortalecimiento de la gestión financiera mediante la fiscalización del gasto, la evaluación del control interno, el seguimiento de indicadores financieros y la regularización de anticipos según su naturaleza, asegurando uso eficiente, transparente y oportuno de los recursos. | C117: 3.8.1.05 | D117: Remisión reporte comportamiento de indicadores financieros en seguimiento (disminución de deuda, eficientización de la nómina e incremento de captación recursos directos).. | E117: 1 | F117: 1 | G117: 1 | H117: 1 | I117: 1 | J117: 1 | K117: 1 | L117: 1 | M117: 1 | N117: 1 | O117: 1 | P117: 1 | Q117: 12 | R117: Reporte | V117: Fiscalización
A118: 3.8 Implementados y operativos los controles internos definidos por las NOBACI, con revisiones de cumplimiento semestrales y planes de mejora continua. | B118: 3.8.1 Los establecimientos de la red y las unidades gestoras del SNS reciben fortalecimiento de la gestión financiera mediante la fiscalización del gasto, la evaluación del control interno, el seguimiento de indicadores financieros y la regularización de anticipos según su naturaleza, asegurando uso eficiente, transparente y oportuno de los recursos. | C118: 3.8.1.06 | D118: Ejecución de los fondos financieros en los plazos establecidos. | E118: 1 | F118: 1 | G118: 1 | H118: 1 | I118: 1 | J118: 1 | K118: 1 | L118: 1 | M118: 1 | N118: 1 | O118: 1 | P118: 1 | Q118: 12 | T118: Formulario de recepción expediente de rendición de cuenta de anticipo financiero | V118: Fiscalización
A119: 3.8 Implementados y operativos los controles internos definidos por las NOBACI, con revisiones de cumplimiento semestrales y planes de mejora continua. | B119: 3.8.1 Los establecimientos de la red y las unidades gestoras del SNS reciben fortalecimiento de la gestión financiera mediante la fiscalización del gasto, la evaluación del control interno, el seguimiento de indicadores financieros y la regularización de anticipos según su naturaleza, asegurando uso eficiente, transparente y oportuno de los recursos. | C119: 3.8.1.07 | D119: Tramitación oportuna ante la ORS de los registros de firmas en cuentas bancarias a nuevos directores y administradores. | E119: 1 | F119: 1 | G119: 1 | H119: 1 | I119: 1 | J119: 1 | K119: 1 | L119: 1 | M119: 1 | N119: 1 | O119: 1 | P119: 1 | Q119: 12 | T119: Oficio de solicitud | V119: Fiscalización
A120: 3.8 Implementados y operativos los controles internos definidos por las NOBACI, con revisiones de cumplimiento semestrales y planes de mejora continua. | B120: 3.8.1 Los establecimientos de la red y las unidades gestoras del SNS reciben fortalecimiento de la gestión financiera mediante la fiscalización del gasto, la evaluación del control interno, el seguimiento de indicadores financieros y la regularización de anticipos según su naturaleza, asegurando uso eficiente, transparente y oportuno de los recursos. | C120: 3.8.1.08 | D120: Contratación de firma privada para realizar auditoría interna | G120: 1 | Q120: 1 | T120: Contrato | U120: Hospitales de autogestión | V120: Fiscalización
A121: 3.8 Implementados y operativos los controles internos definidos por las NOBACI, con revisiones de cumplimiento semestrales y planes de mejora continua. | B121: 3.8.1 Los establecimientos de la red y las unidades gestoras del SNS reciben fortalecimiento de la gestión financiera mediante la fiscalización del gasto, la evaluación del control interno, el seguimiento de indicadores financieros y la regularización de anticipos según su naturaleza, asegurando uso eficiente, transparente y oportuno de los recursos. | C121: 3.8.1.09 | D121: Seguimiento a la realización de auditoría interna, mediante una contratación de servicio en los hospitales de autogestión | H121: 1 | K121: 1 | Q121: 2 | R121: Informe | V121: Fiscalización
A122: 3.9 Instalaciones físicas remodeladas y equipadas conforme a estándares de centros de salud incrementando su capacidad resolutiva. | B122: 3.9.3 Establecimientos de salud logran y sostienen su habilitación conforme a la normativa vigente | C122: 3.9.3.01 | D122: Implementación de Autoinspecciones de Habilitación | G122: 1 | Q122: 1 | T122: Formularios autorizados por DSHH | V122: Calidad de los Servicios de Salud
A123: 3.9 Instalaciones físicas remodeladas y equipadas conforme a estándares de centros de salud incrementando su capacidad resolutiva. | B123: 3.9.3 Establecimientos de salud logran y sostienen su habilitación conforme a la normativa vigente | C123: 3.9.3.02 | D123: Elaboración de Plan de Mejora | H123: 1 | Q123: 1 | R123: Plan | T123: Plan de Mejora en el formato autorizado DGCSS-FO-005 | V123: Calidad de los Servicios de Salud
A124: 3.9 Instalaciones físicas remodeladas y equipadas conforme a estándares de centros de salud incrementando su capacidad resolutiva. | B124: 3.9.3 Establecimientos de salud logran y sostienen su habilitación conforme a la normativa vigente | C124: 3.9.3.03 | D124: Notificación de Estatus de Habilitación | F124: 1 | Q124: 1 | T124: Certificado Vigente/ Recibo de renovación MSP | V124: Calidad de los Servicios de Salud
A125: 3.9 Instalaciones físicas remodeladas y equipadas conforme a estándares de centros de salud incrementando su capacidad resolutiva. | B125: 3.9.3 Establecimientos de salud logran y sostienen su habilitación conforme a la normativa vigente | C125: 3.9.3.04 | D125: Implementación de Acciones de Plan de Mejora de Habilitación | O125: 1 | Q125: 1 | T125: Plan actualizado y evidencias de ejecución | V125: Calidad de los Servicios de Salud
A126: 3.10 Implementado un sistema integral de medición y gestión de la satisfacción de usuarios, con reportes trimestrales y planes de mejora continua para elevar la calidad percibida de los servicios públicos. | B126: 3.10.1 Personas usuarias de los servicios públicos reciben acceso oportuno y eficiente a servicios públicos de calidad | C126: 3.10.1.01 | D126: Aplicación de encuestas de satisfacción de usuarios acorde a cuota establecida mensualmente y Generación de reporte de nivel de satisfacción de usuarios | E126: 1 | F126: 1 | G126: 1 | H126: 1 | I126: 1 | J126: 1 | K126: 1 | L126: 1 | M126: 1 | N126: 1 | O126: 1 | P126: 1 | Q126: 12 | R126: Reporte digital (fuente tablero BI) | V126: Atención a Usuarios
A127: 3.10 Implementado un sistema integral de medición y gestión de la satisfacción de usuarios, con reportes trimestrales y planes de mejora continua para elevar la calidad percibida de los servicios públicos. | B127: 3.10.1 Personas usuarias de los servicios públicos reciben acceso oportuno y eficiente a servicios públicos de calidad | C127: 3.10.1.02 | D127: Formulación y/o actualización del plan de mejora de la experiencia del paciente | E127: 1 | Q127: 1 | R127: Plan de Mejora elaborado/actualizado | V127: Atención a Usuarios
A128: 3.10 Implementado un sistema integral de medición y gestión de la satisfacción de usuarios, con reportes trimestrales y planes de mejora continua para elevar la calidad percibida de los servicios públicos. | B128: 3.10.1 Personas usuarias de los servicios públicos reciben acceso oportuno y eficiente a servicios públicos de calidad | C128: 3.10.1.03 | D128: Seguimiento del cumplimiento de acciones del plan de mejora de la experiencia del paciente (alineado con los resultados de las supervisones, encuestas de satisfacción, grupos focales, QDRS). | F128: 1 | I128: 1 | L128: 1 | O128: 1 | Q128: 4 | R128: Reporte | V128: Atención a Usuarios
A129: 3.10 Implementado un sistema integral de medición y gestión de la satisfacción de usuarios, con reportes trimestrales y planes de mejora continua para elevar la calidad percibida de los servicios públicos. | B129: 3.10.1 Personas usuarias de los servicios públicos reciben acceso oportuno y eficiente a servicios públicos de calidad | C129: 3.10.1.04 | D129: Gestión de los buzones de sugerencias (QDRS) | E129: 1 | F129: 1 | G129: 1 | H129: 1 | I129: 1 | J129: 1 | K129: 1 | L129: 1 | M129: 1 | N129: 1 | O129: 1 | P129: 1 | Q129: 12 | R129: Reporte | V129: Atención a Usuarios
A130: 3.10 Implementado un sistema integral de medición y gestión de la satisfacción de usuarios, con reportes trimestrales y planes de mejora continua para elevar la calidad percibida de los servicios públicos. | B130: 3.10.1 Personas usuarias de los servicios públicos reciben acceso oportuno y eficiente a servicios públicos de calidad | C130: 3.10.1.05 | D130: Registro de las referencias y contrareferencias de la Red. | E130: 1 | F130: 1 | G130: 1 | H130: 1 | I130: 1 | J130: 1 | K130: 1 | L130: 1 | M130: 1 | N130: 1 | O130: 1 | P130: 1 | Q130: 12 | R130: Reporte | U130: En caso no tener registros, Deben fechar y colocar el comentario de que no hubo | V130: Atención a Usuarios
A131: 3.10 Implementado un sistema integral de medición y gestión de la satisfacción de usuarios, con reportes trimestrales y planes de mejora continua para elevar la calidad percibida de los servicios públicos. | B131: 3.10.1 Personas usuarias de los servicios públicos reciben acceso oportuno y eficiente a servicios públicos de calidad | C131: 3.10.1.06 | D131: Cumplimiento indicadores de AU | G131: 1 | J131: 1 | M131: 1 | P131: 1 | Q131: 4 | R131: Reporte | U131: Reporte (enviado desde el SRS) | V131: Atención a Usuarios
E132: =SUM(E9:E131) -> 28 | F132: 26 | G132: 48 | H132: 35 | I132: 25 | J132: 49 | K132: 30 | L132: 28 | M132: 52 | N132: 27 | O132: 28 | P132: 44 | Q132: 420

Sheet Sheet1 (hidden)
E2: Informe | F2: 1.1 Reducidos los niveles de morbilidad y mortalidad materna e infantil por causas prevenibles en la población materno-infantil del país, disminuyendo la mortalidad materna de 127.33 y la mortalidad infantil de 18.44 en 2023 a 89.13 y 16.56 en 2028 en todas las regiones del territorio nacional.
E3: Listado de participación | F3: 1.2 Aumentado el cumplimiento normativo para reducir la incidencia de complicaciones neonatales y maternas, pasando de un promedio del 75.5% en el año 2023 al 88% en el año 2028 en todas las regiones de la Red Pública de Servicios de Salud.
E4: Fotos | F4: 1.3 Reducido el embarazo en adolescentes atendidas en los establecimientos de la Red Pública en un 20% al año 2028, mediante el fortalecimiento del acceso a servicios integrales de salud sexual y reproductiva.
E5: Agenda | F5: 1.4 Disminuida la proporción de partos por cesárea en hospitales del sector público pasando de 48.83 en el 2023 a 34 en el 2028.
E6: Plan | F6: 1.5 Reducida la morbilidad y mortalidad prematura por enfermedades no transmisibles en personas de 30 a 69 años, en un 20% al año 2028, mediante la implementación de intervenciones integrales de prevención, diagnóstico temprano y tratamiento oportuno en los establecimientos de la Red Pública.
E7: Protocolo | F7: 1.6 Incrementado el acceso oportuno a servicios de salud de calidad, aumentando el acceso a servicios preventivos de 2.23% de la población prioritaria en 2023 al 5.24% en 2028 en todas las regiones del país.
E8: Manual | F8: 1.7 Aumentada la disponibilidad de medicamentos esenciales en los establecimientos de la Red Pública de Servicios de Salud, incrementando el cumplimiento promedio de abastecimiento del 88% en 2023 al 93% en 2028 en todas las regiones del país.
E9: Resolución | F9: 1.8 Superadas las deficiencias en la organización e implementación de las Redes Integradas de Servicios de Salud (RISS) beneficiando a toda la población que utiliza los servicios de salud de la Red Pública, aumentando del 38% en 2023 al 50% en 2028 en todo el territorio nacional.
E10: Boletin | F10: 1.9 Fortalecida la implementación del Modelo de Atención en Salud beneficiando a la población usuaria del primer nivel de atención, incrementando la adscripción del 7% en 2023 al 80% en 2028, en todas las regiones del país.
E11: Reporte | F11: 1.10 Mejorada la distribución y presencia del Primer Nivel de Atención respecto a la sectorización, incrementando la presencia del Primer Nivel del 70% en 2023 al 71% en 2028 en todas las regiones del territorio nacional.
E12: Minuta | F12: 1.11 Fortalecida la continuidad en la atención de las puérperas y recién nacidos, aumentando la captación oportuna del 30% en 2023 al 50% en 2028 en el Primer Nivel de Atención.
E13: Hoja de supervisión | F13: 1.12 Superadas las deficiencias en la organización e implementación de las Redes Integradas de Servicios de Salud (RISS) beneficiando a toda la población que utiliza los servicios de salud de la Red Pública, aumentando del 38% en 2023 al 50% en 2028 en todo el territorio nacional.
E14: Inventario | F14: 1.13 Fortalecida la continuidad en la atención de las puérperas y recién nacidos, aumentando la captación oportuna del 30% en 2023 al 50% en 2028 en el Primer Nivel de Atención.
E15: Reglamento | F15: 2.1 Reducida la escasez de recursos humanos de salud, aumentando un 12% en el 2028 la dotación de personal en establecimientos públicos del país.
E16: Memoria | F16: 2.2 Incrementada la eficacia de los procesos de contratación y retención de recursos humanos de salud en establecimientos públicos, reduciendo vacantes y mejorando la dotación de personal.
E17: Encuesta | F17: 3.1 Fortalecida la capacidad institucional para aumentar el acceso a servicios públicos de calidad mediante la optimización de procesos, empoderamiento del talento humano, articulación efectiva, incorporación de tecnologías de la información y comunicación, modernización de la infraestructura física y equipamiento adecuado.
E18: Registro Digital | F18: 3.2 Incrementada la satisfacción de usuarios y la calidad percibida de los servicios públicos
E19: Base de datos | F19: 3.3 Cumplidos los indicadores de gestión pública institucional, garantizando disponibilidad oportuna de la información para la toma de decisiones.
E20: Otros | F20: 3.4 Alcanzado un cumplimiento mínimo del 90% de las metas de planificación y ejecución presupuestaria, optimizando la asignación y uso de recursos.
F21: 3.5 Atendidas las solicitudes de información recibidas en los plazos establecidos, con reportes de cumplimiento mensual y mecanismos de retroalimentación al usuario.
F22: 3.6 Registradas y procesadas en el Sistema Electrónico de Compras Públicas las adquisiciones y contrataciones institucionales y de la Red Pública.
F23: 3.7 Incrementando progresivamente el índice de uso de las TIC y Gobierno Digital en la Red Pública de Servicios de Salud.
F24: 3.8 Implementados y operativos los controles internos definidos por las NOBACI, con revisiones de cumplimiento semestrales y planes de mejora continua.
F25: 3.9 Instalaciones físicas remodeladas y equipadas conforme a estándares de centros de salud incrementando su capacidad resolutiva.
F26: 3.10 Implementado un sistema integral de medición y gestión de la satisfacción de usuarios, con reportes trimestrales y planes de mejora continua para elevar la calidad percibida de los servicios públicos.

Sheet PPNE2.1
O1: Venta Servicios
G2: Servicio Nacional de Salud | S2: Anticipo Financiero
G3: Dirección de Planificación y Desarrollo | S3: Venta de Servicios
G4: Programación de Insumos | S4: Donaciones
J5: =+PPNE1!C5 -> 2026
G6: CEAS | H6: =+PPNE1!B7 -> 0
B7: ID_Dependendencia | C7: POA | D7: SRS | E7: AREA | F7: TIPO | G7: Código_Actividad | H7: Insumos | I7: Unidad de Medida | J7: Cantidad de Insumos | K7: Precio Unitario | L7: Valor Total | M7: Código Presupuestario | N7: Fuente de Financiamiento
B8: =IF(Tabla1[[#This Row],[Código_Actividad]]="","",CONCATENATE(Tabla1[[#This Row],[POA]],".",Tabla1[[#This Row],[SRS]],".",Tabla1[[#This Row],[AREA]],".",Tabla1[[#This Row],[TIPO]])) -> ... | G8: 1.1.1.3.03 | H8: servicio de refrigerio | I8: unidad | J8: 1 | L8: =+Tabla1[[#This Row],[Precio Unitario]]*Tabla1[[#This Row],[Cantidad de Insumos]] -> 0.00 | M8: 2.2.9.2.03
B9: =IF(Tabla1[[#This Row],[Código_Actividad]]="","",CONCATENATE(Tabla1[[#This Row],[POA]],".",Tabla1[[#This Row],[SRS]],".",Tabla1[[#This Row],[AREA]],".",Tabla1[[#This Row],[TIPO]])) -> ... | G9: 1.1.1.3.03 | H9: servicios de impresión | I9: unidad | J9: 20 | L9: =+Tabla1[[#This Row],[Precio Unitario]]*Tabla1[[#This Row],[Cantidad de Insumos]] -> 0.00 | M9: 2.2.2.2.01
B10: =IF(Tabla1[[#This Row],[Código_Actividad]]="","",CONCATENATE(Tabla1[[#This Row],[POA]],".",Tabla1[[#This Row],[SRS]],".",Tabla1[[#This Row],[AREA]],".",Tabla1[[#This Row],[TIPO]])) -> ... | G10: 1.1.1.3.05 | H10: servicio de refrigerio | I10: unidad | J10: 1 | L10: =+Tabla1[[#This Row],[Precio Unitario]]*Tabla1[[#This Row],[Cantidad de Insumos]] -> 0.00 | M10: 2.2.9.2.03
B11: =IF(Tabla1[[#This Row],[Código_Actividad]]="","",CONCATENATE(Tabla1[[#This Row],[POA]],".",Tabla1[[#This Row],[SRS]],".",Tabla1[[#This Row],[AREA]],".",Tabla1[[#This Row],[TIPO]])) -> ... | G11: 1.1.1.3.05 | H11: servicios de impresión | I11: unidad | J11: 20 | L11: =+Tabla1[[#This Row],[Precio Unitario]]*Tabla1[[#This Row],[Cantidad de Insumos]] -> 0.00 | M11: 2.2.2.2.01
B12: =IF(Tabla1[[#This Row],[Código_Actividad]]="","",CONCATENATE(Tabla1[[#This Row],[POA]],".",Tabla1[[#This Row],[SRS]],".",Tabla1[[#This Row],[AREA]],".",Tabla1[[#This Row],[TIPO]])) -> ... | G12: 1.2.1.4.06 | H12: servicios de regrigerio | I12: unidad | J12: 1 | L12: =+Tabla1[[#This Row],[Precio Unitario]]*Tabla1[[#This Row],[Cantidad de Insumos]] -> 0.00 | M12: 2.2.9.2.03
B13: =IF(Tabla1[[#This Row],[Código_Actividad]]="","",CONCATENATE(Tabla1[[#This Row],[POA]],".",Tabla1[[#This Row],[SRS]],".",Tabla1[[#This Row],[AREA]],".",Tabla1[[#This Row],[TIPO]])) -> ... | G13: 1.2.1.4.08 | H13: buzones de quejas y sugerencias | I13: unidad | J13: 10 | L13: =+Tabla1[[#This Row],[Precio Unitario]]*Tabla1[[#This Row],[Cantidad de Insumos]] -> 0.00 | M13: 2.3.9.9.05
B14: =IF(Tabla1[[#This Row],[Código_Actividad]]="","",CONCATENATE(Tabla1[[#This Row],[POA]],".",Tabla1[[#This Row],[SRS]],".",Tabla1[[#This Row],[AREA]],".",Tabla1[[#This Row],[TIPO]])) -> ... | G14: 1.2.1.4.08 | H14: Impresión de formularios de los buzones | I14: unidad | J14: 1,000 | L14: =+Tabla1[[#This Row],[Precio Unitario]]*Tabla1[[#This Row],[Cantidad de Insumos]] -> 0.00 | M14: 2.2.2.2.01
B15: =IF(Tabla1[[#This Row],[Código_Actividad]]="","",CONCATENATE(Tabla1[[#This Row],[POA]],".",Tabla1[[#This Row],[SRS]],".",Tabla1[[#This Row],[AREA]],".",Tabla1[[#This Row],[TIPO]])) -> ... | G15: 1.2.1.5.03 | H15: servicio de refrigerio | I15: unidad | J15: 3 | L15: =+Tabla1[[#This Row],[Precio Unitario]]*Tabla1[[#This Row],[Cantidad de Insumos]] -> 0.00 | M15: 2.2.9.2.03
B16: =IF(Tabla1[[#This Row],[Código_Actividad]]="","",CONCATENATE(Tabla1[[#This Row],[POA]],".",Tabla1[[#This Row],[SRS]],".",Tabla1[[#This Row],[AREA]],".",Tabla1[[#This Row],[TIPO]])) -> ... | G16: 1.2.2.3.03 | H16: servicio de refrigerio | I16: unidad | J16: 1 | L16: =+Tabla1[[#This Row],[Precio Unitario]]*Tabla1[[#This Row],[Cantidad de Insumos]] -> 0.00 | M16: 2.2.9.2.03
B17: =IF(Tabla1[[#This Row],[Código_Actividad]]="","",CONCATENATE(Tabla1[[#This Row],[POA]],".",Tabla1[[#This Row],[SRS]],".",Tabla1[[#This Row],[AREA]],".",Tabla1[[#This Row],[TIPO]])) -> ... | G17: 1.2.2.3.06 | H17: servicio de refrigerio | I17: unidad | J17: 1 | L17: =+Tabla1[[#This Row],[Precio Unitario]]*Tabla1[[#This Row],[Cantidad de Insumos]] -> 0.00 | M17: 2.2.9.2.03
B18: =IF(Tabla1[[#This Row],[Código_Actividad]]="","",CONCATENATE(Tabla1[[#This Row],[POA]],".",Tabla1[[#This Row],[SRS]],".",Tabla1[[#This Row],[AREA]],".",Tabla1[[#This Row],[TIPO]])) -> ... | G18: 1.2.2.5.02 | H18: cuadros con catalogos de los servicios | I18: unidad | J18: 20 | L18: =+Tabla1[[#This Row],[Precio Unitario]]*Tabla1[[#This Row],[Cantidad de Insumos]] -> 0.00 | M18: 2.2.2.2.01
B19: =IF(Tabla1[[#This Row],[Código_Actividad]]="","",CONCATENATE(Tabla1[[#This Row],[POA]],".",Tabla1[[#This Row],[SRS]],".",Tabla1[[#This Row],[AREA]],".",Tabla1[[#This Row],[TIPO]])) -> ... | G19: 3.2.1.1.01 | H19: servicios de refrigerio | I19: unidad | J19: 10 | L19: =+Tabla1[[#This Row],[Precio Unitario]]*Tabla1[[#This Row],[Cantidad de Insumos]] -> 0.00 | M19: 2.2.9.2.03
B20: =IF(Tabla1[[#This Row],[Código_Actividad]]="","",CONCATENATE(Tabla1[[#This Row],[POA]],".",Tabla1[[#This Row],[SRS]],".",Tabla1[[#This Row],[AREA]],".",Tabla1[[#This Row],[TIPO]])) -> ... | G20: 3.2.1.3.06 | H20: Adquisicion de señaleticas | I20: unidad | J20: 1 | L20: =+Tabla1[[#This Row],[Precio Unitario]]*Tabla1[[#This Row],[Cantidad de Insumos]] -> 0.00 | M20: 2.2.2.2.01
B21: =IF(Tabla1[[#This Row],[Código_Actividad]]="","",CONCATENATE(Tabla1[[#This Row],[POA]],".",Tabla1[[#This Row],[SRS]],".",Tabla1[[#This Row],[AREA]],".",Tabla1[[#This Row],[TIPO]])) -> ... | G21: 4.1.1.4.02 | H21: servicios de mantenimiento de equipos | I21: unidad | J21: 4 | L21: =+Tabla1[[#This Row],[Precio Unitario]]*Tabla1[[#This Row],[Cantidad de Insumos]] -> 0.00 | M21: 2.2.7.2.04
B22: =IF(Tabla1[[#This Row],[Código_Actividad]]="","",CONCATENATE(Tabla1[[#This Row],[POA]],".",Tabla1[[#This Row],[SRS]],".",Tabla1[[#This Row],[AREA]],".",Tabla1[[#This Row],[TIPO]])) -> ... | G22: 4.1.1.10.01 | H22: gestion de eventos | I22: unidad | J22: 2 | L22: =+Tabla1[[#This Row],[Precio Unitario]]*Tabla1[[#This Row],[Cantidad de Insumos]] -> 0.00 | M22: 2.2.8.6.01
B23: =IF(Tabla1[[#This Row],[Código_Actividad]]="","",CONCATENATE(Tabla1[[#This Row],[POA]],".",Tabla1[[#This Row],[SRS]],".",Tabla1[[#This Row],[AREA]],".",Tabla1[[#This Row],[TIPO]])) -> ... | G23: 4.1.3.1.01 | H23: servicios de impresiones diversas | I23: unidad | J23: 1 | L23: =+Tabla1[[#This Row],[Precio Unitario]]*Tabla1[[#This Row],[Cantidad de Insumos]] -> 0.00 | M23: 2.2.2.2.01
B24: =IF(Tabla1[[#This Row],[Código_Actividad]]="","",CONCATENATE(Tabla1[[#This Row],[POA]],".",Tabla1[[#This Row],[SRS]],".",Tabla1[[#This Row],[AREA]],".",Tabla1[[#This Row],[TIPO]])) ->  | L24: =+Tabla1[[#This Row],[Precio Unitario]]*Tabla1[[#This Row],[Cantidad de Insumos]] -> 0.00
B25: =IF(Tabla1[[#This Row],[Código_Actividad]]="","",CONCATENATE(Tabla1[[#This Row],[POA]],".",Tabla1[[#This Row],[SRS]],".",Tabla1[[#This Row],[AREA]],".",Tabla1[[#This Row],[TIPO]])) ->  | L25: =+Tabla1[[#This Row],[Precio Unitario]]*Tabla1[[#This Row],[Cantidad de Insumos]] -> 0.00
B26: =IF(Tabla1[[#This Row],[Código_Actividad]]="","",CONCATENATE(Tabla1[[#This Row],[POA]],".",Tabla1[[#This Row],[SRS]],".",Tabla1[[#This Row],[AREA]],".",Tabla1[[#This Row],[TIPO]])) ->  | L26: =+Tabla1[[#This Row],[Precio Unitario]]*Tabla1[[#This Row],[Cantidad de Insumos]] -> 0.00
B27: =IF(Tabla1[[#This Row],[Código_Actividad]]="","",CONCATENATE(Tabla1[[#This Row],[POA]],".",Tabla1[[#This Row],[SRS]],".",Tabla1[[#This Row],[AREA]],".",Tabla1[[#This Row],[TIPO]])) ->  | L27: =+Tabla1[[#This Row],[Precio Unitario]]*Tabla1[[#This Row],[Cantidad de Insumos]] -> 0.00
B28: =IF(Tabla1[[#This Row],[Código_Actividad]]="","",CONCATENATE(Tabla1[[#This Row],[POA]],".",Tabla1[[#This Row],[SRS]],".",Tabla1[[#This Row],[AREA]],".",Tabla1[[#This Row],[TIPO]])) ->  | L28: =+Tabla1[[#This Row],[Precio Unitario]]*Tabla1[[#This Row],[Cantidad de Insumos]] -> 0.00
B29: =IF(Tabla1[[#This Row],[Código_Actividad]]="","",CONCATENATE(Tabla1[[#This Row],[POA]],".",Tabla1[[#This Row],[SRS]],".",Tabla1[[#This Row],[AREA]],".",Tabla1[[#This Row],[TIPO]])) ->  | L29: =+Tabla1[[#This Row],[Precio Unitario]]*Tabla1[[#This Row],[Cantidad de Insumos]] -> 0.00
B30: =IF(Tabla1[[#This Row],[Código_Actividad]]="","",CONCATENATE(Tabla1[[#This Row],[POA]],".",Tabla1[[#This Row],[SRS]],".",Tabla1[[#This Row],[AREA]],".",Tabla1[[#This Row],[TIPO]])) ->  | L30: =+Tabla1[[#This Row],[Precio Unitario]]*Tabla1[[#This Row],[Cantidad de Insumos]] -> 0.00
B31: =IF(Tabla1[[#This Row],[Código_Actividad]]="","",CONCATENATE(Tabla1[[#This Row],[POA]],".",Tabla1[[#This Row],[SRS]],".",Tabla1[[#This Row],[AREA]],".",Tabla1[[#This Row],[TIPO]])) ->  | L31: =+Tabla1[[#This Row],[Precio Unitario]]*Tabla1[[#This Row],[Cantidad de Insumos]] -> 0.00
B32: =IF(Tabla1[[#This Row],[Código_Actividad]]="","",CONCATENATE(Tabla1[[#This Row],[POA]],".",Tabla1[[#This Row],[SRS]],".",Tabla1[[#This Row],[AREA]],".",Tabla1[[#This Row],[TIPO]])) ->  | L32: =+Tabla1[[#This Row],[Precio Unitario]]*Tabla1[[#This Row],[Cantidad de Insumos]] -> 0.00
B33: =IF(Tabla1[[#This Row],[Código_Actividad]]="","",CONCATENATE(Tabla1[[#This Row],[POA]],".",Tabla1[[#This Row],[SRS]],".",Tabla1[[#This Row],[AREA]],".",Tabla1[[#This Row],[TIPO]])) ->  | L33: =+Tabla1[[#This Row],[Precio Unitario]]*Tabla1[[#This Row],[Cantidad de Insumos]] -> 0.00
B34: =IF(Tabla1[[#This Row],[Código_Actividad]]="","",CONCATENATE(Tabla1[[#This Row],[POA]],".",Tabla1[[#This Row],[SRS]],".",Tabla1[[#This Row],[AREA]],".",Tabla1[[#This Row],[TIPO]])) ->  | L34: =+Tabla1[[#This Row],[Precio Unitario]]*Tabla1[[#This Row],[Cantidad de Insumos]] -> 0.00
B35: =IF(Tabla1[[#This Row],[Código_Actividad]]="","",CONCATENATE(Tabla1[[#This Row],[POA]],".",Tabla1[[#This Row],[SRS]],".",Tabla1[[#This Row],[AREA]],".",Tabla1[[#This Row],[TIPO]])) ->  | L35: =+Tabla1[[#This Row],[Precio Unitario]]*Tabla1[[#This Row],[Cantidad de Insumos]] -> 0.00
B36: =IF(Tabla1[[#This Row],[Código_Actividad]]="","",CONCATENATE(Tabla1[[#This Row],[POA]],".",Tabla1[[#This Row],[SRS]],".",Tabla1[[#This Row],[AREA]],".",Tabla1[[#This Row],[TIPO]])) ->  | L36: =+Tabla1[[#This Row],[Precio Unitario]]*Tabla1[[#This Row],[Cantidad de Insumos]] -> 0.00
B37: =IF(Tabla1[[#This Row],[Código_Actividad]]="","",CONCATENATE(Tabla1[[#This Row],[POA]],".",Tabla1[[#This Row],[SRS]],".",Tabla1[[#This Row],[AREA]],".",Tabla1[[#This Row],[TIPO]])) ->  | L37: =+Tabla1[[#This Row],[Precio Unitario]]*Tabla1[[#This Row],[Cantidad de Insumos]] -> 0.00
B38: =IF(Tabla1[[#This Row],[Código_Actividad]]="","",CONCATENATE(Tabla1[[#This Row],[POA]],".",Tabla1[[#This Row],[SRS]],".",Tabla1[[#This Row],[AREA]],".",Tabla1[[#This Row],[TIPO]])) ->  | L38: =+Tabla1[[#This Row],[Precio Unitario]]*Tabla1[[#This Row],[Cantidad de Insumos]] -> 0.00
B39: =IF(Tabla1[[#This Row],[Código_Actividad]]="","",CONCATENATE(Tabla1[[#This Row],[POA]],".",Tabla1[[#This Row],[SRS]],".",Tabla1[[#This Row],[AREA]],".",Tabla1[[#This Row],[TIPO]])) ->  | L39: =+Tabla1[[#This Row],[Precio Unitario]]*Tabla1[[#This Row],[Cantidad de Insumos]] -> 0.00
B40: =IF(Tabla1[[#This Row],[Código_Actividad]]="","",CONCATENATE(Tabla1[[#This Row],[POA]],".",Tabla1[[#This Row],[SRS]],".",Tabla1[[#This Row],[AREA]],".",Tabla1[[#This Row],[TIPO]])) ->  | L40: =+Tabla1[[#This Row],[Precio Unitario]]*Tabla1[[#This Row],[Cantidad de Insumos]] -> 0.00
B41: =IF(Tabla1[[#This Row],[Código_Actividad]]="","",CONCATENATE(Tabla1[[#This Row],[POA]],".",Tabla1[[#This Row],[SRS]],".",Tabla1[[#This Row],[AREA]],".",Tabla1[[#This Row],[TIPO]])) ->  | L41: =+Tabla1[[#This Row],[Precio Unitario]]*Tabla1[[#This Row],[Cantidad de Insumos]] -> 0.00
B42: =IF(Tabla1[[#This Row],[Código_Actividad]]="","",CONCATENATE(Tabla1[[#This Row],[POA]],".",Tabla1[[#This Row],[SRS]],".",Tabla1[[#This Row],[AREA]],".",Tabla1[[#This Row],[TIPO]])) ->  | L42: =+Tabla1[[#This Row],[Precio Unitario]]*Tabla1[[#This Row],[Cantidad de Insumos]] -> 0.00
B43: =IF(Tabla1[[#This Row],[Código_Actividad]]="","",CONCATENATE(Tabla1[[#This Row],[POA]],".",Tabla1[[#This Row],[SRS]],".",Tabla1[[#This Row],[AREA]],".",Tabla1[[#This Row],[TIPO]])) ->  | L43: =+Tabla1[[#This Row],[Precio Unitario]]*Tabla1[[#This Row],[Cantidad de Insumos]] -> 0.00
B44: =IF(Tabla1[[#This Row],[Código_Actividad]]="","",CONCATENATE(Tabla1[[#This Row],[POA]],".",Tabla1[[#This Row],[SRS]],".",Tabla1[[#This Row],[AREA]],".",Tabla1[[#This Row],[TIPO]])) ->  | L44: =+Tabla1[[#This Row],[Precio Unitario]]*Tabla1[[#This Row],[Cantidad de Insumos]] -> 0.00
B45: =IF(Tabla1[[#This Row],[Código_Actividad]]="","",CONCATENATE(Tabla1[[#This Row],[POA]],".",Tabla1[[#This Row],[SRS]],".",Tabla1[[#This Row],[AREA]],".",Tabla1[[#This Row],[TIPO]])) ->  | L45: =+Tabla1[[#This Row],[Precio Unitario]]*Tabla1[[#This Row],[Cantidad de Insumos]] -> 0.00
B46: =IF(Tabla1[[#This Row],[Código_Actividad]]="","",CONCATENATE(Tabla1[[#This Row],[POA]],".",Tabla1[[#This Row],[SRS]],".",Tabla1[[#This Row],[AREA]],".",Tabla1[[#This Row],[TIPO]])) ->  | L46: =+Tabla1[[#This Row],[Precio Unitario]]*Tabla1[[#This Row],[Cantidad de Insumos]] -> 0.00
B47: =IF(Tabla1[[#This Row],[Código_Actividad]]="","",CONCATENATE(Tabla1[[#This Row],[POA]],".",Tabla1[[#This Row],[SRS]],".",Tabla1[[#This Row],[AREA]],".",Tabla1[[#This Row],[TIPO]])) ->  | L47: =+Tabla1[[#This Row],[Precio Unitario]]*Tabla1[[#This Row],[Cantidad de Insumos]] -> 0.00
B48: =IF(Tabla1[[#This Row],[Código_Actividad]]="","",CONCATENATE(Tabla1[[#This Row],[POA]],".",Tabla1[[#This Row],[SRS]],".",Tabla1[[#This Row],[AREA]],".",Tabla1[[#This Row],[TIPO]])) ->  | L48: =+Tabla1[[#This Row],[Precio Unitario]]*Tabla1[[#This Row],[Cantidad de Insumos]] -> 0.00
B49: =IF(Tabla1[[#This Row],[Código_Actividad]]="","",CONCATENATE(Tabla1[[#This Row],[POA]],".",Tabla1[[#This Row],[SRS]],".",Tabla1[[#This Row],[AREA]],".",Tabla1[[#This Row],[TIPO]])) ->  | L49: =+Tabla1[[#This Row],[Precio Unitario]]*Tabla1[[#This Row],[Cantidad de Insumos]] -> 0.00
B50: =IF(Tabla1[[#This Row],[Código_Actividad]]="","",CONCATENATE(Tabla1[[#This Row],[POA]],".",Tabla1[[#This Row],[SRS]],".",Tabla1[[#This Row],[AREA]],".",Tabla1[[#This Row],[TIPO]])) ->  | L50: =+Tabla1[[#This Row],[Precio Unitario]]*Tabla1[[#This Row],[Cantidad de Insumos]] -> 0.00
B51: =IF(Tabla1[[#This Row],[Código_Actividad]]="","",CONCATENATE(Tabla1[[#This Row],[POA]],".",Tabla1[[#This Row],[SRS]],".",Tabla1[[#This Row],[AREA]],".",Tabla1[[#This Row],[TIPO]])) ->  | L51: =+Tabla1[[#This Row],[Precio Unitario]]*Tabla1[[#This Row],[Cantidad de Insumos]] -> 0.00
B52: =IF(Tabla1[[#This Row],[Código_Actividad]]="","",CONCATENATE(Tabla1[[#This Row],[POA]],".",Tabla1[[#This Row],[SRS]],".",Tabla1[[#This Row],[AREA]],".",Tabla1[[#This Row],[TIPO]])) ->  | L52: =+Tabla1[[#This Row],[Precio Unitario]]*Tabla1[[#This Row],[Cantidad de Insumos]] -> 0.00
B53: =IF(Tabla1[[#This Row],[Código_Actividad]]="","",CONCATENATE(Tabla1[[#This Row],[POA]],".",Tabla1[[#This Row],[SRS]],".",Tabla1[[#This Row],[AREA]],".",Tabla1[[#This Row],[TIPO]])) ->  | L53: =+Tabla1[[#This Row],[Precio Unitario]]*Tabla1[[#This Row],[Cantidad de Insumos]] -> 0.00
B54: =IF(Tabla1[[#This Row],[Código_Actividad]]="","",CONCATENATE(Tabla1[[#This Row],[POA]],".",Tabla1[[#This Row],[SRS]],".",Tabla1[[#This Row],[AREA]],".",Tabla1[[#This Row],[TIPO]])) ->  | L54: =+Tabla1[[#This Row],[Precio Unitario]]*Tabla1[[#This Row],[Cantidad de Insumos]] -> 0.00
B55: =IF(Tabla1[[#This Row],[Código_Actividad]]="","",CONCATENATE(Tabla1[[#This Row],[POA]],".",Tabla1[[#This Row],[SRS]],".",Tabla1[[#This Row],[AREA]],".",Tabla1[[#This Row],[TIPO]])) ->  | L55: =+Tabla1[[#This Row],[Precio Unitario]]*Tabla1[[#This Row],[Cantidad de Insumos]] -> 0.00
B56: =IF(Tabla1[[#This Row],[Código_Actividad]]="","",CONCATENATE(Tabla1[[#This Row],[POA]],".",Tabla1[[#This Row],[SRS]],".",Tabla1[[#This Row],[AREA]],".",Tabla1[[#This Row],[TIPO]])) ->  | L56: =+Tabla1[[#This Row],[Precio Unitario]]*Tabla1[[#This Row],[Cantidad de Insumos]] -> 0.00
B57: =IF(Tabla1[[#This Row],[Código_Actividad]]="","",CONCATENATE(Tabla1[[#This Row],[POA]],".",Tabla1[[#This Row],[SRS]],".",Tabla1[[#This Row],[AREA]],".",Tabla1[[#This Row],[TIPO]])) ->  | L57: =+Tabla1[[#This Row],[Precio Unitario]]*Tabla1[[#This Row],[Cantidad de Insumos]] -> 0.00
B58: =IF(Tabla1[[#This Row],[Código_Actividad]]="","",CONCATENATE(Tabla1[[#This Row],[POA]],".",Tabla1[[#This Row],[SRS]],".",Tabla1[[#This Row],[AREA]],".",Tabla1[[#This Row],[TIPO]])) ->  | L58: =+Tabla1[[#This Row],[Precio Unitario]]*Tabla1[[#This Row],[Cantidad de Insumos]] -> 0.00
B59: =IF(Tabla1[[#This Row],[Código_Actividad]]="","",CONCATENATE(Tabla1[[#This Row],[POA]],".",Tabla1[[#This Row],[SRS]],".",Tabla1[[#This Row],[AREA]],".",Tabla1[[#This Row],[TIPO]])) ->  | L59: =+Tabla1[[#This Row],[Precio Unitario]]*Tabla1[[#This Row],[Cantidad de Insumos]] -> 0.00
B60: =IF(Tabla1[[#This Row],[Código_Actividad]]="","",CONCATENATE(Tabla1[[#This Row],[POA]],".",Tabla1[[#This Row],[SRS]],".",Tabla1[[#This Row],[AREA]],".",Tabla1[[#This Row],[TIPO]])) ->  | L60: =+Tabla1[[#This Row],[Precio Unitario]]*Tabla1[[#This Row],[Cantidad de Insumos]] -> 0.00
B61: =IF(Tabla1[[#This Row],[Código_Actividad]]="","",CONCATENATE(Tabla1[[#This Row],[POA]],".",Tabla1[[#This Row],[SRS]],".",Tabla1[[#This Row],[AREA]],".",Tabla1[[#This Row],[TIPO]])) ->  | L61: =+Tabla1[[#This Row],[Precio Unitario]]*Tabla1[[#This Row],[Cantidad de Insumos]] -> 0.00
B62: =IF(Tabla1[[#This Row],[Código_Actividad]]="","",CONCATENATE(Tabla1[[#This Row],[POA]],".",Tabla1[[#This Row],[SRS]],".",Tabla1[[#This Row],[AREA]],".",Tabla1[[#This Row],[TIPO]])) ->  | L62: =+Tabla1[[#This Row],[Precio Unitario]]*Tabla1[[#This Row],[Cantidad de Insumos]] -> 0.00
B63: =IF(Tabla1[[#This Row],[Código_Actividad]]="","",CONCATENATE(Tabla1[[#This Row],[POA]],".",Tabla1[[#This Row],[SRS]],".",Tabla1[[#This Row],[AREA]],".",Tabla1[[#This Row],[TIPO]])) ->  | L63: =+Tabla1[[#This Row],[Precio Unitario]]*Tabla1[[#This Row],[Cantidad de Insumos]] -> 0.00
B64: =IF(Tabla1[[#This Row],[Código_Actividad]]="","",CONCATENATE(Tabla1[[#This Row],[POA]],".",Tabla1[[#This Row],[SRS]],".",Tabla1[[#This Row],[AREA]],".",Tabla1[[#This Row],[TIPO]])) ->  | L64: =+Tabla1[[#This Row],[Precio Unitario]]*Tabla1[[#This Row],[Cantidad de Insumos]] -> 0.00
B65: =IF(Tabla1[[#This Row],[Código_Actividad]]="","",CONCATENATE(Tabla1[[#This Row],[POA]],".",Tabla1[[#This Row],[SRS]],".",Tabla1[[#This Row],[AREA]],".",Tabla1[[#This Row],[TIPO]])) ->  | L65: =+Tabla1[[#This Row],[Precio Unitario]]*Tabla1[[#This Row],[Cantidad de Insumos]] -> 0.00
B66: =IF(Tabla1[[#This Row],[Código_Actividad]]="","",CONCATENATE(Tabla1[[#This Row],[POA]],".",Tabla1[[#This Row],[SRS]],".",Tabla1[[#This Row],[AREA]],".",Tabla1[[#This Row],[TIPO]])) ->  | L66: =+Tabla1[[#This Row],[Precio Unitario]]*Tabla1[[#This Row],[Cantidad de Insumos]] -> 0.00
B67: =IF(Tabla1[[#This Row],[Código_Actividad]]="","",CONCATENATE(Tabla1[[#This Row],[POA]],".",Tabla1[[#This Row],[SRS]],".",Tabla1[[#This Row],[AREA]],".",Tabla1[[#This Row],[TIPO]])) ->  | L67: =+Tabla1[[#This Row],[Precio Unitario]]*Tabla1[[#This Row],[Cantidad de Insumos]] -> 0.00
B68: =IF(Tabla1[[#This Row],[Código_Actividad]]="","",CONCATENATE(Tabla1[[#This Row],[POA]],".",Tabla1[[#This Row],[SRS]],".",Tabla1[[#This Row],[AREA]],".",Tabla1[[#This Row],[TIPO]])) ->  | L68: =+Tabla1[[#This Row],[Precio Unitario]]*Tabla1[[#This Row],[Cantidad de Insumos]] -> 0.00
B69: =IF(Tabla1[[#This Row],[Código_Actividad]]="","",CONCATENATE(Tabla1[[#This Row],[POA]],".",Tabla1[[#This Row],[SRS]],".",Tabla1[[#This Row],[AREA]],".",Tabla1[[#This Row],[TIPO]])) ->  | L69: =+Tabla1[[#This Row],[Precio Unitario]]*Tabla1[[#This Row],[Cantidad de Insumos]] -> 0.00
B70: =IF(Tabla1[[#This Row],[Código_Actividad]]="","",CONCATENATE(Tabla1[[#This Row],[POA]],".",Tabla1[[#This Row],[SRS]],".",Tabla1[[#This Row],[AREA]],".",Tabla1[[#This Row],[TIPO]])) ->  | L70: =+Tabla1[[#This Row],[Precio Unitario]]*Tabla1[[#This Row],[Cantidad de Insumos]] -> 0.00
B71: =IF(Tabla1[[#This Row],[Código_Actividad]]="","",CONCATENATE(Tabla1[[#This Row],[POA]],".",Tabla1[[#This Row],[SRS]],".",Tabla1[[#This Row],[AREA]],".",Tabla1[[#This Row],[TIPO]])) ->  | L71: =+Tabla1[[#This Row],[Precio Unitario]]*Tabla1[[#This Row],[Cantidad de Insumos]] -> 0.00
B72: =IF(Tabla1[[#This Row],[Código_Actividad]]="","",CONCATENATE(Tabla1[[#This Row],[POA]],".",Tabla1[[#This Row],[SRS]],".",Tabla1[[#This Row],[AREA]],".",Tabla1[[#This Row],[TIPO]])) ->  | L72: =+Tabla1[[#This Row],[Precio Unitario]]*Tabla1[[#This Row],[Cantidad de Insumos]] -> 0.00
B73: =IF(Tabla1[[#This Row],[Código_Actividad]]="","",CONCATENATE(Tabla1[[#This Row],[POA]],".",Tabla1[[#This Row],[SRS]],".",Tabla1[[#This Row],[AREA]],".",Tabla1[[#This Row],[TIPO]])) ->  | L73: =+Tabla1[[#This Row],[Precio Unitario]]*Tabla1[[#This Row],[Cantidad de Insumos]] -> 0.00
B74: =IF(Tabla1[[#This Row],[Código_Actividad]]="","",CONCATENATE(Tabla1[[#This Row],[POA]],".",Tabla1[[#This Row],[SRS]],".",Tabla1[[#This Row],[AREA]],".",Tabla1[[#This Row],[TIPO]])) ->  | L74: =+Tabla1[[#This Row],[Precio Unitario]]*Tabla1[[#This Row],[Cantidad de Insumos]] -> 0.00
B75: =IF(Tabla1[[#This Row],[Código_Actividad]]="","",CONCATENATE(Tabla1[[#This Row],[POA]],".",Tabla1[[#This Row],[SRS]],".",Tabla1[[#This Row],[AREA]],".",Tabla1[[#This Row],[TIPO]])) ->  | L75: =+Tabla1[[#This Row],[Precio Unitario]]*Tabla1[[#This Row],[Cantidad de Insumos]] -> 0.00
B76: =IF(Tabla1[[#This Row],[Código_Actividad]]="","",CONCATENATE(Tabla1[[#This Row],[POA]],".",Tabla1[[#This Row],[SRS]],".",Tabla1[[#This Row],[AREA]],".",Tabla1[[#This Row],[TIPO]])) ->  | L76: =+Tabla1[[#This Row],[Precio Unitario]]*Tabla1[[#This Row],[Cantidad de Insumos]] -> 0.00
B77: =IF(Tabla1[[#This Row],[Código_Actividad]]="","",CONCATENATE(Tabla1[[#This Row],[POA]],".",Tabla1[[#This Row],[SRS]],".",Tabla1[[#This Row],[AREA]],".",Tabla1[[#This Row],[TIPO]])) ->  | L77: =+Tabla1[[#This Row],[Precio Unitario]]*Tabla1[[#This Row],[Cantidad de Insumos]] -> 0.00
B78: =IF(Tabla1[[#This Row],[Código_Actividad]]="","",CONCATENATE(Tabla1[[#This Row],[POA]],".",Tabla1[[#This Row],[SRS]],".",Tabla1[[#This Row],[AREA]],".",Tabla1[[#This Row],[TIPO]])) ->  | L78: =+Tabla1[[#This Row],[Precio Unitario]]*Tabla1[[#This Row],[Cantidad de Insumos]] -> 0.00
B79: =IF(Tabla1[[#This Row],[Código_Actividad]]="","",CONCATENATE(Tabla1[[#This Row],[POA]],".",Tabla1[[#This Row],[SRS]],".",Tabla1[[#This Row],[AREA]],".",Tabla1[[#This Row],[TIPO]])) ->  | L79: =+Tabla1[[#This Row],[Precio Unitario]]*Tabla1[[#This Row],[Cantidad de Insumos]] -> 0.00
B80: =IF(Tabla1[[#This Row],[Código_Actividad]]="","",CONCATENATE(Tabla1[[#This Row],[POA]],".",Tabla1[[#This Row],[SRS]],".",Tabla1[[#This Row],[AREA]],".",Tabla1[[#This Row],[TIPO]])) ->  | L80: =+Tabla1[[#This Row],[Precio Unitario]]*Tabla1[[#This Row],[Cantidad de Insumos]] -> 0.00
B81: =IF(Tabla1[[#This Row],[Código_Actividad]]="","",CONCATENATE(Tabla1[[#This Row],[POA]],".",Tabla1[[#This Row],[SRS]],".",Tabla1[[#This Row],[AREA]],".",Tabla1[[#This Row],[TIPO]])) ->  | L81: =+Tabla1[[#This Row],[Precio Unitario]]*Tabla1[[#This Row],[Cantidad de Insumos]] -> 0.00
B82: =IF(Tabla1[[#This Row],[Código_Actividad]]="","",CONCATENATE(Tabla1[[#This Row],[POA]],".",Tabla1[[#This Row],[SRS]],".",Tabla1[[#This Row],[AREA]],".",Tabla1[[#This Row],[TIPO]])) ->  | L82: =+Tabla1[[#This Row],[Precio Unitario]]*Tabla1[[#This Row],[Cantidad de Insumos]] -> 0.00
B83: =IF(Tabla1[[#This Row],[Código_Actividad]]="","",CONCATENATE(Tabla1[[#This Row],[POA]],".",Tabla1[[#This Row],[SRS]],".",Tabla1[[#This Row],[AREA]],".",Tabla1[[#This Row],[TIPO]])) ->  | L83: =+Tabla1[[#This Row],[Precio Unitario]]*Tabla1[[#This Row],[Cantidad de Insumos]] -> 0.00
B84: =IF(Tabla1[[#This Row],[Código_Actividad]]="","",CONCATENATE(Tabla1[[#This Row],[POA]],".",Tabla1[[#This Row],[SRS]],".",Tabla1[[#This Row],[AREA]],".",Tabla1[[#This Row],[TIPO]])) ->  | L84: =+Tabla1[[#This Row],[Precio Unitario]]*Tabla1[[#This Row],[Cantidad de Insumos]] -> 0.00
B85: =IF(Tabla1[[#This Row],[Código_Actividad]]="","",CONCATENATE(Tabla1[[#This Row],[POA]],".",Tabla1[[#This Row],[SRS]],".",Tabla1[[#This Row],[AREA]],".",Tabla1[[#This Row],[TIPO]])) ->  | L85: =+Tabla1[[#This Row],[Precio Unitario]]*Tabla1[[#This Row],[Cantidad de Insumos]] -> 0.00
B86: =IF(Tabla1[[#This Row],[Código_Actividad]]="","",CONCATENATE(Tabla1[[#This Row],[POA]],".",Tabla1[[#This Row],[SRS]],".",Tabla1[[#This Row],[AREA]],".",Tabla1[[#This Row],[TIPO]])) ->  | L86: =+Tabla1[[#This Row],[Precio Unitario]]*Tabla1[[#This Row],[Cantidad de Insumos]] -> 0.00
B87: =IF(Tabla1[[#This Row],[Código_Actividad]]="","",CONCATENATE(Tabla1[[#This Row],[POA]],".",Tabla1[[#This Row],[SRS]],".",Tabla1[[#This Row],[AREA]],".",Tabla1[[#This Row],[TIPO]])) ->  | L87: =+Tabla1[[#This Row],[Precio Unitario]]*Tabla1[[#This Row],[Cantidad de Insumos]] -> 0.00
B88: =IF(Tabla1[[#This Row],[Código_Actividad]]="","",CONCATENATE(Tabla1[[#This Row],[POA]],".",Tabla1[[#This Row],[SRS]],".",Tabla1[[#This Row],[AREA]],".",Tabla1[[#This Row],[TIPO]])) ->  | L88: =+Tabla1[[#This Row],[Precio Unitario]]*Tabla1[[#This Row],[Cantidad de Insumos]] -> 0.00
B89: =IF(Tabla1[[#This Row],[Código_Actividad]]="","",CONCATENATE(Tabla1[[#This Row],[POA]],".",Tabla1[[#This Row],[SRS]],".",Tabla1[[#This Row],[AREA]],".",Tabla1[[#This Row],[TIPO]])) ->  | L89: =+Tabla1[[#This Row],[Precio Unitario]]*Tabla1[[#This Row],[Cantidad de Insumos]] -> 0.00
B90: =IF(Tabla1[[#This Row],[Código_Actividad]]="","",CONCATENATE(Tabla1[[#This Row],[POA]],".",Tabla1[[#This Row],[SRS]],".",Tabla1[[#This Row],[AREA]],".",Tabla1[[#This Row],[TIPO]])) ->  | L90: =+Tabla1[[#This Row],[Precio Unitario]]*Tabla1[[#This Row],[Cantidad de Insumos]] -> 0.00
B91: =IF(Tabla1[[#This Row],[Código_Actividad]]="","",CONCATENATE(Tabla1[[#This Row],[POA]],".",Tabla1[[#This Row],[SRS]],".",Tabla1[[#This Row],[AREA]],".",Tabla1[[#This Row],[TIPO]])) ->  | L91: =+Tabla1[[#This Row],[Precio Unitario]]*Tabla1[[#This Row],[Cantidad de Insumos]] -> 0.00
B92: =IF(Tabla1[[#This Row],[Código_Actividad]]="","",CONCATENATE(Tabla1[[#This Row],[POA]],".",Tabla1[[#This Row],[SRS]],".",Tabla1[[#This Row],[AREA]],".",Tabla1[[#This Row],[TIPO]])) ->  | L92: =+Tabla1[[#This Row],[Precio Unitario]]*Tabla1[[#This Row],[Cantidad de Insumos]] -> 0.00
B93: =IF(Tabla1[[#This Row],[Código_Actividad]]="","",CONCATENATE(Tabla1[[#This Row],[POA]],".",Tabla1[[#This Row],[SRS]],".",Tabla1[[#This Row],[AREA]],".",Tabla1[[#This Row],[TIPO]])) ->  | L93: =+Tabla1[[#This Row],[Precio Unitario]]*Tabla1[[#This Row],[Cantidad de Insumos]] -> 0.00
B94: =IF(Tabla1[[#This Row],[Código_Actividad]]="","",CONCATENATE(Tabla1[[#This Row],[POA]],".",Tabla1[[#This Row],[SRS]],".",Tabla1[[#This Row],[AREA]],".",Tabla1[[#This Row],[TIPO]])) ->  | L94: =+Tabla1[[#This Row],[Precio Unitario]]*Tabla1[[#This Row],[Cantidad de Insumos]] -> 0.00
B95: =IF(Tabla1[[#This Row],[Código_Actividad]]="","",CONCATENATE(Tabla1[[#This Row],[POA]],".",Tabla1[[#This Row],[SRS]],".",Tabla1[[#This Row],[AREA]],".",Tabla1[[#This Row],[TIPO]])) ->  | L95: =+Tabla1[[#This Row],[Precio Unitario]]*Tabla1[[#This Row],[Cantidad de Insumos]] -> 0.00
B96: =IF(Tabla1[[#This Row],[Código_Actividad]]="","",CONCATENATE(Tabla1[[#This Row],[POA]],".",Tabla1[[#This Row],[SRS]],".",Tabla1[[#This Row],[AREA]],".",Tabla1[[#This Row],[TIPO]])) ->  | L96: =+Tabla1[[#This Row],[Precio Unitario]]*Tabla1[[#This Row],[Cantidad de Insumos]] -> 0.00
B97: =IF(Tabla1[[#This Row],[Código_Actividad]]="","",CONCATENATE(Tabla1[[#This Row],[POA]],".",Tabla1[[#This Row],[SRS]],".",Tabla1[[#This Row],[AREA]],".",Tabla1[[#This Row],[TIPO]])) ->  | L97: =+Tabla1[[#This Row],[Precio Unitario]]*Tabla1[[#This Row],[Cantidad de Insumos]] -> 0.00
B98: =IF(Tabla1[[#This Row],[Código_Actividad]]="","",CONCATENATE(Tabla1[[#This Row],[POA]],".",Tabla1[[#This Row],[SRS]],".",Tabla1[[#This Row],[AREA]],".",Tabla1[[#This Row],[TIPO]])) ->  | L98: =+Tabla1[[#This Row],[Precio Unitario]]*Tabla1[[#This Row],[Cantidad de Insumos]] -> 0.00
B99: =IF(Tabla1[[#This Row],[Código_Actividad]]="","",CONCATENATE(Tabla1[[#This Row],[POA]],".",Tabla1[[#This Row],[SRS]],".",Tabla1[[#This Row],[AREA]],".",Tabla1[[#This Row],[TIPO]])) ->  | L99: =+Tabla1[[#This Row],[Precio Unitario]]*Tabla1[[#This Row],[Cantidad de Insumos]] -> 0.00
B100: =IF(Tabla1[[#This Row],[Código_Actividad]]="","",CONCATENATE(Tabla1[[#This Row],[POA]],".",Tabla1[[#This Row],[SRS]],".",Tabla1[[#This Row],[AREA]],".",Tabla1[[#This Row],[TIPO]])) ->  | L100: =+Tabla1[[#This Row],[Precio Unitario]]*Tabla1[[#This Row],[Cantidad de Insumos]] -> 0.00
B101: =IF(Tabla1[[#This Row],[Código_Actividad]]="","",CONCATENATE(Tabla1[[#This Row],[POA]],".",Tabla1[[#This Row],[SRS]],".",Tabla1[[#This Row],[AREA]],".",Tabla1[[#This Row],[TIPO]])) ->  | L101: =+Tabla1[[#This Row],[Precio Unitario]]*Tabla1[[#This Row],[Cantidad de Insumos]] -> 0.00
B102: =IF(Tabla1[[#This Row],[Código_Actividad]]="","",CONCATENATE(Tabla1[[#This Row],[POA]],".",Tabla1[[#This Row],[SRS]],".",Tabla1[[#This Row],[AREA]],".",Tabla1[[#This Row],[TIPO]])) ->  | L102: =+Tabla1[[#This Row],[Precio Unitario]]*Tabla1[[#This Row],[Cantidad de Insumos]] -> 0.00
B103: =IF(Tabla1[[#This Row],[Código_Actividad]]="","",CONCATENATE(Tabla1[[#This Row],[POA]],".",Tabla1[[#This Row],[SRS]],".",Tabla1[[#This Row],[AREA]],".",Tabla1[[#This Row],[TIPO]])) ->  | L103: =+Tabla1[[#This Row],[Precio Unitario]]*Tabla1[[#This Row],[Cantidad de Insumos]] -> 0.00
B104: =IF(Tabla1[[#This Row],[Código_Actividad]]="","",CONCATENATE(Tabla1[[#This Row],[POA]],".",Tabla1[[#This Row],[SRS]],".",Tabla1[[#This Row],[AREA]],".",Tabla1[[#This Row],[TIPO]])) ->  | L104: =+Tabla1[[#This Row],[Precio Unitario]]*Tabla1[[#This Row],[Cantidad de Insumos]] -> 0.00
B105: =IF(Tabla1[[#This Row],[Código_Actividad]]="","",CONCATENATE(Tabla1[[#This Row],[POA]],".",Tabla1[[#This Row],[SRS]],".",Tabla1[[#This Row],[AREA]],".",Tabla1[[#This Row],[TIPO]])) ->  | L105: =+Tabla1[[#This Row],[Precio Unitario]]*Tabla1[[#This Row],[Cantidad de Insumos]] -> 0.00
B106: =IF(Tabla1[[#This Row],[Código_Actividad]]="","",CONCATENATE(Tabla1[[#This Row],[POA]],".",Tabla1[[#This Row],[SRS]],".",Tabla1[[#This Row],[AREA]],".",Tabla1[[#This Row],[TIPO]])) ->  | L106: =+Tabla1[[#This Row],[Precio Unitario]]*Tabla1[[#This Row],[Cantidad de Insumos]] -> 0.00
B107: =IF(Tabla1[[#This Row],[Código_Actividad]]="","",CONCATENATE(Tabla1[[#This Row],[POA]],".",Tabla1[[#This Row],[SRS]],".",Tabla1[[#This Row],[AREA]],".",Tabla1[[#This Row],[TIPO]])) ->  | L107: =+Tabla1[[#This Row],[Precio Unitario]]*Tabla1[[#This Row],[Cantidad de Insumos]] -> 0.00
B108: =IF(Tabla1[[#This Row],[Código_Actividad]]="","",CONCATENATE(Tabla1[[#This Row],[POA]],".",Tabla1[[#This Row],[SRS]],".",Tabla1[[#This Row],[AREA]],".",Tabla1[[#This Row],[TIPO]])) ->  | L108: =+Tabla1[[#This Row],[Precio Unitario]]*Tabla1[[#This Row],[Cantidad de Insumos]] -> 0.00
B109: =IF(Tabla1[[#This Row],[Código_Actividad]]="","",CONCATENATE(Tabla1[[#This Row],[POA]],".",Tabla1[[#This Row],[SRS]],".",Tabla1[[#This Row],[AREA]],".",Tabla1[[#This Row],[TIPO]])) ->  | L109: =+Tabla1[[#This Row],[Precio Unitario]]*Tabla1[[#This Row],[Cantidad de Insumos]] -> 0.00
B110: =IF(Tabla1[[#This Row],[Código_Actividad]]="","",CONCATENATE(Tabla1[[#This Row],[POA]],".",Tabla1[[#This Row],[SRS]],".",Tabla1[[#This Row],[AREA]],".",Tabla1[[#This Row],[TIPO]])) ->  | L110: =+Tabla1[[#This Row],[Precio Unitario]]*Tabla1[[#This Row],[Cantidad de Insumos]] -> 0.00
B111: =IF(Tabla1[[#This Row],[Código_Actividad]]="","",CONCATENATE(Tabla1[[#This Row],[POA]],".",Tabla1[[#This Row],[SRS]],".",Tabla1[[#This Row],[AREA]],".",Tabla1[[#This Row],[TIPO]])) ->  | L111: =+Tabla1[[#This Row],[Precio Unitario]]*Tabla1[[#This Row],[Cantidad de Insumos]] -> 0.00
B112: =IF(Tabla1[[#This Row],[Código_Actividad]]="","",CONCATENATE(Tabla1[[#This Row],[POA]],".",Tabla1[[#This Row],[SRS]],".",Tabla1[[#This Row],[AREA]],".",Tabla1[[#This Row],[TIPO]])) ->  | L112: =+Tabla1[[#This Row],[Precio Unitario]]*Tabla1[[#This Row],[Cantidad de Insumos]] -> 0.00
B113: =IF(Tabla1[[#This Row],[Código_Actividad]]="","",CONCATENATE(Tabla1[[#This Row],[POA]],".",Tabla1[[#This Row],[SRS]],".",Tabla1[[#This Row],[AREA]],".",Tabla1[[#This Row],[TIPO]])) ->  | L113: =+Tabla1[[#This Row],[Precio Unitario]]*Tabla1[[#This Row],[Cantidad de Insumos]] -> 0.00
B114: =IF(Tabla1[[#This Row],[Código_Actividad]]="","",CONCATENATE(Tabla1[[#This Row],[POA]],".",Tabla1[[#This Row],[SRS]],".",Tabla1[[#This Row],[AREA]],".",Tabla1[[#This Row],[TIPO]])) ->  | L114: =+Tabla1[[#This Row],[Precio Unitario]]*Tabla1[[#This Row],[Cantidad de Insumos]] -> 0.00
B115: =IF(Tabla1[[#This Row],[Código_Actividad]]="","",CONCATENATE(Tabla1[[#This Row],[POA]],".",Tabla1[[#This Row],[SRS]],".",Tabla1[[#This Row],[AREA]],".",Tabla1[[#This Row],[TIPO]])) ->  | L115: =+Tabla1[[#This Row],[Precio Unitario]]*Tabla1[[#This Row],[Cantidad de Insumos]] -> 0.00
B116: =IF(Tabla1[[#This Row],[Código_Actividad]]="","",CONCATENATE(Tabla1[[#This Row],[POA]],".",Tabla1[[#This Row],[SRS]],".",Tabla1[[#This Row],[AREA]],".",Tabla1[[#This Row],[TIPO]])) ->  | L116: =+Tabla1[[#This Row],[Precio Unitario]]*Tabla1[[#This Row],[Cantidad de Insumos]] -> 0.00
B117: =IF(Tabla1[[#This Row],[Código_Actividad]]="","",CONCATENATE(Tabla1[[#This Row],[POA]],".",Tabla1[[#This Row],[SRS]],".",Tabla1[[#This Row],[AREA]],".",Tabla1[[#This Row],[TIPO]])) ->  | L117: =+Tabla1[[#This Row],[Precio Unitario]]*Tabla1[[#This Row],[Cantidad de Insumos]] -> 0.00
B118: =IF(Tabla1[[#This Row],[Código_Actividad]]="","",CONCATENATE(Tabla1[[#This Row],[POA]],".",Tabla1[[#This Row],[SRS]],".",Tabla1[[#This Row],[AREA]],".",Tabla1[[#This Row],[TIPO]])) ->  | L118: =+Tabla1[[#This Row],[Precio Unitario]]*Tabla1[[#This Row],[Cantidad de Insumos]] -> 0.00
B119: =IF(Tabla1[[#This Row],[Código_Actividad]]="","",CONCATENATE(Tabla1[[#This Row],[POA]],".",Tabla1[[#This Row],[SRS]],".",Tabla1[[#This Row],[AREA]],".",Tabla1[[#This Row],[TIPO]])) ->  | L119: =+Tabla1[[#This Row],[Precio Unitario]]*Tabla1[[#This Row],[Cantidad de Insumos]] -> 0.00
B120: =IF(Tabla1[[#This Row],[Código_Actividad]]="","",CONCATENATE(Tabla1[[#This Row],[POA]],".",Tabla1[[#This Row],[SRS]],".",Tabla1[[#This Row],[AREA]],".",Tabla1[[#This Row],[TIPO]])) ->  | L120: =+Tabla1[[#This Row],[Precio Unitario]]*Tabla1[[#This Row],[Cantidad de Insumos]] -> 0.00
B121: =IF(Tabla1[[#This Row],[Código_Actividad]]="","",CONCATENATE(Tabla1[[#This Row],[POA]],".",Tabla1[[#This Row],[SRS]],".",Tabla1[[#This Row],[AREA]],".",Tabla1[[#This Row],[TIPO]])) ->  | L121: =+Tabla1[[#This Row],[Precio Unitario]]*Tabla1[[#This Row],[Cantidad de Insumos]] -> 0.00
B122: =IF(Tabla1[[#This Row],[Código_Actividad]]="","",CONCATENATE(Tabla1[[#This Row],[POA]],".",Tabla1[[#This Row],[SRS]],".",Tabla1[[#This Row],[AREA]],".",Tabla1[[#This Row],[TIPO]])) ->  | L122: =+Tabla1[[#This Row],[Precio Unitario]]*Tabla1[[#This Row],[Cantidad de Insumos]] -> 0.00
B123: =IF(Tabla1[[#This Row],[Código_Actividad]]="","",CONCATENATE(Tabla1[[#This Row],[POA]],".",Tabla1[[#This Row],[SRS]],".",Tabla1[[#This Row],[AREA]],".",Tabla1[[#This Row],[TIPO]])) ->  | L123: =+Tabla1[[#This Row],[Precio Unitario]]*Tabla1[[#This Row],[Cantidad de Insumos]] -> 0.00
B124: =IF(Tabla1[[#This Row],[Código_Actividad]]="","",CONCATENATE(Tabla1[[#This Row],[POA]],".",Tabla1[[#This Row],[SRS]],".",Tabla1[[#This Row],[AREA]],".",Tabla1[[#This Row],[TIPO]])) ->  | L124: =+Tabla1[[#This Row],[Precio Unitario]]*Tabla1[[#This Row],[Cantidad de Insumos]] -> 0.00
B125: =IF(Tabla1[[#This Row],[Código_Actividad]]="","",CONCATENATE(Tabla1[[#This Row],[POA]],".",Tabla1[[#This Row],[SRS]],".",Tabla1[[#This Row],[AREA]],".",Tabla1[[#This Row],[TIPO]])) ->  | L125: =+Tabla1[[#This Row],[Precio Unitario]]*Tabla1[[#This Row],[Cantidad de Insumos]] -> 0.00
B126: =IF(Tabla1[[#This Row],[Código_Actividad]]="","",CONCATENATE(Tabla1[[#This Row],[POA]],".",Tabla1[[#This Row],[SRS]],".",Tabla1[[#This Row],[AREA]],".",Tabla1[[#This Row],[TIPO]])) ->  | L126: =+Tabla1[[#This Row],[Precio Unitario]]*Tabla1[[#This Row],[Cantidad de Insumos]] -> 0.00
B127: =IF(Tabla1[[#This Row],[Código_Actividad]]="","",CONCATENATE(Tabla1[[#This Row],[POA]],".",Tabla1[[#This Row],[SRS]],".",Tabla1[[#This Row],[AREA]],".",Tabla1[[#This Row],[TIPO]])) ->  | L127: =+Tabla1[[#This Row],[Precio Unitario]]*Tabla1[[#This Row],[Cantidad de Insumos]] -> 0.00
B128: =IF(Tabla1[[#This Row],[Código_Actividad]]="","",CONCATENATE(Tabla1[[#This Row],[POA]],".",Tabla1[[#This Row],[SRS]],".",Tabla1[[#This Row],[AREA]],".",Tabla1[[#This Row],[TIPO]])) ->  | L128: =+Tabla1[[#This Row],[Precio Unitario]]*Tabla1[[#This Row],[Cantidad de Insumos]] -> 0.00
B129: =IF(Tabla1[[#This Row],[Código_Actividad]]="","",CONCATENATE(Tabla1[[#This Row],[POA]],".",Tabla1[[#This Row],[SRS]],".",Tabla1[[#This Row],[AREA]],".",Tabla1[[#This Row],[TIPO]])) ->  | L129: =+Tabla1[[#This Row],[Precio Unitario]]*Tabla1[[#This Row],[Cantidad de Insumos]] -> 0.00
B130: =IF(Tabla1[[#This Row],[Código_Actividad]]="","",CONCATENATE(Tabla1[[#This Row],[POA]],".",Tabla1[[#This Row],[SRS]],".",Tabla1[[#This Row],[AREA]],".",Tabla1[[#This Row],[TIPO]])) ->  | L130: =+Tabla1[[#This Row],[Precio Unitario]]*Tabla1[[#This Row],[Cantidad de Insumos]] -> 0.00
B131: =IF(Tabla1[[#This Row],[Código_Actividad]]="","",CONCATENATE(Tabla1[[#This Row],[POA]],".",Tabla1[[#This Row],[SRS]],".",Tabla1[[#This Row],[AREA]],".",Tabla1[[#This Row],[TIPO]])) ->  | L131: =+Tabla1[[#This Row],[Precio Unitario]]*Tabla1[[#This Row],[Cantidad de Insumos]] -> 0.00
B132: =IF(Tabla1[[#This Row],[Código_Actividad]]="","",CONCATENATE(Tabla1[[#This Row],[POA]],".",Tabla1[[#This Row],[SRS]],".",Tabla1[[#This Row],[AREA]],".",Tabla1[[#This Row],[TIPO]])) ->  | L132: =+Tabla1[[#This Row],[Precio Unitario]]*Tabla1[[#This Row],[Cantidad de Insumos]] -> 0.00
B133: =IF(Tabla1[[#This Row],[Código_Actividad]]="","",CONCATENATE(Tabla1[[#This Row],[POA]],".",Tabla1[[#This Row],[SRS]],".",Tabla1[[#This Row],[AREA]],".",Tabla1[[#This Row],[TIPO]])) ->  | L133: =+Tabla1[[#This Row],[Precio Unitario]]*Tabla1[[#This Row],[Cantidad de Insumos]] -> 0.00
B134: =IF(Tabla1[[#This Row],[Código_Actividad]]="","",CONCATENATE(Tabla1[[#This Row],[POA]],".",Tabla1[[#This Row],[SRS]],".",Tabla1[[#This Row],[AREA]],".",Tabla1[[#This Row],[TIPO]])) ->  | L134: =+Tabla1[[#This Row],[Precio Unitario]]*Tabla1[[#This Row],[Cantidad de Insumos]] -> 0.00
B135: =IF(Tabla1[[#This Row],[Código_Actividad]]="","",CONCATENATE(Tabla1[[#This Row],[POA]],".",Tabla1[[#This Row],[SRS]],".",Tabla1[[#This Row],[AREA]],".",Tabla1[[#This Row],[TIPO]])) ->  | L135: =+Tabla1[[#This Row],[Precio Unitario]]*Tabla1[[#This Row],[Cantidad de Insumos]] -> 0.00
B136: =IF(Tabla1[[#This Row],[Código_Actividad]]="","",CONCATENATE(Tabla1[[#This Row],[POA]],".",Tabla1[[#This Row],[SRS]],".",Tabla1[[#This Row],[AREA]],".",Tabla1[[#This Row],[TIPO]])) ->  | L136: =+Tabla1[[#This Row],[Precio Unitario]]*Tabla1[[#This Row],[Cantidad de Insumos]] -> 0.00
B137: =IF(Tabla1[[#This Row],[Código_Actividad]]="","",CONCATENATE(Tabla1[[#This Row],[POA]],".",Tabla1[[#This Row],[SRS]],".",Tabla1[[#This Row],[AREA]],".",Tabla1[[#This Row],[TIPO]])) ->  | L137: =+Tabla1[[#This Row],[Precio Unitario]]*Tabla1[[#This Row],[Cantidad de Insumos]] -> 0.00
B138: =IF(Tabla1[[#This Row],[Código_Actividad]]="","",CONCATENATE(Tabla1[[#This Row],[POA]],".",Tabla1[[#This Row],[SRS]],".",Tabla1[[#This Row],[AREA]],".",Tabla1[[#This Row],[TIPO]])) ->  | L138: =+Tabla1[[#This Row],[Precio Unitario]]*Tabla1[[#This Row],[Cantidad de Insumos]] -> 0.00
B139: =IF(Tabla1[[#This Row],[Código_Actividad]]="","",CONCATENATE(Tabla1[[#This Row],[POA]],".",Tabla1[[#This Row],[SRS]],".",Tabla1[[#This Row],[AREA]],".",Tabla1[[#This Row],[TIPO]])) ->  | L139: =+Tabla1[[#This Row],[Precio Unitario]]*Tabla1[[#This Row],[Cantidad de Insumos]] -> 0.00
B140: =IF(Tabla1[[#This Row],[Código_Actividad]]="","",CONCATENATE(Tabla1[[#This Row],[POA]],".",Tabla1[[#This Row],[SRS]],".",Tabla1[[#This Row],[AREA]],".",Tabla1[[#This Row],[TIPO]])) ->  | L140: =+Tabla1[[#This Row],[Precio Unitario]]*Tabla1[[#This Row],[Cantidad de Insumos]] -> 0.00
B141: =IF(Tabla1[[#This Row],[Código_Actividad]]="","",CONCATENATE(Tabla1[[#This Row],[POA]],".",Tabla1[[#This Row],[SRS]],".",Tabla1[[#This Row],[AREA]],".",Tabla1[[#This Row],[TIPO]])) ->  | L141: =+Tabla1[[#This Row],[Precio Unitario]]*Tabla1[[#This Row],[Cantidad de Insumos]] -> 0.00
B142: =IF(Tabla1[[#This Row],[Código_Actividad]]="","",CONCATENATE(Tabla1[[#This Row],[POA]],".",Tabla1[[#This Row],[SRS]],".",Tabla1[[#This Row],[AREA]],".",Tabla1[[#This Row],[TIPO]])) ->  | L142: =+Tabla1[[#This Row],[Precio Unitario]]*Tabla1[[#This Row],[Cantidad de Insumos]] -> 0.00
B143: =IF(Tabla1[[#This Row],[Código_Actividad]]="","",CONCATENATE(Tabla1[[#This Row],[POA]],".",Tabla1[[#This Row],[SRS]],".",Tabla1[[#This Row],[AREA]],".",Tabla1[[#This Row],[TIPO]])) ->  | L143: =+Tabla1[[#This Row],[Precio Unitario]]*Tabla1[[#This Row],[Cantidad de Insumos]] -> 0.00
B144: =IF(Tabla1[[#This Row],[Código_Actividad]]="","",CONCATENATE(Tabla1[[#This Row],[POA]],".",Tabla1[[#This Row],[SRS]],".",Tabla1[[#This Row],[AREA]],".",Tabla1[[#This Row],[TIPO]])) ->  | L144: =+Tabla1[[#This Row],[Precio Unitario]]*Tabla1[[#This Row],[Cantidad de Insumos]] -> 0.00
B145: =IF(Tabla1[[#This Row],[Código_Actividad]]="","",CONCATENATE(Tabla1[[#This Row],[POA]],".",Tabla1[[#This Row],[SRS]],".",Tabla1[[#This Row],[AREA]],".",Tabla1[[#This Row],[TIPO]])) ->  | L145: =+Tabla1[[#This Row],[Precio Unitario]]*Tabla1[[#This Row],[Cantidad de Insumos]] -> 0.00
B146: =IF(Tabla1[[#This Row],[Código_Actividad]]="","",CONCATENATE(Tabla1[[#This Row],[POA]],".",Tabla1[[#This Row],[SRS]],".",Tabla1[[#This Row],[AREA]],".",Tabla1[[#This Row],[TIPO]])) ->  | L146: =+Tabla1[[#This Row],[Precio Unitario]]*Tabla1[[#This Row],[Cantidad de Insumos]] -> 0.00
B147: =IF(Tabla1[[#This Row],[Código_Actividad]]="","",CONCATENATE(Tabla1[[#This Row],[POA]],".",Tabla1[[#This Row],[SRS]],".",Tabla1[[#This Row],[AREA]],".",Tabla1[[#This Row],[TIPO]])) ->  | L147: =+Tabla1[[#This Row],[Precio Unitario]]*Tabla1[[#This Row],[Cantidad de Insumos]] -> 0.00
B148: =IF(Tabla1[[#This Row],[Código_Actividad]]="","",CONCATENATE(Tabla1[[#This Row],[POA]],".",Tabla1[[#This Row],[SRS]],".",Tabla1[[#This Row],[AREA]],".",Tabla1[[#This Row],[TIPO]])) ->  | L148: =+Tabla1[[#This Row],[Precio Unitario]]*Tabla1[[#This Row],[Cantidad de Insumos]] -> 0.00
B149: =IF(Tabla1[[#This Row],[Código_Actividad]]="","",CONCATENATE(Tabla1[[#This Row],[POA]],".",Tabla1[[#This Row],[SRS]],".",Tabla1[[#This Row],[AREA]],".",Tabla1[[#This Row],[TIPO]])) ->  | L149: =+Tabla1[[#This Row],[Precio Unitario]]*Tabla1[[#This Row],[Cantidad de Insumos]] -> 0.00
B150: =IF(Tabla1[[#This Row],[Código_Actividad]]="","",CONCATENATE(Tabla1[[#This Row],[POA]],".",Tabla1[[#This Row],[SRS]],".",Tabla1[[#This Row],[AREA]],".",Tabla1[[#This Row],[TIPO]])) ->  | L150: =+Tabla1[[#This Row],[Precio Unitario]]*Tabla1[[#This Row],[Cantidad de Insumos]] -> 0.00
B151: =IF(Tabla1[[#This Row],[Código_Actividad]]="","",CONCATENATE(Tabla1[[#This Row],[POA]],".",Tabla1[[#This Row],[SRS]],".",Tabla1[[#This Row],[AREA]],".",Tabla1[[#This Row],[TIPO]])) ->  | L151: =+Tabla1[[#This Row],[Precio Unitario]]*Tabla1[[#This Row],[Cantidad de Insumos]] -> 0.00
B152: =IF(Tabla1[[#This Row],[Código_Actividad]]="","",CONCATENATE(Tabla1[[#This Row],[POA]],".",Tabla1[[#This Row],[SRS]],".",Tabla1[[#This Row],[AREA]],".",Tabla1[[#This Row],[TIPO]])) ->  | L152: =+Tabla1[[#This Row],[Precio Unitario]]*Tabla1[[#This Row],[Cantidad de Insumos]] -> 0.00
B153: =IF(Tabla1[[#This Row],[Código_Actividad]]="","",CONCATENATE(Tabla1[[#This Row],[POA]],".",Tabla1[[#This Row],[SRS]],".",Tabla1[[#This Row],[AREA]],".",Tabla1[[#This Row],[TIPO]])) ->  | L153: =+Tabla1[[#This Row],[Precio Unitario]]*Tabla1[[#This Row],[Cantidad de Insumos]] -> 0.00
B154: =IF(Tabla1[[#This Row],[Código_Actividad]]="","",CONCATENATE(Tabla1[[#This Row],[POA]],".",Tabla1[[#This Row],[SRS]],".",Tabla1[[#This Row],[AREA]],".",Tabla1[[#This Row],[TIPO]])) ->  | L154: =+Tabla1[[#This Row],[Precio Unitario]]*Tabla1[[#This Row],[Cantidad de Insumos]] -> 0.00
B155: =IF(Tabla1[[#This Row],[Código_Actividad]]="","",CONCATENATE(Tabla1[[#This Row],[POA]],".",Tabla1[[#This Row],[SRS]],".",Tabla1[[#This Row],[AREA]],".",Tabla1[[#This Row],[TIPO]])) ->  | L155: =+Tabla1[[#This Row],[Precio Unitario]]*Tabla1[[#This Row],[Cantidad de Insumos]] -> 0.00
B156: =IF(Tabla1[[#This Row],[Código_Actividad]]="","",CONCATENATE(Tabla1[[#This Row],[POA]],".",Tabla1[[#This Row],[SRS]],".",Tabla1[[#This Row],[AREA]],".",Tabla1[[#This Row],[TIPO]])) ->  | L156: =+Tabla1[[#This Row],[Precio Unitario]]*Tabla1[[#This Row],[Cantidad de Insumos]] -> 0.00
B157: =IF(Tabla1[[#This Row],[Código_Actividad]]="","",CONCATENATE(Tabla1[[#This Row],[POA]],".",Tabla1[[#This Row],[SRS]],".",Tabla1[[#This Row],[AREA]],".",Tabla1[[#This Row],[TIPO]])) ->  | L157: =+Tabla1[[#This Row],[Precio Unitario]]*Tabla1[[#This Row],[Cantidad de Insumos]] -> 0.00
B158: =IF(Tabla1[[#This Row],[Código_Actividad]]="","",CONCATENATE(Tabla1[[#This Row],[POA]],".",Tabla1[[#This Row],[SRS]],".",Tabla1[[#This Row],[AREA]],".",Tabla1[[#This Row],[TIPO]])) ->  | L158: =+Tabla1[[#This Row],[Precio Unitario]]*Tabla1[[#This Row],[Cantidad de Insumos]] -> 0.00
B159: =IF(Tabla1[[#This Row],[Código_Actividad]]="","",CONCATENATE(Tabla1[[#This Row],[POA]],".",Tabla1[[#This Row],[SRS]],".",Tabla1[[#This Row],[AREA]],".",Tabla1[[#This Row],[TIPO]])) ->  | L159: =+Tabla1[[#This Row],[Precio Unitario]]*Tabla1[[#This Row],[Cantidad de Insumos]] -> 0.00
B160: =IF(Tabla1[[#This Row],[Código_Actividad]]="","",CONCATENATE(Tabla1[[#This Row],[POA]],".",Tabla1[[#This Row],[SRS]],".",Tabla1[[#This Row],[AREA]],".",Tabla1[[#This Row],[TIPO]])) ->  | L160: =+Tabla1[[#This Row],[Precio Unitario]]*Tabla1[[#This Row],[Cantidad de Insumos]] -> 0.00
B161: =IF(Tabla1[[#This Row],[Código_Actividad]]="","",CONCATENATE(Tabla1[[#This Row],[POA]],".",Tabla1[[#This Row],[SRS]],".",Tabla1[[#This Row],[AREA]],".",Tabla1[[#This Row],[TIPO]])) ->  | L161: =+Tabla1[[#This Row],[Precio Unitario]]*Tabla1[[#This Row],[Cantidad de Insumos]] -> 0.00
B162: =IF(Tabla1[[#This Row],[Código_Actividad]]="","",CONCATENATE(Tabla1[[#This Row],[POA]],".",Tabla1[[#This Row],[SRS]],".",Tabla1[[#This Row],[AREA]],".",Tabla1[[#This Row],[TIPO]])) ->  | L162: =+Tabla1[[#This Row],[Precio Unitario]]*Tabla1[[#This Row],[Cantidad de Insumos]] -> 0.00
B163: =IF(Tabla1[[#This Row],[Código_Actividad]]="","",CONCATENATE(Tabla1[[#This Row],[POA]],".",Tabla1[[#This Row],[SRS]],".",Tabla1[[#This Row],[AREA]],".",Tabla1[[#This Row],[TIPO]])) ->  | L163: =+Tabla1[[#This Row],[Precio Unitario]]*Tabla1[[#This Row],[Cantidad de Insumos]] -> 0.00
B164: =IF(Tabla1[[#This Row],[Código_Actividad]]="","",CONCATENATE(Tabla1[[#This Row],[POA]],".",Tabla1[[#This Row],[SRS]],".",Tabla1[[#This Row],[AREA]],".",Tabla1[[#This Row],[TIPO]])) ->  | L164: =+Tabla1[[#This Row],[Precio Unitario]]*Tabla1[[#This Row],[Cantidad de Insumos]] -> 0.00
B165: =IF(Tabla1[[#This Row],[Código_Actividad]]="","",CONCATENATE(Tabla1[[#This Row],[POA]],".",Tabla1[[#This Row],[SRS]],".",Tabla1[[#This Row],[AREA]],".",Tabla1[[#This Row],[TIPO]])) ->  | L165: =+Tabla1[[#This Row],[Precio Unitario]]*Tabla1[[#This Row],[Cantidad de Insumos]] -> 0.00
B166: =IF(Tabla1[[#This Row],[Código_Actividad]]="","",CONCATENATE(Tabla1[[#This Row],[POA]],".",Tabla1[[#This Row],[SRS]],".",Tabla1[[#This Row],[AREA]],".",Tabla1[[#This Row],[TIPO]])) ->  | L166: =+Tabla1[[#This Row],[Precio Unitario]]*Tabla1[[#This Row],[Cantidad de Insumos]] -> 0.00
B167: =IF(Tabla1[[#This Row],[Código_Actividad]]="","",CONCATENATE(Tabla1[[#This Row],[POA]],".",Tabla1[[#This Row],[SRS]],".",Tabla1[[#This Row],[AREA]],".",Tabla1[[#This Row],[TIPO]])) ->  | L167: =+Tabla1[[#This Row],[Precio Unitario]]*Tabla1[[#This Row],[Cantidad de Insumos]] -> 0.00
B168: =IF(Tabla1[[#This Row],[Código_Actividad]]="","",CONCATENATE(Tabla1[[#This Row],[POA]],".",Tabla1[[#This Row],[SRS]],".",Tabla1[[#This Row],[AREA]],".",Tabla1[[#This Row],[TIPO]])) ->  | L168: =+Tabla1[[#This Row],[Precio Unitario]]*Tabla1[[#This Row],[Cantidad de Insumos]] -> 0.00
B169: =IF(Tabla1[[#This Row],[Código_Actividad]]="","",CONCATENATE(Tabla1[[#This Row],[POA]],".",Tabla1[[#This Row],[SRS]],".",Tabla1[[#This Row],[AREA]],".",Tabla1[[#This Row],[TIPO]])) ->  | L169: =+Tabla1[[#This Row],[Precio Unitario]]*Tabla1[[#This Row],[Cantidad de Insumos]] -> 0.00
B170: =IF(Tabla1[[#This Row],[Código_Actividad]]="","",CONCATENATE(Tabla1[[#This Row],[POA]],".",Tabla1[[#This Row],[SRS]],".",Tabla1[[#This Row],[AREA]],".",Tabla1[[#This Row],[TIPO]])) ->  | L170: =+Tabla1[[#This Row],[Precio Unitario]]*Tabla1[[#This Row],[Cantidad de Insumos]] -> 0.00
B171: =IF(Tabla1[[#This Row],[Código_Actividad]]="","",CONCATENATE(Tabla1[[#This Row],[POA]],".",Tabla1[[#This Row],[SRS]],".",Tabla1[[#This Row],[AREA]],".",Tabla1[[#This Row],[TIPO]])) ->  | L171: =+Tabla1[[#This Row],[Precio Unitario]]*Tabla1[[#This Row],[Cantidad de Insumos]] -> 0.00
B172: =IF(Tabla1[[#This Row],[Código_Actividad]]="","",CONCATENATE(Tabla1[[#This Row],[POA]],".",Tabla1[[#This Row],[SRS]],".",Tabla1[[#This Row],[AREA]],".",Tabla1[[#This Row],[TIPO]])) ->  | L172: =+Tabla1[[#This Row],[Precio Unitario]]*Tabla1[[#This Row],[Cantidad de Insumos]] -> 0.00
B173: =IF(Tabla1[[#This Row],[Código_Actividad]]="","",CONCATENATE(Tabla1[[#This Row],[POA]],".",Tabla1[[#This Row],[SRS]],".",Tabla1[[#This Row],[AREA]],".",Tabla1[[#This Row],[TIPO]])) ->  | L173: =+Tabla1[[#This Row],[Precio Unitario]]*Tabla1[[#This Row],[Cantidad de Insumos]] -> 0.00
B174: =IF(Tabla1[[#This Row],[Código_Actividad]]="","",CONCATENATE(Tabla1[[#This Row],[POA]],".",Tabla1[[#This Row],[SRS]],".",Tabla1[[#This Row],[AREA]],".",Tabla1[[#This Row],[TIPO]])) ->  | L174: =+Tabla1[[#This Row],[Precio Unitario]]*Tabla1[[#This Row],[Cantidad de Insumos]] -> 0.00
B175: =IF(Tabla1[[#This Row],[Código_Actividad]]="","",CONCATENATE(Tabla1[[#This Row],[POA]],".",Tabla1[[#This Row],[SRS]],".",Tabla1[[#This Row],[AREA]],".",Tabla1[[#This Row],[TIPO]])) ->  | L175: =+Tabla1[[#This Row],[Precio Unitario]]*Tabla1[[#This Row],[Cantidad de Insumos]] -> 0.00
B176: =IF(Tabla1[[#This Row],[Código_Actividad]]="","",CONCATENATE(Tabla1[[#This Row],[POA]],".",Tabla1[[#This Row],[SRS]],".",Tabla1[[#This Row],[AREA]],".",Tabla1[[#This Row],[TIPO]])) ->  | L176: =+Tabla1[[#This Row],[Precio Unitario]]*Tabla1[[#This Row],[Cantidad de Insumos]] -> 0.00
B177: =IF(Tabla1[[#This Row],[Código_Actividad]]="","",CONCATENATE(Tabla1[[#This Row],[POA]],".",Tabla1[[#This Row],[SRS]],".",Tabla1[[#This Row],[AREA]],".",Tabla1[[#This Row],[TIPO]])) ->  | L177: =+Tabla1[[#This Row],[Precio Unitario]]*Tabla1[[#This Row],[Cantidad de Insumos]] -> 0.00
B178: =IF(Tabla1[[#This Row],[Código_Actividad]]="","",CONCATENATE(Tabla1[[#This Row],[POA]],".",Tabla1[[#This Row],[SRS]],".",Tabla1[[#This Row],[AREA]],".",Tabla1[[#This Row],[TIPO]])) ->  | L178: =+Tabla1[[#This Row],[Precio Unitario]]*Tabla1[[#This Row],[Cantidad de Insumos]] -> 0.00
B179: =IF(Tabla1[[#This Row],[Código_Actividad]]="","",CONCATENATE(Tabla1[[#This Row],[POA]],".",Tabla1[[#This Row],[SRS]],".",Tabla1[[#This Row],[AREA]],".",Tabla1[[#This Row],[TIPO]])) ->  | L179: =+Tabla1[[#This Row],[Precio Unitario]]*Tabla1[[#This Row],[Cantidad de Insumos]] -> 0.00
B180: =IF(Tabla1[[#This Row],[Código_Actividad]]="","",CONCATENATE(Tabla1[[#This Row],[POA]],".",Tabla1[[#This Row],[SRS]],".",Tabla1[[#This Row],[AREA]],".",Tabla1[[#This Row],[TIPO]])) ->  | L180: =+Tabla1[[#This Row],[Precio Unitario]]*Tabla1[[#This Row],[Cantidad de Insumos]] -> 0.00
B181: =IF(Tabla1[[#This Row],[Código_Actividad]]="","",CONCATENATE(Tabla1[[#This Row],[POA]],".",Tabla1[[#This Row],[SRS]],".",Tabla1[[#This Row],[AREA]],".",Tabla1[[#This Row],[TIPO]])) ->  | L181: =+Tabla1[[#This Row],[Precio Unitario]]*Tabla1[[#This Row],[Cantidad de Insumos]] -> 0.00
B182: =IF(Tabla1[[#This Row],[Código_Actividad]]="","",CONCATENATE(Tabla1[[#This Row],[POA]],".",Tabla1[[#This Row],[SRS]],".",Tabla1[[#This Row],[AREA]],".",Tabla1[[#This Row],[TIPO]])) ->  | L182: =+Tabla1[[#This Row],[Precio Unitario]]*Tabla1[[#This Row],[Cantidad de Insumos]] -> 0.00
B183: =IF(Tabla1[[#This Row],[Código_Actividad]]="","",CONCATENATE(Tabla1[[#This Row],[POA]],".",Tabla1[[#This Row],[SRS]],".",Tabla1[[#This Row],[AREA]],".",Tabla1[[#This Row],[TIPO]])) ->  | L183: =+Tabla1[[#This Row],[Precio Unitario]]*Tabla1[[#This Row],[Cantidad de Insumos]] -> 0.00
B184: =IF(Tabla1[[#This Row],[Código_Actividad]]="","",CONCATENATE(Tabla1[[#This Row],[POA]],".",Tabla1[[#This Row],[SRS]],".",Tabla1[[#This Row],[AREA]],".",Tabla1[[#This Row],[TIPO]])) ->  | L184: =+Tabla1[[#This Row],[Precio Unitario]]*Tabla1[[#This Row],[Cantidad de Insumos]] -> 0.00
B185: =IF(Tabla1[[#This Row],[Código_Actividad]]="","",CONCATENATE(Tabla1[[#This Row],[POA]],".",Tabla1[[#This Row],[SRS]],".",Tabla1[[#This Row],[AREA]],".",Tabla1[[#This Row],[TIPO]])) ->  | L185: =+Tabla1[[#This Row],[Precio Unitario]]*Tabla1[[#This Row],[Cantidad de Insumos]] -> 0.00
B186: =IF(Tabla1[[#This Row],[Código_Actividad]]="","",CONCATENATE(Tabla1[[#This Row],[POA]],".",Tabla1[[#This Row],[SRS]],".",Tabla1[[#This Row],[AREA]],".",Tabla1[[#This Row],[TIPO]])) ->  | L186: =+Tabla1[[#This Row],[Precio Unitario]]*Tabla1[[#This Row],[Cantidad de Insumos]] -> 0.00
B187: =IF(Tabla1[[#This Row],[Código_Actividad]]="","",CONCATENATE(Tabla1[[#This Row],[POA]],".",Tabla1[[#This Row],[SRS]],".",Tabla1[[#This Row],[AREA]],".",Tabla1[[#This Row],[TIPO]])) ->  | L187: =+Tabla1[[#This Row],[Precio Unitario]]*Tabla1[[#This Row],[Cantidad de Insumos]] -> 0.00
B188: =IF(Tabla1[[#This Row],[Código_Actividad]]="","",CONCATENATE(Tabla1[[#This Row],[POA]],".",Tabla1[[#This Row],[SRS]],".",Tabla1[[#This Row],[AREA]],".",Tabla1[[#This Row],[TIPO]])) ->  | L188: =+Tabla1[[#This Row],[Precio Unitario]]*Tabla1[[#This Row],[Cantidad de Insumos]] -> 0.00
B189: =IF(Tabla1[[#This Row],[Código_Actividad]]="","",CONCATENATE(Tabla1[[#This Row],[POA]],".",Tabla1[[#This Row],[SRS]],".",Tabla1[[#This Row],[AREA]],".",Tabla1[[#This Row],[TIPO]])) ->  | L189: =+Tabla1[[#This Row],[Precio Unitario]]*Tabla1[[#This Row],[Cantidad de Insumos]] -> 0.00
B190: =IF(Tabla1[[#This Row],[Código_Actividad]]="","",CONCATENATE(Tabla1[[#This Row],[POA]],".",Tabla1[[#This Row],[SRS]],".",Tabla1[[#This Row],[AREA]],".",Tabla1[[#This Row],[TIPO]])) ->  | L190: =+Tabla1[[#This Row],[Precio Unitario]]*Tabla1[[#This Row],[Cantidad de Insumos]] -> 0.00
B191: =IF(Tabla1[[#This Row],[Código_Actividad]]="","",CONCATENATE(Tabla1[[#This Row],[POA]],".",Tabla1[[#This Row],[SRS]],".",Tabla1[[#This Row],[AREA]],".",Tabla1[[#This Row],[TIPO]])) ->  | L191: =+Tabla1[[#This Row],[Precio Unitario]]*Tabla1[[#This Row],[Cantidad de Insumos]] -> 0.00
B192: =IF(Tabla1[[#This Row],[Código_Actividad]]="","",CONCATENATE(Tabla1[[#This Row],[POA]],".",Tabla1[[#This Row],[SRS]],".",Tabla1[[#This Row],[AREA]],".",Tabla1[[#This Row],[TIPO]])) ->  | L192: =+Tabla1[[#This Row],[Precio Unitario]]*Tabla1[[#This Row],[Cantidad de Insumos]] -> 0.00
B193: =IF(Tabla1[[#This Row],[Código_Actividad]]="","",CONCATENATE(Tabla1[[#This Row],[POA]],".",Tabla1[[#This Row],[SRS]],".",Tabla1[[#This Row],[AREA]],".",Tabla1[[#This Row],[TIPO]])) ->  | L193: =+Tabla1[[#This Row],[Precio Unitario]]*Tabla1[[#This Row],[Cantidad de Insumos]] -> 0.00
B194: =IF(Tabla1[[#This Row],[Código_Actividad]]="","",CONCATENATE(Tabla1[[#This Row],[POA]],".",Tabla1[[#This Row],[SRS]],".",Tabla1[[#This Row],[AREA]],".",Tabla1[[#This Row],[TIPO]])) ->  | L194: =+Tabla1[[#This Row],[Precio Unitario]]*Tabla1[[#This Row],[Cantidad de Insumos]] -> 0.00
B195: =IF(Tabla1[[#This Row],[Código_Actividad]]="","",CONCATENATE(Tabla1[[#This Row],[POA]],".",Tabla1[[#This Row],[SRS]],".",Tabla1[[#This Row],[AREA]],".",Tabla1[[#This Row],[TIPO]])) ->  | L195: =+Tabla1[[#This Row],[Precio Unitario]]*Tabla1[[#This Row],[Cantidad de Insumos]] -> 0.00
B196: =IF(Tabla1[[#This Row],[Código_Actividad]]="","",CONCATENATE(Tabla1[[#This Row],[POA]],".",Tabla1[[#This Row],[SRS]],".",Tabla1[[#This Row],[AREA]],".",Tabla1[[#This Row],[TIPO]])) ->  | L196: =+Tabla1[[#This Row],[Precio Unitario]]*Tabla1[[#This Row],[Cantidad de Insumos]] -> 0.00
B197: =IF(Tabla1[[#This Row],[Código_Actividad]]="","",CONCATENATE(Tabla1[[#This Row],[POA]],".",Tabla1[[#This Row],[SRS]],".",Tabla1[[#This Row],[AREA]],".",Tabla1[[#This Row],[TIPO]])) ->  | L197: =+Tabla1[[#This Row],[Precio Unitario]]*Tabla1[[#This Row],[Cantidad de Insumos]] -> 0.00
B198: =IF(Tabla1[[#This Row],[Código_Actividad]]="","",CONCATENATE(Tabla1[[#This Row],[POA]],".",Tabla1[[#This Row],[SRS]],".",Tabla1[[#This Row],[AREA]],".",Tabla1[[#This Row],[TIPO]])) ->  | L198: =+Tabla1[[#This Row],[Precio Unitario]]*Tabla1[[#This Row],[Cantidad de Insumos]] -> 0.00
B199: =IF(Tabla1[[#This Row],[Código_Actividad]]="","",CONCATENATE(Tabla1[[#This Row],[POA]],".",Tabla1[[#This Row],[SRS]],".",Tabla1[[#This Row],[AREA]],".",Tabla1[[#This Row],[TIPO]])) ->  | L199: =+Tabla1[[#This Row],[Precio Unitario]]*Tabla1[[#This Row],[Cantidad de Insumos]] -> 0.00
B200: =IF(Tabla1[[#This Row],[Código_Actividad]]="","",CONCATENATE(Tabla1[[#This Row],[POA]],".",Tabla1[[#This Row],[SRS]],".",Tabla1[[#This Row],[AREA]],".",Tabla1[[#This Row],[TIPO]])) ->  | L200: =+Tabla1[[#This Row],[Precio Unitario]]*Tabla1[[#This Row],[Cantidad de Insumos]] -> 0.00
... 14 more rows

Sheet PPNE3
A1: =+PPNE1!B1 -> Plan Operativo Anual
A2: =+PPNE1!B2 -> Servicio Nacional de Salud
A3: =+PPNE1!B3 -> Dirección de Planificación y Desarrollo
A4: Estimación de Ingresos
A5: =+PPNE1!C5 -> 2026
A6: Servicio Regional de Salud: | E6: =+PPNE1!B6 -> Cibao Norte
A7: CEAS: | E7: =+PPNE1!B7 -> 0
A8: Grupo | B8: Subgrupo | C8: Cuenta | D8: Auxiliar | E8: Descripción Ingresos por Cuenta | F8: Valor RD$ | G8: %
A9: 3 | E9: Donaciones | F9: =+F10 -> 0.00 | G9: =G10 -> 0.00
B10: 31 | E10: Donaciones Corrientes | F10: =SUM(F11:F11) -> 0.00 | G10: =G11 -> 0.00
C11: 312 | E11: Donaciones corrientes de organismos internacionales | F11: 0.00 | G11: =IFERROR(F11/$F$31*100,"0.00") -> 0.00
A12: 4 | E12: Transferencias | F12: =+F13+F19 -> 561,629,281.00 | G12: =G13+G19 -> 70.06
B13: 41 | E13: Transferencias Corrientes | F13: =SUM(F15:F18) -> 561,629,281.00 | G13: =SUM(G15:G18) -> 70.06
C14: 413 | E14: Transferencias Corrientes Recibidas de Instituciones Públicas Descentralizas y Autonomas No Financieras | F14: =SUM(F16:F19) -> 561,629,281.00 | G14: =SUM(G16:G19) -> 70.06
C15: 413 | D15: ´01 | E15: Aportes SNS Nomina | F15: 0.00 | G15: =IFERROR(F15/$F$31*100,"0.00") -> 0.00
C16: 413 | D16: ´02 | E16: Anticipos Financieros | F16: 561,629,281.00 | G16: =IFERROR(F16/$F$31*100,"0.00") -> 70.06
C17: 413 | D17: ´03 | E17: Aportes SNS Medicamentos | F17: 0.00 | G17: =IFERROR(F17/$F$31*100,"0.00") -> 0.00
C18: 414 | E18: Transferencias Corrientes Recibidas de Instituciones Públicas de la Seguridad Social | F18: 0.00 | G18: =IFERROR(F18/$F$31*100,"0.00") -> 0.00
B19: 42 | E19: Transferencia de Capital | F19: =SUM(F21:F22) -> 0.00 | G19: =G21+G22 -> 0.00
C20: 423 | E20: Tranferencia de Capital Recibidas de Instituciones Públicas Descentralizas y Autonomas No Financieras | F20: =+F21+F22 -> 0.00 | G20: =+G21+G22 -> 0.00
C21: 423 | D21: ´01 | E21: Aportes SNS Equipamiento | F21: 0.00 | G21: =IFERROR(F21/$F$31*100,"0.00") -> 0.00
C22: 423 | D22: ´02 | E22: Aportes para otros gastos de inversión del SNS | F22: 0.00 | G22: =IFERROR(F22/$F$31*100,"0.00") -> 0.00
A23: 5 | E23: Ingresos por Contraprestación | F23: =+F24 -> 240,000,000.00 | G23: =G24 -> 29.94
B24: 51 | E24: Venta de Bienes y Servicios | F24: =F25 -> 240,000,000.00 | G24: =G25 -> 29.94
C25: 512 | E25: Venta de Servicios del Estado | F25: =F26 -> 240,000,000.00 | G25: =G26 -> 29.94
C26: 512 | D26: ´99 | E26: Otras ventas de servicios | F26: =+F27+F28+F29+F30 -> 240,000,000.00 | G26: =+G27+G28+G29+G30 -> 29.94
C27: 513 | E27: Venta de Servicios a SENASA por afiliados regimen subsidiado | F27: 0.00 | G27: =IFERROR(F27/$F$31*100,"0.00") -> 0.00
C28: 512 | E28: Venta de Servicios a SENASA por afiliados regimen contributivo | F28: 84,000,000.00 | G28: =IFERROR(F28/$F$31*100,"0.00") -> 10.48
C29: 512 | E29: Venta de Servicios a otras ARS por atencion a Regimen contributivo | F29: 156,000,000.00 | G29: =IFERROR(F29/$F$31*100,"0.00") -> 19.46
C30: 512 | E30: Venta de Servicios a ARL | F30: 0.00 | G30: =IFERROR(F30/$F$31*100,"0.00") -> 0.00
E31: Total Ingresos | F31: =+F23+F12+F9 -> 801,629,281.00 | G31: =+G23+G12+G9 -> 100.00

Sheet PPNE4
A1: =+PPNE1!B1 -> Plan Operativo Anual
A2: Servicio Nacional de Salud
A3: Dirección de Planificación y Desarrollo
A4: Consolidado Presupuesto Estimado de Ingresos y Gastos Nivel Especializado por Actividad Especifica
A5: =+PPNE1!C5 -> 2026
A6: Servicio Regional de Salud: | F6: =+PPNE1!B6 -> Cibao Norte
A7: Establecimiento: | F7: =+PPNE1!B7 -> 0
A8: Estimación de Ingresos
A9: Anticipos Financieros | G9: =+PPNE3!F16 -> 561,629,281.00
A10: Venta de Servicios y Otros Ingresos | G10: =+PPNE3!F25 -> 240,000,000.00
A11: Aportes SNS Nómina | G11: =+PPNE3!F15 -> 0.00
A12: Otros Aportes | G12: =+PPNE3!F9+PPNE3!F17+PPNE3!F21+PPNE3!F22 -> 0.00
A13: Transferencias Corrientes | G13: =+PPNE3!F18 -> 0.00
A14: Total Ingresos RD$ | G14: =SUM(G9:G13) -> 801,629,281.00
A15: Estimación de Gastos
A16: Tipo | B16: Objeto | C16: Cuenta | D16: Sub-Cuenta | E16: Auxiliar | F16: Descripción Gasto por Cuenta | G16: Consultas Externa | H16: Emergencias | I16: Hospitalización | J16: Apoyo Diagnóstico | L16: Servicios de Apoyo | N16: Total RD$ | O16: %
J17: Servicios de Laboratorios y Banco de Sangre | K17: Servicios de Imágenes RX | L17: Gestión de Usuario y Educación para la Salud | M17: Gestión Técnica y Administrativa
A18: 2 | F18: Egresos | G18: =+G19+G67+G171+G255+G272+G325 -> 152,476,061.21 | H18: =+H19+H67+H171+H255+H272+H325 -> 89,102,083.42 | I18: 218,919,268.44 | J18: 57,761,365.89 | K18: 37,689,236.78 | L18: 8,723,981.45 | M18: =+M19+M67+M171+M255+M272+M325 -> 236,957,283.82 | N18: =+N19+N67+N171+N255+N272+N325 -> 801,629,281.00 | O18: 123,970.66
A19: 2 | B19: 1 | F19: Servicios Personales | G19: 83,980,602.55 | H19: 46,481,575.04 | I19: 116,601,573.55 | J19: 31,328,164.21 | K19: 18,147,770.93 | L19: 3,140,043.68 | M19: 131,820,633.89 | N19: 431,500,363.85 | O19: 53.83
A20: 2 | B20: 1 | C20: 1 | F20: Remuneraciones | G20: 54,360,395.69 | H20: 28,052,560.87 | I20: 70,774,690.61 | J20: 19,015,533.51 | K20: 11,015,313.37 | L20: 1,905,940.16 | M20: 80,012,338.56 | N20: 265,136,772.77 | O20: 33.07
A21: 2 | B21: 1 | C21: 1 | D21: 1 | F21: Remuneraciones al personal fijo | G21: 27,046,729.88 | H21: 6,078,054.85 | I21: 15,334,516.30 | J21: 4,120,032.26 | K21: 2,386,651.23 | L21: 412,953.69 | M21: 17,336,006.69 | N21: 72,714,944.91 | O21: 9.07
A22: 2 | B22: 1 | C22: 1 | D22: 1 | E22: `01 | F22: Sueldos fijos | G22: 27,046,729.88 | H22: 6,078,054.85 | I22: 15,334,516.30 | J22: 4,120,032.26 | K22: 2,386,651.23 | L22: 412,953.69 | M22: 17,336,006.69 | N22: 72,714,944.91 | O22: 9.07
A23: 2 | B23: 1 | C23: 1 | D23: 1 | E23: `02 | F23: Sueldos a medicos | N23: 0.00 | O23: 0.00
A24: 2 | B24: 1 | C24: 1 | D24: 1 | E24: `05 | F24: Incentivos y escalafón | N24: 0.00 | O24: 0.00
A25: 2 | B25: 1 | C25: 1 | D25: 1 | E25: `06 | F25: Nuevas plazas a medicos | N25: 0.00 | O25: 0.00
A26: 2 | B26: 1 | C26: 1 | D26: 2 | F26: Remuneraciones al personal con carácter transitorio | G26: 22,872,611.47 | H26: 20,571,877.97 | I26: 51,901,439.78 | J26: 13,944,724.58 | K26: 8,077,896.47 | L26: 1,397,689.46 | M26: 58,675,714.94 | N26: 177,441,954.68 | O26: 22.14
A27: 2 | B27: 1 | C27: 1 | D27: 2 | E27: `03 | F27: Suplencias | N27: 0.00 | O27: 0.00
A28: 2 | B28: 1 | C28: 1 | D28: 2 | E28: `05 | F28: Sueldo al personal nominal en período probatorio | N28: 0.00 | O28: 0.00
A29: 2 | B29: 1 | C29: 1 | D29: 2 | E29: `06 | F29: Jornales | N29: 0.00 | O29: 0.00
A30: 2 | B30: 1 | C30: 1 | D30: 2 | E30: `08 | F30: Empleados temporales | G30: 12,198,726.12 | H30: 14,026,280.43 | I30: 35,387,345.31 | J30: 9,507,766.76 | K30: 5,507,656.69 | L30: 952,970.09 | M30: 40,006,169.28 | N30: 117,586,914.68 | O30: 14.67
A31: 2 | B31: 1 | C31: 1 | D31: 2 | E31: `09 | F31: Personal de carácter eventual | G31: 10,673,885.35 | H31: 6,545,597.54 | I31: 16,514,094.48 | J31: 4,436,957.82 | K31: 2,570,239.79 | L31: 444,719.36 | M31: 18,669,545.66 | N31: 59,855,040.00 | O31: 7.47
A32: 2 | B32: 1 | C32: 1 | D32: 2 | E32: `11 | F32: Interinato | N32: 0.00 | O32: 0.00
A33: 2 | B33: 1 | C33: 1 | D33: 3 | F33: Sueldos al personal fijo en trámite de pensiones | G33: 0.00 | H33: 0.00 | I33: 0.00 | J33: 0.00 | K33: 0.00 | L33: 0.00 | M33: 0.00 | N33: 0.00 | O33: 0.00
A34: 2 | B34: 1 | C34: 1 | D34: 3 | E34: `01 | F34: Sueldos al personal fijo en trámite de pensiones | N34: 0.00 | O34: 0.00
A35: 2 | B35: 1 | C35: 1 | D35: 4 | F35: Sueldo anual No. 13 | G35: 4,441,054.33 | H35: 1,402,628.04 | I35: 3,538,734.53 | J35: 950,776.68 | K35: 550,765.67 | L35: 95,297.01 | M35: 4,000,616.93 | N35: 14,979,873.19 | O35: 1.87
A36: 2 | B36: 1 | C36: 1 | D36: 4 | E36: `01 | F36: Sueldo anual No. 13 | G36: 4,441,054.33 | H36: 1,402,628.04 | I36: 3,538,734.53 | J36: 950,776.68 | K36: 550,765.67 | L36: 95,297.01 | M36: 4,000,616.93 | N36: 14,979,873.19 | O36: 1.87
A37: 2 | B37: 1 | C37: 1 | D37: 5 | F37: Prestacianes economicas | G37: 0.00 | H37: 0.00 | I37: 0.00 | J37: 0.00 | K37: 0.00 | L37: 0.00 | M37: 0.00 | N37: 0.00 | O37: 0.00
A38: 2 | B38: 1 | C38: 1 | D38: 5 | E38: `01 | F38: Prestacianes economicas | N38: 0.00 | O38: 0.00
A39: 2 | B39: 1 | C39: 1 | D39: 5 | E39: `02 | F39: Pago de porcentaje por desvinculación de cargo | N39: 0.00 | O39: 0.00
A40: 2 | B40: 1 | C40: 1 | D40: 5 | E40: `03 | F40: Prestacion laboral por desvinculación | N40: 0.00 | O40: 0.00
A41: 2 | B41: 1 | C41: 1 | D41: 5 | E41: `04 | F41: Proporción de vacaciones no disfrutadas | N41: 0.00 | O41: 0.00
A42: 2 | B42: 1 | C42: 2 | F42: Sobresueldos | G42: 11,891,010.05 | H42: 7,291,980.71 | I42: 18,397,168.12 | J42: 4,942,896.45 | K42: 2,863,319.79 | L42: 495,429.94 | M42: 20,798,401.68 | N42: 66,680,206.75 | O42: 8.32
A43: 2 | B43: 1 | C43: 2 | D43: 1 | F43: Primas por antigüedad | G43: 0.00 | H43: 0.00 | I43: 0.00 | J43: 0.00 | K43: 0.00 | L43: 0.00 | M43: 0.00 | N43: 0.00 | O43: 0.00
A44: 2 | B44: 1 | C44: 2 | D44: 1 | E44: `01 | F44: Primas por antigüedad | N44: 0.00 | O44: 0.00
A45: 2 | B45: 1 | C45: 2 | D45: 2 | F45: Compensación | G45: 11,891,010.05 | H45: 7,291,980.71 | I45: 18,397,168.12 | J45: 4,942,896.45 | K45: 2,863,319.79 | L45: 495,429.94 | M45: 20,798,401.68 | N45: 66,680,206.75 | O45: 8.32
A46: 2 | B46: 1 | C46: 2 | D46: 2 | E46: `03 | F46: Pago de horas extraordinarias, Horas extraordinarias fin de año (Reglamento 523-09) | N46: 0.00 | O46: 0.00
A47: 2 | B47: 1 | C47: 2 | D47: 2 | E47: `04 | F47: Prima de transporte | N47: 0.00 | O47: 0.00
A48: 2 | B48: 1 | C48: 2 | D48: 2 | E48: `05 | F48: Compensación servicios de Seguridad | N48: 0.00 | O48: 0.00
A49: 2 | B49: 1 | C49: 2 | D49: 2 | E49: `06 | F49: Incentivo por rendimiento individual | N49: 0.00 | O49: 0.00
A50: 2 | B50: 1 | C50: 2 | D50: 2 | E50: `07 | F50: Compensación por distancia | N50: 0.00 | O50: 0.00
A51: 2 | B51: 1 | C51: 2 | D51: 2 | E51: `08 | F51: Compensaciones especiales | G51: 11,891,010.05 | H51: 7,291,980.71 | I51: 18,397,168.12 | J51: 4,942,896.45 | K51: 2,863,319.79 | L51: 495,429.94 | M51: 20,798,401.68 | N51: 66,680,206.75 | O51: 8.32
A52: 2 | B52: 1 | C52: 2 | D52: 2 | E52: `09 | F52: Bono por desempeño | N52: 0.00 | O52: 0.00
A53: 2 | B53: 1 | C53: 2 | D53: 2 | E53: `10 | F53: Compensación por cumplimiento de indicadores | N53: 0.00 | O53: 0.00
A54: 2 | B54: 1 | C54: 3 | F54: Dietas y Gastos de Representación | G54: 0.00 | H54: 0.00 | I54: 0.00 | J54: 0.00 | K54: 0.00 | L54: 0.00 | M54: 0.00 | N54: 0.00 | O54: 0.00
A55: 2 | B55: 1 | C55: 3 | D55: 2 | F55: Gastos de representación | G55: 0.00 | H55: 0.00 | I55: 0.00 | J55: 0.00 | K55: 0.00 | L55: 0.00 | M55: 0.00 | N55: 0.00 | O55: 0.00
A56: 2 | B56: 1 | C56: 3 | D56: 2 | E56: `01 | F56: Gastos de representación en el país | N56: 0.00 | O56: 0.00
A57: 2 | B57: 1 | C57: 3 | D57: 2 | E57: `02 | F57: Gastos de representación en el exterior | N57: 0.00 | O57: 0.00
A58: 2 | B58: 1 | C58: 5 | F58: Contribuciones a la Seguridad Social y Riesgo Laboral | G58: 17,729,196.82 | H58: 11,137,033.47 | I58: 27,429,714.82 | J58: 7,369,734.25 | K58: 4,269,137.76 | L58: 738,673.58 | M58: 31,009,893.64 | N58: 99,683,384.33 | O58: 12.44
A59: 2 | B59: 1 | C59: 5 | D59: 1 | F59: Contribuciones al seguro de salud | G59: 7,575,413.03 | H59: 4,645,506.60 | I59: 11,720,295.12 | J59: 3,148,974.06 | K59: 1,824,136.88 | L59: 315,623.86 | M59: 13,250,050.45 | N59: 42,480,000.00 | O59: 5.30
A60: 2 | B60: 1 | C60: 5 | D60: 1 | E60: `01 | F60: Contribuciones al seguro de salud | G60: 7,575,413.03 | H60: 4,645,506.60 | I60: 11,720,295.12 | J60: 3,148,974.06 | K60: 1,824,136.88 | L60: 315,623.86 | M60: 13,250,050.45 | N60: 42,480,000.00 | O60: 5.30
A61: 2 | B61: 1 | C61: 5 | D61: 2 | F61: Contribuciones al seguro de pensiones | G61: 9,090,495.63 | H61: 5,574,607.92 | I61: 14,064,354.15 | J61: 3,778,768.87 | K61: 2,188,964.26 | L61: 378,748.63 | M61: 15,900,060.54 | N61: 50,976,000.00 | O61: 6.36
A62: 2 | B62: 1 | C62: 5 | D62: 2 | E62: `01 | F62: Contribuciones al seguro de pensiones | G62: 9,090,495.63 | H62: 5,574,607.92 | I62: 14,064,354.15 | J62: 3,778,768.87 | K62: 2,188,964.26 | L62: 378,748.63 | M62: 15,900,060.54 | N62: 50,976,000.00 | O62: 6.36
A63: 2 | B63: 1 | C63: 5 | D63: 3 | F63: Contribuciones al seguro de riesgo laboral | G63: 1,063,288.15 | H63: 916,918.95 | I63: 1,645,065.55 | J63: 441,991.32 | K63: 256,036.62 | L63: 44,301.10 | M63: 1,859,782.65 | N63: 6,227,384.33 | O63: 0.78
A64: 2 | B64: 1 | C64: 5 | D64: 3 | E64: `01 | F64: Contribuciones al seguro de riesgo laboral | G64: 1,063,288.15 | H64: 916,918.95 | I64: 1,645,065.55 | J64: 441,991.32 | K64: 256,036.62 | L64: 44,301.10 | M64: 1,859,782.65 | N64: 6,227,384.33 | O64: 0.78
A65: 2 | B65: 1 | C65: 5 | D65: 4 | F65: Contribuciones al plan de retiro complementario | G65: 0.00 | H65: 0.00 | I65: 0.00 | J65: 0.00 | K65: 0.00 | L65: 0.00 | M65: 0.00 | N65: 0.00 | O65: 0.00
A66: 2 | B66: 1 | C66: 5 | D66: 4 | E66: `01 | F66: Contribuciones al plan de retiro complementario | N66: 0.00 | O66: 0.00
A67: 2 | B67: 2 | F67: Contratacion de servicios | G67: 9,297,336.99 | H67: 6,030,045.98 | I67: 13,919,510.55 | J67: 4,361,184.72 | K67: 4,208,158.32 | L67: 1,731,315.95 | M67: 15,485,308.26 | N67: 55,032,860.76 | O67: 6.87
A68: 2 | B68: 2 | C68: 1 | F68: Servicios Básicos | G68: 1,328,500.18 | H68: 814,682.49 | I68: 2,055,388.16 | J68: 552,235.58 | K68: 319,898.89 | L68: 55,350.96 | M68: 2,431,661.35 | N68: 7,557,717.60 | O68: 0.94
A69: 2 | B69: 2 | C69: 1 | D69: 2 | F69: Servicios telefónico de larga distancia | G69: 0.00 | H69: 0.00 | I69: 0.00 | J69: 0.00 | K69: 0.00 | L69: 0.00 | M69: 108,000.00 | N69: 108,000.00 | O69: 0.01
A70: 2 | B70: 2 | C70: 1 | D70: 2 | E70: `01 | F70: Servicios telefónico de larga distancia | M70: 108,000.00 | N70: 108,000.00 | O70: 0.01
A71: 2 | B71: 2 | C71: 1 | D71: 3 | F71: Teléfono local | G71: 848,446.26 | H71: 520,296.74 | I71: 1,312,673.05 | J71: 352,685.09 | K71: 204,303.33 | L71: 35,349.87 | M71: 1,484,005.65 | N71: 4,757,760.00 | O71: 0.59
A72: 2 | B72: 2 | C72: 1 | D72: 3 | E72: `01 | F72: Teléfono local | G72: 848,446.26 | H72: 520,296.74 | I72: 1,312,673.05 | J72: 352,685.09 | K72: 204,303.33 | L72: 35,349.87 | M72: 1,484,005.65 | N72: 4,757,760.00 | O72: 0.59
A73: 2 | B73: 2 | C73: 1 | D73: 5 | F73: Servicio de internet y televisión por cable | G73: 32,195.51 | H73: 19,743.40 | I73: 49,811.25 | J73: 13,383.14 | K73: 7,752.58 | L73: 1,341.40 | M73: 56,312.71 | N73: 180,540.00 | O73: 0.02
A74: 2 | B74: 2 | C74: 1 | D74: 5 | E74: `01 | F74: Servicio de internet y televisión por cable | G74: 32,195.51 | H74: 19,743.40 | I74: 49,811.25 | J74: 13,383.14 | K74: 7,752.58 | L74: 1,341.40 | M74: 56,312.71 | N74: 180,540.00 | O74: 0.02
A75: 2 | B75: 2 | C75: 1 | D75: 6 | F75: Electricidad | G75: 0.00 | H75: 0.00 | I75: 0.00 | J75: 0.00 | K75: 0.00 | L75: 0.00 | M75: 0.00 | N75: 0.00 | O75: 0.00
A76: 2 | B76: 2 | C76: 1 | D76: 6 | E76: `01 | F76: Energía eléctrica | N76: 0.00 | O76: 0.00
A77: 2 | B77: 2 | C77: 1 | D77: 6 | E77: `02 | F77: Electricidad no cortable | N77: 0.00 | O77: 0.00
A78: 2 | B78: 2 | C78: 1 | D78: 7 | F78: Agua | G78: 23,635.29 | H78: 14,493.98 | I78: 36,567.32 | J78: 9,824.80 | K78: 5,691.31 | L78: 984.75 | M78: 41,340.16 | N78: 132,537.60 | O78: 0.02
A79: 2 | B79: 2 | C79: 1 | D79: 7 | E79: `01 | F79: Agua | G79: 23,635.29 | H79: 14,493.98 | I79: 36,567.32 | J79: 9,824.80 | K79: 5,691.31 | L79: 984.75 | M79: 41,340.16 | N79: 132,537.60 | O79: 0.02
A80: 2 | B80: 2 | C80: 1 | D80: 8 | F80: Recolección de residuos sólidos | G80: 424,223.13 | H80: 260,148.37 | I80: 656,336.53 | J80: 176,342.55 | K80: 102,151.67 | L80: 17,674.94 | M80: 742,002.83 | N80: 2,378,880.00 | O80: 0.30
A81: 2 | B81: 2 | C81: 1 | D81: 8 | E81: `01 | F81: Recolección de residuos sólidos | G81: 424,223.13 | H81: 260,148.37 | I81: 656,336.53 | J81: 176,342.55 | K81: 102,151.67 | L81: 17,674.94 | M81: 742,002.83 | N81: 2,378,880.00 | O81: 0.30
A82: 2 | B82: 2 | C82: 2 | F82: Publicidad Impresión y Encuadernación | G82: 1,277,610.84 | H82: 1,112,071.12 | I82: 1,511,796.67 | J82: 1,027,517.03 | K82: 952,663.73 | L82: 867,432.75 | M82: 748,627.85 | N82: 7,497,720.00 | O82: 0.94
A83: 2 | B83: 2 | C83: 2 | D83: 1 | F83: Publicidad y propaganda | G83: 849,600.00 | H83: 849,600.00 | I83: 849,600.00 | J83: 849,600.00 | K83: 849,600.00 | L83: 849,600.00 | M83: 0.00 | N83: 5,097,600.00 | O83: 0.64
A84: 2 | B84: 2 | C84: 2 | D84: 1 | E84: `01 | F84: Publicidad y propaganda | G84: 849,600.00 | H84: 849,600.00 | I84: 849,600.00 | J84: 849,600.00 | K84: 849,600.00 | L84: 849,600.00 | M84: 0.00 | N84: 5,097,600.00 | O84: 0.64
A85: 2 | B85: 2 | C85: 2 | D85: 2 | F85: Impresión y encuadernación | G85: 428,010.84 | H85: 262,471.12 | I85: 662,196.67 | J85: 177,917.03 | K85: 103,063.73 | L85: 17,832.75 | M85: 748,627.85 | N85: 2,400,120.00 | O85: 0.30
A86: 2 | B86: 2 | C86: 2 | D86: 2 | E86: `01 | F86: Impresión y encuadernación | G86: 428,010.84 | H86: 262,471.12 | I86: 662,196.67 | J86: 177,917.03 | K86: 103,063.73 | L86: 17,832.75 | M86: 748,627.85 | N86: 2,400,120.00 | O86: 0.30
A87: 2 | B87: 2 | C87: 3 | F87: Viáticos | G87: 11,454.02 | H87: 7,024.01 | I87: 17,721.09 | J87: 4,761.25 | K87: 2,758.09 | L87: 477.22 | M87: 20,034.08 | N87: 64,229.76 | O87: 0.01
A88: 2 | B88: 2 | C88: 3 | D88: 1 | F88: Viáticos dentro del país | G88: 8,908.69 | H88: 5,463.12 | I88: 13,783.07 | J88: 3,703.19 | K88: 2,145.18 | L88: 371.17 | M88: 15,582.06 | N88: 49,956.48 | O88: 0.01
A89: 2 | B89: 2 | C89: 3 | D89: 1 | E89: `01 | F89: Viáticos dentro del país | G89: 8,908.69 | H89: 5,463.12 | I89: 13,783.07 | J89: 3,703.19 | K89: 2,145.18 | L89: 371.17 | M89: 15,582.06 | N89: 49,956.48 | O89: 0.01
A90: 2 | B90: 2 | C90: 3 | D90: 2 | F90: Viáticos fuera del país | G90: 2,545.34 | H90: 1,560.89 | I90: 3,938.02 | J90: 1,058.06 | K90: 612.91 | L90: 106.05 | M90: 4,452.02 | N90: 14,273.28 | O90: 0.00
A91: 2 | B91: 2 | C91: 3 | D91: 2 | E91: `01 | F91: Viáticos fuera del país | G91: 2,545.34 | H91: 1,560.89 | I91: 3,938.02 | J91: 1,058.06 | K91: 612.91 | L91: 106.05 | M91: 4,452.02 | N91: 14,273.28 | O91: 0.00
A92: 2 | B92: 2 | C92: 4 | F92: Transporte y Alamcenaje | G92: 319,076.40 | H92: 195,668.74 | I92: 493,658.83 | J92: 132,634.79 | K92: 76,832.65 | L92: 13,294.08 | M92: 558,092.13 | N92: 1,789,257.60 | O92: 0.22
A93: 2 | B93: 2 | C93: 4 | D93: 1 | F93: Pasajes y gastos de transporte | G93: 318,167.35 | H93: 195,111.28 | I93: 492,252.40 | J93: 132,256.91 | K93: 76,613.75 | L93: 13,256.20 | M93: 556,502.12 | N93: 1,784,160.00 | O93: 0.22
A94: 2 | B94: 2 | C94: 4 | D94: 1 | E94: `01 | F94: Pasajes y gastos de transporte | G94: 318,167.35 | H94: 195,111.28 | I94: 492,252.40 | J94: 132,256.91 | K94: 76,613.75 | L94: 13,256.20 | M94: 556,502.12 | N94: 1,784,160.00 | O94: 0.22
A95: 2 | B95: 2 | C95: 4 | D95: 2 | F95: Fletes | G95: 0.00 | H95: 0.00 | I95: 0.00 | J95: 0.00 | K95: 0.00 | L95: 0.00 | M95: 0.00 | N95: 0.00 | O95: 0.00
A96: 2 | B96: 2 | C96: 4 | D96: 2 | E96: `01 | F96: Fletes | N96: 0.00 | O96: 0.00
A97: 2 | B97: 2 | C97: 4 | D97: 4 | F97: Peaje | G97: 909.05 | H97: 557.46 | I97: 1,406.44 | J97: 377.88 | K97: 218.90 | L97: 37.87 | M97: 1,590.01 | N97: 5,097.60 | O97: 0.00
A98: 2 | B98: 2 | C98: 4 | D98: 4 | E98: `01 | F98: Peaje | G98: 909.05 | H98: 557.46 | I98: 1,406.44 | J98: 377.88 | K98: 218.90 | L98: 37.87 | M98: 1,590.01 | N98: 5,097.60 | O98: 0.00
A99: 2 | B99: 2 | C99: 5 | F99: Alquileres y Rentas | G99: 630,395.57 | H99: 386,580.48 | I99: 975,316.08 | J99: 262,045.03 | K99: 416,671.07 | L99: 26,264.95 | M99: 1,102,616.20 | N99: 3,799,889.37 | O99: 0.47
A100: 2 | B100: 2 | C100: 5 | D100: 1 | F100: Alquilleres y rentas de edificios y locales | G100: 0.00 | H100: 0.00 | I100: 0.00 | J100: 0.00 | K100: 0.00 | L100: 0.00 | M100: 0.00 | N100: 0.00 | O100: 0.00
A101: 2 | B101: 2 | C101: 5 | D101: 1 | E101: `01 | F101: Alquilleres y rentas de edificios y locales | N101: 0.00 | O101: 0.00
A102: 2 | B102: 2 | C102: 5 | D102: 2 | F102: Alquileres de máquinas y equipos de producción | G102: 0.00 | H102: 0.00 | I102: 0.00 | J102: 0.00 | K102: 0.00 | L102: 0.00 | M102: 0.00 | N102: 0.00 | O102: 0.00
A103: 2 | B103: 2 | C103: 5 | D103: 2 | E103: `01 | F103: Alquileres de máquinas y equipos de producción | N103: 0.00 | O103: 0.00
A104: 2 | B104: 2 | C104: 5 | D104: 3 | F104: Alquileres de equipos | G104: 380,406.94 | H104: 233,278.76 | I104: 588,546.34 | J104: 158,128.88 | K104: 91,600.86 | L104: 15,849.37 | M104: 665,364.53 | N104: 2,133,175.68 | O104: 0.27
A105: 2 | B105: 2 | C105: 5 | D105: 3 | E105: `01 | F105: Alquiler de equipo educacional | N105: 0.00 | O105: 0.00
A106: 2 | B106: 2 | C106: 5 | D106: 3 | E106: `02 | F106: Alquiler de equipo para computación | G106: 53,027.89 | H106: 32,518.55 | I106: 82,042.07 | J106: 22,042.82 | K106: 12,768.96 | L106: 2,209.37 | M106: 92,750.35 | N106: 297,360.00 | O106: 0.04
A107: 2 | B107: 2 | C107: 5 | D107: 3 | E107: `03 | F107: Alquiler de equipo de comunicación | G107: 9,211.70 | H107: 5,648.94 | I107: 14,251.88 | J107: 3,829.15 | K107: 2,218.15 | L107: 383.80 | M107: 16,112.06 | N107: 51,655.68 | O107: 0.01
A108: 2 | B108: 2 | C108: 5 | D108: 3 | E108: `04 | F108: Alquiler de equipo de oficina y muebles | G108: 318,167.35 | H108: 195,111.28 | I108: 492,252.40 | J108: 132,256.91 | K108: 76,613.75 | L108: 13,256.20 | M108: 556,502.12 | N108: 1,784,160.00 | O108: 0.22
A109: 2 | B109: 2 | C109: 5 | D109: 3 | E109: `05 | F109: Alquiler de equipos sanitarios y de laboratorios | N109: 0.00 | O109: 0.00
A110: 2 | B110: 2 | C110: 5 | D110: 4 | F110: Alquileres de equipos de transporte, tracción y elevación | G110: 0.00 | H110: 0.00 | I110: 0.00 | J110: 0.00 | K110: 0.00 | L110: 0.00 | M110: 0.00 | N110: 0.00 | O110: 0.00
A111: 2 | B111: 2 | C111: 5 | D111: 4 | E111: `01 | F111: Alquileres de equipos de transporte, tracción y elevación | N111: 0.00 | O111: 0.00
A112: 2 | B112: 2 | C112: 5 | D112: 8 | F112: Otros alquileres | G112: 53,027.89 | H112: 32,518.55 | I112: 82,042.07 | J112: 22,042.82 | K112: 12,768.96 | L112: 2,209.37 | M112: 92,750.35 | N112: 297,360.00 | O112: 0.04
A113: 2 | B113: 2 | C113: 5 | D113: 8 | E113: `01 | F113: Otros alquileres | G113: 53,027.89 | H113: 32,518.55 | I113: 82,042.07 | J113: 22,042.82 | K113: 12,768.96 | L113: 2,209.37 | M113: 92,750.35 | N113: 297,360.00 | O113: 0.04
A114: 2 | B114: 2 | C114: 5 | D114: 9 | F114: Derechos de uso | G114: 196,960.74 | H114: 120,783.17 | I114: 304,727.67 | J114: 81,873.33 | K114: 312,301.25 | L114: 8,206.22 | M114: 344,501.31 | N114: 1,369,353.69 | O114: 0.17
A115: 2 | B115: 2 | C115: 5 | D115: 8 | E115: `01 | F115: Licencias informaticas | G115: 196,960.74 | H115: 120,783.17 | I115: 304,727.67 | J115: 81,873.33 | K115: 312,301.25 | L115: 8,206.22 | M115: 344,501.31 | N115: 1,369,353.69 | O115: 0.17
A116: 2 | B116: 2 | C116: 6 | F116: Seguros | G116: 249,988.63 | H116: 153,301.72 | I116: 386,769.74 | J116: 103,916.14 | K116: 60,196.52 | L116: 10,415.59 | M116: 437,251.66 | N116: 1,401,840.00 | O116: 0.17
A117: 2 | B117: 2 | C117: 6 | D117: 1 | F117: Seguro de bienes inmuebles e infraestructura | G117: 249,988.63 | H117: 153,301.72 | I117: 386,769.74 | J117: 103,916.14 | K117: 60,196.52 | L117: 10,415.59 | M117: 437,251.66 | N117: 1,401,840.00 | O117: 0.17
A118: 2 | B118: 2 | C118: 6 | D118: 1 | E118: `01 | F118: Seguro de bienes inmuebles e infraestructura | G118: 249,988.63 | H118: 153,301.72 | I118: 386,769.74 | J118: 103,916.14 | K118: 60,196.52 | L118: 10,415.59 | M118: 437,251.66 | N118: 1,401,840.00 | O118: 0.17
A119: 2 | B119: 2 | C119: 6 | D119: 2 | F119: Seguro de bienes muebles | G119: 0.00 | H119: 0.00 | I119: 0.00 | J119: 0.00 | K119: 0.00 | L119: 0.00 | M119: 0.00 | N119: 0.00 | O119: 0.00
A120: 2 | B120: 2 | C120: 6 | D120: 2 | E120: `01 | F120: Seguro de bienes muebles | N120: 0.00 | O120: 0.00
A121: 2 | B121: 2 | C121: 6 | D121: 3 | F121: Seguros de personas | G121: 0.00 | H121: 0.00 | I121: 0.00 | J121: 0.00 | K121: 0.00 | L121: 0.00 | M121: 0.00 | N121: 0.00 | O121: 0.00
A122: 2 | B122: 2 | C122: 6 | D122: 3 | E122: `01 | F122: Seguros de personas | N122: 0.00 | O122: 0.00
A123: 2 | B123: 2 | C123: 6 | D123: 9 | F123: Otros seguros | G123: 0.00 | H123: 0.00 | I123: 0.00 | J123: 0.00 | K123: 0.00 | L123: 0.00 | M123: 0.00 | N123: 0.00 | O123: 0.00
A124: 2 | B124: 2 | C124: 6 | D124: 9 | E124: `01 | F124: Otros seguros | N124: 0.00 | O124: 0.00
A125: 2 | B125: 2 | C125: 7 | F125: Servicios de Conservación, Reparaciones Menores e Instalaciones Temporales | G125: 4,493,735.01 | H125: 2,755,714.51 | I125: 6,952,479.07 | J125: 1,867,971.41 | K125: 2,141,572.74 | L125: 187,228.07 | M125: 7,859,929.93 | N125: 26,258,630.74 | O125: 3.28
A126: 2 | B126: 2 | C126: 7 | D126: 1 | F126: Contratación de mantenimiento y reparaciones menores | G126: 2,201,415.03 | H126: 1,349,984.22 | I126: 3,405,917.76 | J126: 915,091.86 | K126: 1,059,841.55 | L126: 91,720.29 | M126: 3,850,464.66 | N126: 12,874,435.37 | O126: 1.61
A127: 2 | B127: 2 | C127: 7 | D127: 1 | E127: `01 | F127: Mantenimiento y reparaciones menores en edificaciones | G127: 984,803.69 | H127: 603,915.86 | I127: 1,523,638.37 | J127: 409,366.63 | K127: 502,011.48 | L127: 41,031.10 | M127: 1,722,506.56 | N127: 5,787,273.69 | O127: 0.72
A128: 2 | B128: 2 | C128: 7 | D128: 1 | E128: `06 | F128: Mantenimiento y reparación de Instalaciones eléctricas | G128: 166,659.09 | H128: 102,201.15 | I128: 257,846.49 | J128: 69,277.43 | K128: 40,131.01 | L128: 6,943.72 | M128: 291,501.11 | N128: 934,560.00 | O128: 0.12
A129: 2 | B129: 2 | C129: 7 | D129: 1 | E129: `07 | F129: Mantenimiento y reparación, servicios de pintura y sus derivados | G129: 171,204.33 | H129: 104,988.45 | I129: 264,878.67 | J129: 71,166.81 | K129: 306,099.18 | L129: 7,133.10 | M129: 299,451.14 | N129: 1,224,921.69 | O129: 0.15
A130: 2 | B130: 2 | C130: 7 | D130: 1 | E130: `99 | F130: Otros mantenimientos, reparaciones y sus derivados, no identificados precedentamente. | G130: 878,747.91 | H130: 538,878.77 | I130: 1,359,554.23 | J130: 365,280.99 | K130: 211,599.88 | L130: 36,612.37 | M130: 1,537,005.85 | N130: 4,927,680.00 | O130: 0.61
A131: 2 | B131: 2 | C131: 7 | D131: 2 | F131: Mantenimientos y reparacion de maquinarias y equipos | G131: 2,292,319.98 | H131: 1,405,730.30 | I131: 3,546,561.30 | J131: 952,879.55 | K131: 1,081,731.19 | L131: 95,507.78 | M131: 4,009,465.27 | N131: 13,384,195.37 | O131: 1.67
A132: 2 | B132: 2 | C132: 7 | D132: 2 | E132: `01 | F132: Mantenimiento y reparación de mobiliarios y equipos de oficina | G132: 90,904.96 | H132: 55,746.08 | I132: 140,643.54 | J132: 37,787.69 | K132: 551,637.01 | L132: 3,787.49 | M132: 159,000.61 | N132: 1,039,507.37 | O132: 0.13
A133: 2 | B133: 2 | C133: 7 | D133: 2 | E133: `02 | F133: Mantenimiento y reparación de equipo tecnologia e informacion | G133: 166,659.09 | H133: 102,201.15 | I133: 257,846.49 | J133: 69,277.43 | K133: 40,131.01 | L133: 6,943.72 | M133: 291,501.11 | N133: 934,560.00 | O133: 0.12
A134: 2 | B134: 2 | C134: 7 | D134: 2 | E134: `03 | F134: Mantenimiento y reparación de equipo de educacionales, deportivos y recreativos | N134: 0.00 | O134: 0.00
A135: 2 | B135: 2 | C135: 7 | D135: 2 | E135: `04 | F135: Mantenimiento y reparación de equipos medicos, sanitarios y de laboratorio | G135: 716,634.07 | H135: 439,464.92 | I135: 1,108,739.92 | J135: 297,892.95 | K135: 172,563.35 | L135: 29,858.02 | M135: 1,253,454.77 | N135: 4,018,608.00 | O135: 0.50
A136: 2 | B136: 2 | C136: 7 | D136: 2 | E136: `05 | F136: Mantenimiento y reparación de equipos de comunicación | G136: 53,027.89 | H136: 32,518.55 | I136: 82,042.07 | J136: 22,042.82 | K136: 12,768.96 | L136: 2,209.37 | M136: 92,750.35 | N136: 297,360.00 | O136: 0.04
A137: 2 | B137: 2 | C137: 7 | D137: 2 | E137: `06 | F137: Mantenimiento y reparación de equipos de transporte, tracción y elevación | G137: 325,742.76 | H137: 199,756.78 | I137: 503,972.69 | J137: 135,405.88 | K137: 78,437.89 | L137: 13,571.83 | M137: 569,752.17 | N137: 1,826,640.00 | O137: 0.23
A138: 2 | B138: 2 | C138: 7 | D138: 2 | E138: `07 | F138: Mantenimiento y reparación de equipos industriales y producción | G138: 499,977.26 | H138: 306,603.44 | I138: 773,539.48 | J138: 207,832.29 | K138: 120,393.03 | L138: 20,831.17 | M138: 874,503.33 | N138: 2,803,680.00 | O138: 0.35
A139: 2 | B139: 2 | C139: 7 | D139: 2 | E139: `08 | F139: Servicio de mantenimiento, reparación, desmonte e instalación | G139: 439,373.96 | H139: 269,439.38 | I139: 679,777.12 | J139: 182,640.50 | K139: 105,799.94 | L139: 18,306.18 | M139: 768,502.93 | N139: 2,463,840.00 | O139: 0.31
A140: 2 | B140: 2 | C140: 7 | D140: 2 | E140: `99 | F140: Otros servicios de mantenimiento, reparación, desmonte e instalación | N140: 0.00 | O140: 0.00
A141: 2 | B141: 2 | C141: 7 | D141: 3 | F141: Instalaciones temporales | G141: 0.00 | H141: 0.00 | I141: 0.00 | J141: 0.00 | K141: 0.00 | L141: 0.00 | M141: 0.00 | N141: 0.00 | O141: 0.00
A142: 2 | B142: 2 | C142: 7 | D142: 3 | E142: `01 | F142: Instalaciones temporales | N142: 0.00 | O142: 0.00
A143: 2 | B143: 2 | C143: 8 | F143: Otros Servicios No Incluidos en conceptos anteriores | G143: 986,576.34 | H143: 605,002.91 | I143: 1,526,380.91 | J143: 410,103.49 | K143: 237,564.64 | L143: 570,852.33 | M143: 2,327,095.07 | N143: 6,663,575.69 | O143: 0.83
A144: 2 | B144: 2 | C144: 8 | D144: 1 | F144: Gastos y representación judiciales | G144: 0.00 | H144: 0.00 | I144: 0.00 | J144: 0.00 | K144: 0.00 | L144: 0.00 | M144: 93,600.00 | N144: 93,600.00 | O144: 0.01
A145: 2 | B145: 2 | C145: 8 | D145: 1 | E145: `01 | F145: Gastos y representación judiciales | M145: 93,600.00 | N145: 93,600.00 | O145: 0.01
A146: 2 | B146: 2 | C146: 8 | D146: 2 | F146: Comisiones y gastos | G146: 0.00 | H146: 0.00 | I146: 0.00 | J146: 0.00 | K146: 0.00 | L146: 0.00 | M146: 8,640.00 | N146: 8,640.00 | O146: 0.00
A147: 2 | B147: 2 | C147: 8 | D147: 2 | E147: `01 | F147: Comisiones y gastos | M147: 8,640.00 | N147: 8,640.00 | O147: 0.00
A148: 2 | B148: 2 | C148: 8 | D148: 4 | F148: Servicios funerarios y gastos conexos | G148: 0.00 | H148: 0.00 | I148: 0.00 | J148: 0.00 | K148: 0.00 | L148: 0.00 | M148: 280,800.00 | N148: 280,800.00 | O148: 0.04
A149: 2 | B149: 2 | C149: 8 | D149: 4 | E149: `01 | F149: Servicios funerarios y gastos conexos | M149: 280,800.00 | N149: 280,800.00 | O149: 0.04
A150: 2 | B150: 2 | C150: 8 | D150: 5 | F150: Fumigación, lavandería, limpieza e higiene | G150: 276,608.63 | H150: 169,626.03 | I150: 427,954.86 | J150: 114,981.64 | K150: 66,606.53 | L150: 541,272.06 | M150: 483,812.34 | N150: 2,080,862.09 | O150: 0.26
A151: 2 | B151: 2 | C151: 8 | D151: 5 | E151: `01 | F151: Fumigación | G151: 242,564.73 | H151: 148,749.12 | I151: 375,283.85 | J151: 100,830.15 | K151: 58,408.86 | L151: 539,853.65 | M151: 424,266.62 | N151: 1,889,956.97 | O151: 0.24
A152: 2 | B152: 2 | C152: 8 | D152: 5 | E152: `02 | F152: Lavandería | G152: 13,090.31 | H152: 8,027.44 | I152: 20,252.67 | J152: 5,441.43 | K152: 3,152.11 | L152: 545.40 | M152: 22,896.09 | N152: 73,405.44 | O152: 0.01
A153: 2 | B153: 2 | C153: 8 | D153: 5 | E153: `03 | F153: Limpieza e higiene | G153: 20,953.59 | H153: 12,849.47 | I153: 32,418.34 | J153: 8,710.06 | K153: 5,045.56 | L153: 873.02 | M153: 36,649.64 | N153: 117,499.68 | O153: 0.01
A154: 2 | B154: 2 | C154: 8 | D154: 6 | F154: Servicio de organización de eventos, festividades y actividades de entretenimiento | G154: 318,167.35 | H154: 195,111.28 | I154: 492,252.40 | J154: 132,256.91 | K154: 76,613.75 | L154: 13,256.20 | M154: 624,470.12 | N154: 1,852,128.00 | O154: 0.23
A155: 2 | B155: 2 | C155: 8 | D155: 6 | E155: `01 | F155: Eventos generals | G155: 272,714.87 | H155: 167,238.24 | I155: 421,930.62 | J155: 113,363.07 | K155: 65,668.93 | L155: 11,362.46 | M155: 544,969.82 | N155: 1,597,248.00 | O155: 0.20
A156: 2 | B156: 2 | C156: 8 | D156: 6 | E156: `02 | F156: Festividades | G156: 45,452.48 | H156: 27,873.04 | I156: 70,321.77 | J156: 18,893.84 | K156: 10,944.82 | L156: 1,893.74 | M156: 79,500.30 | N156: 254,880.00 | O156: 0.03
A157: 2 | B157: 2 | C157: 8 | D157: 7 | F157: Servicios Técnicos y Profesionales | G157: 391,800.36 | H157: 240,265.60 | I157: 606,173.66 | J157: 162,864.94 | K157: 94,344.36 | L157: 16,324.07 | M157: 685,292.61 | N157: 2,197,065.60 | O157: 0.27
A158: 2 | B158: 2 | C158: 8 | D158: 7 | E158: `01 | F158: Servicios técnicos y profesionales | N158: 0.00 | O158: 0.00
A159: 2 | B159: 2 | C159: 8 | D159: 7 | E159: `02 | F159: Servicios jurídicos | G159: 59,997.27 | H159: 36,792.41 | I159: 92,824.74 | J159: 24,939.87 | K159: 14,447.16 | L159: 2,499.74 | M159: 104,940.40 | N159: 336,441.60 | O159: 0.04
A160: 2 | B160: 2 | C160: 8 | D160: 7 | E160: `03 | F160: Servicios de contabilidad y auditoría | G160: 53,027.89 | H160: 32,518.55 | I160: 82,042.07 | J160: 22,042.82 | K160: 12,768.96 | L160: 2,209.37 | M160: 92,750.35 | N160: 297,360.00 | O160: 0.04
A161: 2 | B161: 2 | C161: 8 | D161: 7 | E161: `04 | F161: Servicios de capacitación | G161: 68,178.72 | H161: 41,809.56 | I161: 105,482.66 | J161: 28,340.77 | K161: 16,417.23 | L161: 2,840.61 | M161: 119,250.45 | N161: 382,320.00 | O161: 0.05
A162: 2 | B162: 2 | C162: 8 | D162: 7 | E162: `05 | F162: Servicios de informática y sistemas computarizados | G162: 16,665.91 | H162: 10,220.11 | I162: 25,784.65 | J162: 6,927.74 | K162: 4,013.10 | L162: 694.37 | M162: 29,150.11 | N162: 93,456.00 | O162: 0.01
A163: 2 | B163: 2 | C163: 8 | D163: 7 | E163: `06 | F163: Otros servicios técnicos profesionales | G163: 193,930.57 | H163: 118,924.97 | I163: 300,039.56 | J163: 80,613.74 | K163: 46,697.90 | L163: 8,079.97 | M163: 339,201.29 | N163: 1,087,488.00 | O163: 0.14
A164: 2 | B164: 2 | C164: 8 | D164: 8 | F164: Impuestos, derechos y tasas | G164: 0.00 | H164: 0.00 | I164: 0.00 | J164: 0.00 | K164: 0.00 | L164: 0.00 | M164: 150,480.00 | N164: 150,480.00 | O164: 0.02
A165: 2 | B165: 2 | C165: 8 | D165: 8 | E165: `01 | F165: Impuestos | M165: 150,480.00 | N165: 150,480.00 | O165: 0.02
A166: 2 | B166: 2 | C166: 8 | D166: 8 | E166: `02 | F166: Derechos | N166: 0.00 | O166: 0.00
A167: 2 | B167: 2 | C167: 8 | D167: 8 | E167: `03 | F167: Tasas | N167: 0.00 | O167: 0.00
A168: 2 | B168: 2 | C168: 9 | D168: 2 | F168: Servicios de alimentación | G168: 547,247.84 | H168: 335,591.40 | I168: 846,674.12 | J168: 227,481.89 | K168: 131,775.65 | L168: 22,800.67 | M168: 957,183.64 | N168: 3,068,755.20 | O168: 0.38
A169: 2 | B169: 2 | C169: 9 | D169: 2 | E169: `01 | F169: Servicio de alimentación | G169: 318,167.35 | H169: 195,111.28 | I169: 492,252.40 | J169: 132,256.91 | K169: 76,613.75 | L169: 13,256.20 | M169: 556,502.12 | N169: 1,784,160.00 | O169: 0.22
A170: 2 | B170: 2 | C170: 9 | D170: 2 | E170: `03 | F170: Servicios de catering | G170: 229,080.49 | H170: 140,480.12 | I170: 354,421.72 | J170: 95,224.98 | K170: 55,161.90 | L170: 9,544.47 | M170: 400,681.53 | N170: 1,284,595.20 | O170: 0.16
A171: 2 | B171: 3 | F171: Materiales y Suministros | G171: 44,881,529.19 | H171: 27,106,896.49 | I171: 67,815,211.38 | J171: 18,256,413.64 | K171: 10,563,047.79 | L171: 1,832,086.96 | M171: 79,436,203.43 | N171: 249,891,388.88 | O171: 123,901.84
A172: 2 | B172: 3 | C172: 1 | F172: Alimentos y Productos Agroforestales | G172: 3,389,617.30 | H172: 1,779,831.07 | I172: 4,440,626.36 | J172: 1,229,118.50 | K172: 699,480.63 | L172: 125,429.35 | M172: 5,003,244.79 | N172: 16,667,348.00 | O172: 123,842.07
A173: 2 | B173: 3 | C173: 1 | D173: 1 | F173: Alimentos y bebidas para personas | G173: 3,367,800.11 | H173: 1,740,392.59 | I173: 4,390,891.36 | J173: 1,179,731.64 | K173: 683,394.64 | L173: 118,245.32 | M173: 4,963,998.90 | N173: 16,444,454.57 | O173: 2.05
A174: 2 | B174: 3 | C174: 1 | D174: 1 | E174: `01 | F174: Alimentos y bebidas para personas | G174: 3,367,800.11 | H174: 1,740,392.59 | I174: 4,390,891.36 | J174: 1,179,731.64 | K174: 683,394.64 | L174: 118,245.32 | M174: 4,963,998.90 | N174: 16,444,454.57 | O174: 2.05
A175: 2 | B175: 3 | C175: 1 | D175: 3 | F175: Productos agroforestales y pecuarios | G175: 21,817.19 | H175: 13,379.06 | I175: 33,754.45 | J175: 9,069.05 | K175: 5,253.51 | L175: 909.00 | M175: 38,160.15 | N175: 122,342.40 | O175: 0.02
A176: 2 | B176: 3 | C176: 1 | D176: 3 | E176: `02 | F176: Productos agrícolas | N176: 0.00 | O176: 0.00
A177: 2 | B177: 3 | C177: 1 | D177: 3 | E177: `03 | F177: Productos forestales | G177: 21,817.19 | H177: 13,379.06 | I177: 33,754.45 | J177: 9,069.05 | K177: 5,253.51 | L177: 909.00 | M177: 38,160.15 | N177: 122,342.40 | O177: 0.02
A178: 2 | B178: 3 | C178: 1 | D178: 4 | F178: Madera, corcho y sus manufacturas | G178: 0.00 | H178: 26,059.42 | I178: 15,980.54 | J178: 40,317.82 | K178: 10,832.47 | L178: 6,275.03 | M178: 1,085.75 | N178: 100,551.03 | O178: 123,840.00
A179: 2 | B179: 3 | C179: 1 | D179: 4 | E179: `01 | F179: Madera, corcho y sus manufacturas | G179: 0.00 | H179: 26,059.42 | I179: 15,980.54 | J179: 40,317.82 | K179: 10,832.47 | L179: 6,275.03 | M179: 1,085.75 | N179: 100,551.03 | O179: 123,840.00
A180: 2 | B180: 3 | C180: 2 | F180: Textiles y Vestuarios | G180: 763,033.78 | H180: 467,918.84 | I180: 1,180,527.20 | J180: 317,180.54 | K180: 183,736.26 | L180: 31,791.23 | M180: 1,334,611.86 | N180: 4,278,799.70 | O180: 0.53
A181: 2 | B181: 3 | C181: 2 | D181: 1 | F181: Hilados, fibras y telas | G181: 313,622.10 | H181: 192,323.97 | I181: 485,220.22 | J181: 130,367.53 | K181: 75,519.27 | L181: 13,066.83 | M181: 548,552.09 | N181: 1,758,672.00 | O181: 0.22
A182: 2 | B182: 3 | C182: 2 | D182: 1 | E182: `01 | F182: Hilados, fibras y telas | G182: 313,622.10 | H182: 192,323.97 | I182: 485,220.22 | J182: 130,367.53 | K182: 75,519.27 | L182: 13,066.83 | M182: 548,552.09 | N182: 1,758,672.00 | O182: 0.22
A183: 2 | B183: 3 | C183: 2 | D183: 2 | F183: Acabados textiles | G183: 267,659.04 | H183: 164,137.83 | I183: 414,108.50 | J183: 111,261.44 | K183: 64,451.50 | L183: 11,151.81 | M183: 468,158.73 | N183: 1,500,928.85 | O183: 0.19
A184: 2 | B184: 3 | C184: 2 | D184: 2 | E184: `01 | F184: Acabados textiles | G184: 267,659.04 | H184: 164,137.83 | I184: 414,108.50 | J184: 111,261.44 | K184: 64,451.50 | L184: 11,151.81 | M184: 468,158.73 | N184: 1,500,928.85 | O184: 0.19
A185: 2 | B185: 3 | C185: 2 | D185: 3 | F185: Prendas de vestir | G185: 181,752.64 | H185: 111,457.04 | I185: 281,198.48 | J185: 75,551.57 | K185: 43,765.49 | L185: 7,572.59 | M185: 317,901.04 | N185: 1,019,198.85 | O185: 0.13
A186: 2 | B186: 3 | C186: 2 | D186: 3 | E186: `01 | F186: Prendas de vestir | G186: 181,752.64 | H186: 111,457.04 | I186: 281,198.48 | J186: 75,551.57 | K186: 43,765.49 | L186: 7,572.59 | M186: 317,901.04 | N186: 1,019,198.85 | O186: 0.13
A187: 2 | B187: 3 | C187: 2 | D187: 4 | F187: Calzados | G187: 0.00 | H187: 0.00 | I187: 0.00 | J187: 0.00 | K187: 0.00 | L187: 0.00 | M187: 0.00 | N187: 0.00 | O187: 0.00
A188: 2 | B188: 3 | C188: 2 | D188: 4 | E188: `01 | F188: Calzados | N188: 0.00 | O188: 0.00
A189: 2 | B189: 3 | C189: 3 | F189: Productos de Papel, Cartón e Impresos | G189: 1,910,913.09 | H189: 1,171,838.33 | I189: 2,956,467.89 | J189: 794,335.00 | K189: 460,142.18 | L189: 79,616.75 | M189: 3,342,351.73 | N189: 10,715,664.96 | O189: 32.01
A190: 2 | B190: 3 | C190: 3 | D190: 1 | F190: Papel de escritorio | G190: 413,087.27 | H190: 253,319.47 | I190: 639,107.69 | J190: 171,713.56 | K190: 99,470.18 | L190: 17,210.97 | M190: 722,525.25 | N190: 2,316,434.40 | O190: 0.29
A191: 2 | B191: 3 | C191: 3 | D191: 1 | E191: `01 | F191: Papel de escritorio | G191: 413,087.27 | H191: 253,319.47 | I191: 639,107.69 | J191: 171,713.56 | K191: 99,470.18 | L191: 17,210.97 | M191: 722,525.25 | N191: 2,316,434.40 | O191: 0.29
A192: 2 | B192: 3 | C192: 3 | D192: 2 | F192: Productos de papel y cartón | G192: 1,033,665.11 | H192: 633,879.38 | I192: 1,599,234.27 | J192: 429,677.51 | K192: 248,903.48 | L192: 43,066.88 | M192: 1,807,969.38 | N192: 5,796,396.00 | O192: 1.35
A193: 2 | B193: 3 | C193: 3 | D193: 2 | E193: `01 | F193: Productos de papel y cartón | G193: 1,033,665.11 | H193: 633,879.38 | I193: 1,599,234.27 | J193: 429,677.51 | K193: 248,903.48 | L193: 43,066.88 | M193: 1,807,969.38 | N193: 5,796,396.00 | O193: 0.72
A194: 2 | B194: 3 | C194: 3 | D194: 3 | F194: Productos de artes gráficas | G194: 449,009.88 | H194: 275,348.47 | I194: 694,685.33 | J194: 186,645.99 | K194: 108,120.24 | L194: 18,707.66 | M194: 785,356.99 | N194: 2,517,874.56 | O194: 0.31
A195: 2 | B195: 3 | C195: 3 | D195: 3 | E195: `01 | F195: Productos de artes gráficas | G195: 449,009.88 | H195: 275,348.47 | I195: 694,685.33 | J195: 186,645.99 | K195: 108,120.24 | L195: 18,707.66 | M195: 785,356.99 | N195: 2,517,874.56 | O195: 0.31
A196: 2 | B196: 3 | C196: 3 | D196: 4 | F196: Libros, revistas y periódicos | G196: 15,150.83 | H196: 9,291.01 | I196: 23,440.59 | J196: 6,297.95 | K196: 3,648.27 | L196: 631.25 | M196: 26,500.10 | N196: 84,960.00 | O196: 30.06
A197: 2 | B197: 3 | C197: 3 | D197: 4 | E197: `01 | F197: Libros, revistas y periódicos | G197: 15,150.83 | H197: 9,291.01 | I197: 23,440.59 | J197: 6,297.95 | K197: 3,648.27 | L197: 631.25 | M197: 26,500.10 | N197: 84,960.00 | O197: 0.01
A198: 2 | B198: 3 | C198: 4 | F198: Productos Farmacéuticos | G198: 14,317,530.62 | H198: 8,780,007.47 | I198: 22,151,357.78 | J198: 5,951,560.97 | K198: 3,447,618.71 | L198: 596,529.09 | M198: 25,042,595.35 | N198: 80,287,200.00 | O198: 10.02
A199: 2 | B199: 3 | C199: 4 | D199: 1 | F199: Productos medicinales para uso humano | G199: 14,317,530.62 | H199: 8,780,007.47 | I199: 22,151,357.78 | J199: 5,951,560.97 | K199: 3,447,618.71 | L199: 596,529.09 | M199: 25,042,595.35 | N199: 80,287,200.00 | O199: 10.02
A200: 2 | B200: 3 | C200: 4 | D200: 1 | E200: `01 | F200: Productos medicinales para uso humano | G200: 14,317,530.62 | H200: 8,780,007.47 | I200: 22,151,357.78 | J200: 5,951,560.97 | K200: 3,447,618.71 | L200: 596,529.09 | M200: 25,042,595.35 | N200: 80,287,200.00 | O200: 10.02
... 128 more rows

Sheet Insumos (hidden)
A1: Insumo | B1: InsumoAbrev | C1: Descripción | D1: Unidad de Medida | E1: Precio Unitario | F1: CODIGO PRESUPUESTARIO
A2: Acabados textiles | B2: lsAcabadosTextiles | C2: Manteles en encajes para bandejas grandes (rectangulares) | D2: unidad | E2: 944.00 | F2: 2.3.2.2.01
A3: Acabados textiles | B3: lsAcabadosTextiles | C3: Manteles en encajes para bandejas pequeñas (rectangulares) | D3: unidad | E3: 590.00 | F3: 2.3.2.2.01
A4: Alimentos y bebidas para personas | B4: lsAlimentosyBebidas | C4: Almuerzo tipo Buffet para 10 personas (Cristaleria, Cuberteria, Servilletas, Jugo) | D4: unidad | E4: 5,000.50 | F4: 2.3.1.1.01
A5: Alimentos y bebidas para personas | B5: lsAlimentosyBebidas | C5: Almuerzo tipo Buffet para 20 personas (Cristalería, Cubertería, Servilletas, Jugo, Café) | D5: unidad | E5: 10,133.50 | F5: 2.3.1.1.01
A6: Alimentos y bebidas para personas | B6: lsAlimentosyBebidas | C6: Almuerzo tipo Buffet para 30 personas (Cristaleria, Cuberteria, Servilletas, Jugo) | D6: unidad | E6: 25,488.00 | F6: 2.3.1.1.01
A7: Alimentos y bebidas para personas | B7: lsAlimentosyBebidas | C7: Almuerzo tipo Buffet para 40 personas (Cristalería, Cuberteria, Mesas, Sillas, Manteles, Servilletas) | D7: unidad | E7: 61,419.00 | F7: 2.3.1.1.01
A8: Alimentos y bebidas para personas | B8: lsAlimentosyBebidas | C8: Refrigerio Dulce tipo Buffet p/65 Personas (Arreglo Flores, Alquiler Cristalería, Sillas, Servilletas, Mesa, Bambalina, Tope) | D8: unidad | E8: 33,435.30 | F8: 2.3.1.1.01
A9: Alimentos y bebidas para personas | B9: lsAlimentosyBebidas | C9: Refrigerio tipo Buffet p/12 personas (4 Variedades, Desechables Transparentes, Jugo Natural, Servilletas, Hielo) | D9: unidad | E9: 9,410.50 | F9: 2.3.1.1.01
A10: Alimentos y bebidas para personas | B10: lsAlimentosyBebidas | C10: Refrigerio tipo Buffet p/15 personas (3 Variedades, Desechables Transparentes, Jugo Natural, Servilletas, Hielo) | D10: unidad | E10: 5,929.50 | F10: 2.3.1.1.01
A11: Alimentos y bebidas para personas | B11: lsAlimentosyBebidas | C11: Refrigerio tipo Buffet p/150 personas (Diferentes Variedades, Bambalinas, Manteles, Desechables, Hielo, Servilletas) | D11: unidad | E11: 65,844.00 | F11: 2.3.1.1.01
A12: Alimentos y bebidas para personas | B12: lsAlimentosyBebidas | C12: Refrigerio tipo Buffet p/40 personas (5 Variedades, Cristaleria, Mantel, Tope, Bambalina, Servilletas, Hielo) | D12: unidad | E12: 29,393.80 | F12: 2.3.1.1.01
A13: Alimentos y bebidas para personas | B13: lsAlimentosyBebidas | C13: Refrigerio tipo Buffet p/45 personas (5 Variedades, Desechable Transparentes, Servilletas, Hielo) | D13: unidad | E13: 27,193.10 | F13: 2.3.1.1.01
A14: Alimentos y bebidas para personas | B14: lsAlimentosyBebidas | C14: Refrigerio tipo preempacado p/100 personas (4 Variedades, Jugo, Desechables Transparentes, Hielo, Servilleta) | D14: unidad | E14: 50,380.10 | F14: 2.3.1.1.01
A15: Alimentos y bebidas para personas | B15: lsAlimentosyBebidas | C15: Refrigerio tipo preempacado p/110 personas (4 Variedades, Jugo, Desechables Transparentes,sillas plasticas, Servilletas) | D15: unidad | E15: 29,323.00 | F15: 2.3.1.1.01
A16: Alimentos y bebidas para personas | B16: lsAlimentosyBebidas | C16: Refrigerio tipo preempacado p/125 personas (4 Variedades, Jugo, Desechables Transparentes,sillas plasticas, Servilletas) | D16: unidad | E16: 32,833.50 | F16: 2.3.1.1.01
A17: Alimentos y bebidas para personas | B17: lsAlimentosyBebidas | C17: Refrigerio tipo preempacado p/20 personas (Variedades fuertes, Jugo, Desechables Transparentes, Servilletas, Hielo) | D17: unidad | E17: 12,537.50 | F17: 2.3.1.1.01
A18: Alimentos y bebidas para personas | B18: lsAlimentosyBebidas | C18: Refrigerio tipo preempacado p/25 personas (4 Variedades, Jugo, Desechables Transparentes, Jugo Natural) | D18: unidad | E18: 12,626.00 | F18: 2.3.1.1.01
A19: Alimentos y bebidas para personas | B19: lsAlimentosyBebidas | C19: Refrigerio tipo preempacado p/250 personas (4 Variedades, Jugo, Desechables Transparentes, Mesas, Manteles) | D19: unidad | E19: 95,892.70 | F19: 2.3.1.1.01
A20: Alimentos y bebidas para personas | B20: lsAlimentosyBebidas | C20: Refrigerio tipo preempacado p/50 personas (3 Variedades, Jugo, Desechables Transparentes, Hielo, Servilleta) | D20: unidad | E20: 19,706.00 | F20: 2.3.1.1.01
A21: Alimentos y bebidas para personas | B21: lsAlimentosyBebidas | C21: Refrigerio y Almuerzo tipo Buffet p/25 personas (Cristaleria, Mesas, Manteles, Bambalina, Hielo, Servilletas | D21: unidad | E21: 30,975.00 | F21: 2.3.1.1.01
A22: Alimentos y bebidas para personas | B22: lsAlimentosyBebidas | C22: Servicio de Almuerzo tipo buffet para 30 Personas | D22: unidad | E22: 15,251.50 | F22: 2.3.1.1.01
A23: Alimentos y bebidas para personas | B23: lsAlimentosyBebidas | C23: Servicio de Refrigerio tipo buffet 30 Personas | D23: unidad | E23: 24,225.40 | F23: 2.3.1.1.01
A24: Artículos de plástico | B24: lsArticulosdePlastico | C24: Cajas de Cucharas Plásticas | D24: Caja | E24: 1,003.00 | F24: 2.3.5.5.01
A25: Artículos de plástico | B25: lsArticulosdePlastico | C25: Cajas de Tenedores Plásticos | D25: Caja | E25: 1,003.00 | F25: 2.3.5.5.01
A26: Artículos de plástico | B26: lsArticulosdePlastico | C26: Cajas de Vasos No. 3 | D26: Caja | E26: 3,009.00 | F26: 2.3.5.5.01
A27: Artículos de plástico | B27: lsArticulosdePlastico | C27: Cajas de Vasos No. 7 | D27: Caja | E27: 1,882.10 | F27: 2.3.5.5.01
A28: Artículos de plástico | B28: lsArticulosdePlastico | C28: Fardos de Fundas Plásticas 17x22 | D28: unidad | E28: 83.78 | F28: 2.3.5.5.01
A29: Artículos de plástico | B29: lsArticulosdePlastico | C29: Fardos de Fundas Plásticas 24x30 | D29: unidad | E29: 192.34 | F29: 2.3.5.5.01
A30: Artículos de plástico | B30: lsArticulosdePlastico | C30: Fardos de Fundas Plásticas no. 55 | D30: unidad | E30: 421.26 | F30: 2.3.5.5.01
A31: Electrodomésticos | B31: lsElectrodomesticos | C31: Aspiradora | D31: unidad | E31: 6,500.00 | F31: 2.6.1.4.01
A32: Electrodomésticos | B32: lsElectrodomesticos | C32: Estufas de 20 pulgadas | D32: unidad | E32: 7,265.26 | F32: 2.6.1.4.01
A33: Electrodomésticos | B33: lsElectrodomesticos | C33: Microondas de 7 pies | D33: unidad | E33: 4,675.25 | F33: 2.6.1.4.01
A34: Electrodomésticos | B34: lsElectrodomesticos | C34: Refrigeradores de 8 pies | D34: unidad | E34: 16,785.50 | F34: 2.6.1.4.01
A35: Electrodomésticos | B35: lsElectrodomesticos | C35: Televisores de 32 pulgadas | D35: unidad | E35: 15,163.00 | F35: 2.6.1.4.01
A36: Equipo de comunicación, telecomunicaciones y señalamiento | B36: lsTelecomunicaciones | C36: Mapas de Evacuación | D36: unidad | E36: 2,330.50 | F36: 2.6.5.5.01
A37: Equipo de comunicación, telecomunicaciones y señalamiento | B37: lsTelecomunicaciones | C37: Otros Señales | E37: 1,150.00 | F37: 2.6.5.5.01
A38: Equipo de comunicación, telecomunicaciones y señalamiento | B38: lsTelecomunicaciones | C38: Punto de Reunion 2x2 pies, Metla colocado en pared | D38: unidad | E38: 2,330.50 | F38: 2.6.5.5.01
A39: Equipo de comunicación, telecomunicaciones y señalamiento | B39: lsTelecomunicaciones | C39: Señal de Ruta de Evacuacion Area, Doble Cara 6x12, para techo con cables de acero Fotoluminiscente | D39: unidad | E39: 3,009.00 | F39: 2.6.5.5.01
A40: Equipo de comunicación, telecomunicaciones y señalamiento | B40: lsTelecomunicaciones | C40: Señales de Ruta de Evacuacion Flecha Derecha 5x8 en vinil fotoluminiscente sobre PVC de 4mm | D40: unidad | E40: 1,150.50 | F40: 2.6.5.5.01
A41: Equipo de comunicación, telecomunicaciones y señalamiento | B41: lsTelecomunicaciones | C41: Señales de Ruta de Evacuacion Flecha Izquierda 5x8 en vinil fotoluminiscente sobre PVC de 4mm | D41: unidad | E41: 1,150.50 | F41: 2.6.5.5.01
A42: Equipo de comunicación, telecomunicaciones y señalamiento | B42: lsTelecomunicaciones | C42: Señales de Salida 12x25¨ en vinil fotoluminiscente sobre PVC de 4mm | D42: unidad | E42: 1,947.00 | F42: 2.6.5.5.01
A43: Equipo de comunicación, telecomunicaciones y señalamiento | B43: lsTelecomunicaciones | C43: Señalizaciones de Extintores y Modo de uso | D43: unidad | E43: 2,212.50 | F43: 2.6.5.5.01
A44: Equipo médico y de laboratorio | B44: lsEquiposMedicos | C44: Agitador rotador VDRL. | D44: unidad | E44: 11,210.00 | F44: 2.6.3.1.01
A45: Equipo médico y de laboratorio | B45: lsEquiposMedicos | C45: Aspirador de secreciones eléctrico rodable | D45: unidad | E45: 15,692.82 | F45: 2.6.3.1.01
A46: Equipo médico y de laboratorio | B46: lsEquiposMedicos | C46: Bandeja de Urología | D46: unidad | E46: 342,200.00 | F46: 2.6.3.1.01
A47: Equipo médico y de laboratorio | B47: lsEquiposMedicos | C47: Contador de células hematológicas. | D47: unidad | E47: 6,254.00 | F47: 2.6.3.1.01
A48: Equipo médico y de laboratorio | B48: lsEquiposMedicos | C48: Incubadora neonatal para UCI | D48: unidad | E48: 531,000.00 | F48: 2.6.3.1.01
A49: Equipo médico y de laboratorio | B49: lsEquiposMedicos | C49: Vitrina de acero inoxidable para material estéril 0.68x0.45x1.70m. | D49: unidad | E49: 49,794.53 | F49: 2.6.3.1.01
A50: Equipo médico y de laboratorio | B50: lsEquiposMedicos | C50: Aza Diatermica | D50: unidad | E50: 275,000.00 | F50: 2.6.3.1.01
A51: Equipo médico y de laboratorio | B51: lsEquiposMedicos | C51: Balanza con tallímetro de 160 kg - 320 lbs. | D51: unidad | E51: 8,407.50 | F51: 2.6.3.1.01
A52: Equipo médico y de laboratorio | B52: lsEquiposMedicos | C52: Balanza analítica de precisión | D52: unidad | E52: 96,885.15 | F52: 2.6.3.1.01
A53: Equipo médico y de laboratorio | B53: lsEquiposMedicos | C53: Bandeja cirugía general | D53: unidad | E53: 250,160.00 | F53: 2.6.3.1.01
A54: Equipo médico y de laboratorio | B54: lsEquiposMedicos | C54: Bandeja de acero inoxidable 30x20cms. | D54: unidad | E54: 2,950.00 | F54: 2.6.3.1.01
A55: Equipo médico y de laboratorio | B55: lsEquiposMedicos | C55: Bandeja de cesárea. | D55: unidad | E55: 226,560.00 | F55: 2.6.3.1.01
A56: Equipo médico y de laboratorio | B56: lsEquiposMedicos | C56: Bandeja de cirugía ortopédica | D56: unidad | E56: 501,500.00 | F56: 2.6.3.1.01
A57: Equipo médico y de laboratorio | B57: lsEquiposMedicos | C57: Bandeja de legrado | D57: unidad | E57: 41,300.00 | F57: 2.6.3.1.01
A58: Equipo médico y de laboratorio | B58: lsEquiposMedicos | C58: Bandeja de parto | D58: unidad | E58: 49,560.00 | F58: 2.6.3.1.01
A59: Equipo médico y de laboratorio | B59: lsEquiposMedicos | C59: Bandeja ginecológica | D59: unidad | E59: 188,800.00 | F59: 2.6.3.1.01
A60: Equipo médico y de laboratorio | B60: lsEquiposMedicos | C60: Baño maría 10 - 15 lts. | D60: unidad | E60: 27,140.00 | F60: 2.6.3.1.01
A61: Equipo médico y de laboratorio | B61: lsEquiposMedicos | C61: Cama tipo hospitalaria, de posición, con barandas, colchón | D61: unidad | E61: 49,219.18 | F61: 2.6.3.1.01
A62: Equipo médico y de laboratorio | B62: lsEquiposMedicos | C62: Cama cuna metálica rodable con barandas para niños 147 x 82.5 x 50 cms. | D62: unidad | E62: 26,137.07 | F62: 2.6.3.1.01
A63: Equipo médico y de laboratorio | B63: lsEquiposMedicos | C63: Cama eléctrica de cuidados intensivos con barandas y funciones de posicionamientos especiales | D63: unidad | E63: 105,563.74 | F63: 2.6.3.1.01
A64: Equipo médico y de laboratorio | B64: lsEquiposMedicos | C64: Cama unipersonal | D64: unidad | E64: 6,490.00 | F64: 2.6.3.1.01
A65: Equipo médico y de laboratorio | B65: lsEquiposMedicos | C65: Camilla de emergencia con barandas, ruedas y porta suero incluido | D65: unidad | E65: 30,335.33 | F65: 2.6.3.1.01
A66: Equipo médico y de laboratorio | B66: lsEquiposMedicos | C66: Camilla de transporte intrahospitalaria con barandas, ruedas y porta suero | D66: unidad | E66: 72,981.65 | F66: 2.6.3.1.01
A67: Equipo médico y de laboratorio | B67: lsEquiposMedicos | C67: Camilla de trauma shock | D67: unidad | E67: 172,048.60 | F67: 2.6.3.1.01
A68: Equipo médico y de laboratorio | B68: lsEquiposMedicos | C68: Camilla para examen ginecológico. | D68: unidad | E68: 104,465.40 | F68: 2.6.3.1.01
A69: Equipo médico y de laboratorio | B69: lsEquiposMedicos | C69: Carro de cura | D69: unidad | E69: 8,314.29 | F69: 2.6.3.1.01
A70: Equipo médico y de laboratorio | B70: lsEquiposMedicos | C70: Centrífuga de Mesa de 24 tubos | D70: unidad | E70: 198,806.40 | F70: 2.6.3.1.01
A71: Equipo médico y de laboratorio | B71: lsEquiposMedicos | C71: Chaleco plomado | D71: unidad | E71: 11,313.84 | F71: 2.6.3.1.01
A72: Equipo médico y de laboratorio | B72: lsEquiposMedicos | C72: Cipap Fisher | D72: unidad | E72: 469,017.41 | F72: 2.6.3.1.01
A73: Equipo médico y de laboratorio | B73: lsEquiposMedicos | C73: Colchones Hospitalarios 36' x 76' (Azul, Marron o Crema) | D73: unidad | E73: 4,501.70 | F73: 2.6.3.1.01
A74: Equipo médico y de laboratorio | B74: lsEquiposMedicos | C74: Cuna de calor radiante | D74: unidad | E74: 161,582.93 | F74: 2.6.3.1.01
A75: Equipo médico y de laboratorio | B75: lsEquiposMedicos | C75: Desfibrilador con monitor ECG, paleta externas y batería interna. | D75: unidad | E75: 344,224.69 | F75: 2.6.3.1.01
A76: Equipo médico y de laboratorio | B76: lsEquiposMedicos | C76: Doppler fetal fijo | D76: unidad | E76: 24,151.66 | F76: 2.6.3.1.01
A77: Equipo médico y de laboratorio | B77: lsEquiposMedicos | C77: Doppler fetal portátil | D77: unidad | E77: 12,836.04 | F77: 2.6.3.1.01
A78: Equipo médico y de laboratorio | B78: lsEquiposMedicos | C78: Electrocardiógrafo de 3 canales portátil con carro | D78: unidad | E78: 45,994.84 | F78: 2.6.3.1.01
A79: Equipo médico y de laboratorio | B79: lsEquiposMedicos | C79: Electrocauterio | D79: unidad | E79: 111,029.42 | F79: 2.6.3.1.01
A80: Equipo médico y de laboratorio | B80: lsEquiposMedicos | C80: Escalinata de 2 peldaño | D80: unidad | E80: 1,770.00 | F80: 2.6.3.1.01
A81: Equipo médico y de laboratorio | B81: lsEquiposMedicos | C81: Esfigmomanómetro De Pared Con Brazalete Adulto | D81: unidad | E81: 4,524.99 | F81: 2.6.3.1.01
A82: Equipo médico y de laboratorio | B82: lsEquiposMedicos | C82: Esfigmomanómetro de pared con set de brazaletes pediátrico. | D82: unidad | E82: 3,299.87 | F82: 2.6.3.1.01
A83: Equipo médico y de laboratorio | B83: lsEquiposMedicos | C83: Esfigmomanómetro de pedestal rodable adulto | D83: unidad | E83: 4,242.69 | F83: 2.6.3.1.01
A84: Equipo médico y de laboratorio | B84: lsEquiposMedicos | C84: Esfigmomanómetro de pedestal rodable adulto/pediátrico | D84: unidad | E84: 11,859.99 | F84: 2.6.3.1.01
A85: Equipo médico y de laboratorio | B85: lsEquiposMedicos | C85: Esfigmomanómetro portátil con brazalete para adulto | D85: unidad | E85: 1,479.99 | F85: 2.6.3.1.01
A86: Equipo médico y de laboratorio | B86: lsEquiposMedicos | C86: Esfigmomanómetro portátil con set de Brazaletes pediátricos | D86: unidad | E86: 1,999.99 | F86: 2.6.3.1.01
A87: Equipo médico y de laboratorio | B87: lsEquiposMedicos | C87: Estantería metalica de 4 niveles regulares | D87: unidad | E87: 6,938.40 | F87: 2.6.3.1.01
A88: Equipo médico y de laboratorio | B88: lsEquiposMedicos | C88: Estetoscopio doble campana | D88: unidad | E88: 938.18 | F88: 2.6.3.1.01
A89: Equipo médico y de laboratorio | B89: lsEquiposMedicos | C89: Estetoscopio pediátrico | D89: unidad | E89: 3,519.94 | F89: 2.6.3.1.01
A90: Equipo médico y de laboratorio | B90: lsEquiposMedicos | C90: Frasco Esteril para muestras | D90: unidad | E90: 9.00 | F90: 2.6.3.1.01
A91: Equipo médico y de laboratorio | B91: lsEquiposMedicos | C91: Horno eléctrico al seco cap. 28 litros. | D91: unidad | E91: 63,229.12 | F91: 2.6.3.1.01
A92: Equipo médico y de laboratorio | B92: lsEquiposMedicos | C92: Incubadora de transporte | D92: unidad | E92: 475,540.00 | F92: 2.6.3.1.01
A93: Equipo médico y de laboratorio | B93: lsEquiposMedicos | C93: Incubadora neonatal estándar | D93: unidad | E93: 490,481.16 | F93: 2.6.3.1.01
A94: Equipo médico y de laboratorio | B94: lsEquiposMedicos | C94: Instalación de Rayos X en el Hospital Municipal de Haina | D94: unidad | E94: 74,340.00 | F94: 2.6.3.1.01
A95: Equipo médico y de laboratorio | B95: lsEquiposMedicos | C95: Lámpara de fototerapia | D95: unidad | E95: 40,101.79 | F95: 2.6.3.1.01
A96: Equipo médico y de laboratorio | B96: lsEquiposMedicos | C96: Lámpara quirúrgica cialítica de potencia alta. | D96: unidad | E96: 386,697.03 | F96: 2.6.3.1.01
A97: Equipo médico y de laboratorio | B97: lsEquiposMedicos | C97: Lámpara quirúrgica de pie rodable . | D97: unidad | E97: 142,177.26 | F97: 2.6.3.1.01
A98: Equipo médico y de laboratorio | B98: lsEquiposMedicos | C98: Laringoscopio adulto | D98: unidad | E98: 26,868.60 | F98: 2.6.3.1.01
A99: Equipo médico y de laboratorio | B99: lsEquiposMedicos | C99: Máquina de anestesia 3 gases con monitoreo avanzado. | D99: unidad | E99: 1,897,493.10 | F99: 2.6.3.1.01
A100: Equipo médico y de laboratorio | B100: lsEquiposMedicos | C100: Mesa de parto | D100: unidad | E100: 232,041.10 | F100: 2.6.3.1.01
A101: Equipo médico y de laboratorio | B101: lsEquiposMedicos | C101: Mesa metálica angular rodable para instrumentos de acero inoxidable | D101: unidad | E101: 34,703.80 | F101: 2.6.3.1.01
A102: Equipo médico y de laboratorio | B102: lsEquiposMedicos | C102: Mesa metálica tipo mayo acero inoxidable | D102: unidad | E102: 8,903.10 | F102: 2.6.3.1.01
A103: Equipo médico y de laboratorio | B103: lsEquiposMedicos | C103: Mesa para operaciones mayores | D103: unidad | E103: 130,316.25 | F103: 2.6.3.1.01
A104: Equipo médico y de laboratorio | B104: lsEquiposMedicos | C104: Microscopio binocular Tipo Estándar | D104: unidad | E104: 22,139.75 | F104: 2.6.3.1.01
A105: Equipo médico y de laboratorio | B105: lsEquiposMedicos | C105: Monitor de actividad intrauterina y cardiofetal | D105: unidad | E105: 62,932.23 | F105: 2.6.3.1.01
A106: Equipo médico y de laboratorio | B106: lsEquiposMedicos | C106: Monitor de funciones vitales de transporte 5 pararametros | D106: unidad | E106: 62,932.23 | F106: 2.6.3.1.01
A107: Equipo médico y de laboratorio | B107: lsEquiposMedicos | C107: Monitores de signos vitales de pared de 5 parámetros . | D107: unidad | E107: 57,230.00 | F107: 2.6.3.1.01
A108: Equipo médico y de laboratorio | B108: lsEquiposMedicos | C108: Nebulizador | D108: unidad | E108: 2,549.99 | F108: 2.6.3.1.01
A109: Equipo médico y de laboratorio | B109: lsEquiposMedicos | C109: Negatoscopio metálico de 1 campo | D109: unidad | E109: 13,999.99 | F109: 2.6.3.1.01
A110: Equipo médico y de laboratorio | B110: lsEquiposMedicos | C110: Negatoscopio metálico de 2 campos. | D110: unidad | E110: 19,383.86 | F110: 2.6.3.1.01
A111: Equipo médico y de laboratorio | B111: lsEquiposMedicos | C111: Nevera para banco de sangre | D111: unidad | E111: 250,971.84 | F111: 2.6.3.1.01
A112: Equipo médico y de laboratorio | B112: lsEquiposMedicos | C112: Nevera para Reactivos | D112: unidad | E112: 257,712.00 | F112: 2.6.3.1.01
A113: Equipo médico y de laboratorio | B113: lsEquiposMedicos | C113: Orinal metálico | D113: unidad | E113: 3,613.16 | F113: 2.6.3.1.01
A114: Equipo médico y de laboratorio | B114: lsEquiposMedicos | C114: Pulsoxímetro adulto pediátrico portátil. | D114: unidad | E114: 34,202.30 | F114: 2.6.3.1.01
A115: Equipo médico y de laboratorio | B115: lsEquiposMedicos | C115: Pulsoxímetro con sensor neonatal. | D115: unidad | E115: 30,336.03 | F115: 2.6.3.1.01
A116: Equipo médico y de laboratorio | B116: lsEquiposMedicos | C116: Resucitador manual adulto | D116: unidad | E116: 1,250.80 | F116: 2.6.3.1.01
A117: Equipo médico y de laboratorio | B117: lsEquiposMedicos | C117: Resucitador manual neonatal | D117: unidad | E117: 1,250.80 | F117: 2.6.3.1.01
A118: Equipo médico y de laboratorio | B118: lsEquiposMedicos | C118: Resucitador manual pediátrico | D118: unidad | E118: 1,250.80 | F118: 2.6.3.1.01
A119: Equipo médico y de laboratorio | B119: lsEquiposMedicos | C119: Set de cirugía menor | D119: unidad | E119: 21,240.00 | F119: 2.6.3.1.01
A120: Equipo médico y de laboratorio | B120: lsEquiposMedicos | C120: Set de diagnóstico de pared | D120: unidad | E120: 43,960.90 | F120: 2.6.3.1.01
A121: Equipo médico y de laboratorio | B121: lsEquiposMedicos | C121: Set de diagnóstico portátil | D121: unidad | E121: 13,750.00 | F121: 2.6.3.1.01
A122: Equipo médico y de laboratorio | B122: lsEquiposMedicos | C122: Set instrumental de curaciones. | D122: unidad | E122: 13,570.00 | F122: 2.6.3.1.01
A123: Equipo médico y de laboratorio | B123: lsEquiposMedicos | C123: Silla de rueda aro No. 18 | D123: unidad | E123: 4,284.71 | F123: 2.6.3.1.01
A124: Equipo médico y de laboratorio | B124: lsEquiposMedicos | C124: Silla de rueda aro No. 24 | D124: unidad | E124: 5,726.64 | F124: 2.6.3.1.01
A125: Equipo médico y de laboratorio | B125: lsEquiposMedicos | C125: Sillón dental (de fabricación de local) | D125: unidad | E125: 20,650.00 | F125: 2.6.3.1.01
A126: Equipo médico y de laboratorio | B126: lsEquiposMedicos | C126: Unidad de Monitoreo de Cuidados Intensivos | D126: unidad | E126: 575,000.01 | F126: 2.6.3.1.01
A127: Equipo médico y de laboratorio | B127: lsEquiposMedicos | C127: Unidad de Rayos X portátil y con batería. | D127: unidad | E127: 2,542,900.00 | F127: 2.6.3.1.01
A128: Equipo médico y de laboratorio | B128: lsEquiposMedicos | C128: Unidad dental digital completa | D128: unidad | E128: 172,556.12 | F128: 2.6.3.1.01
A129: Equipo médico y de laboratorio | B129: lsEquiposMedicos | C129: Unidades dentales (de fabricación local) | D129: unidad | E129: 44,250.00 | F129: 2.6.3.1.01
A130: Equipo médico y de laboratorio | B130: lsEquiposMedicos | C130: Ventilador mecánico adulto/pediátrico | D130: unidad | E130: 719,492.56 | F130: 2.6.3.1.01
A131: Equipo médico y de laboratorio | B131: lsEquiposMedicos | C131: Ventilador mecánico neonatal | D131: unidad | E131: 816,192.43 | F131: 2.6.3.1.01
A132: Equipos de cómputo | B132: lsEquiposComputos | C132: Computadoras de escritorio | D132: unidad | E132: 36,954.32 | F132: 2.6.1.3.01
A133: Equipos de cómputo | B133: lsEquiposComputos | C133: Headsets | D133: unidad | E133: 3,776.00 | F133: 2.6.1.3.01
A134: Equipos de cómputo | B134: lsEquiposComputos | C134: Impresora Multifunción | D134: unidad | E134: 12,390.00 | F134: 2.6.1.3.01
A135: Equipos de cómputo | B135: lsEquiposComputos | C135: Impresoras Blanco y Negro | D135: unidad | E135: 6,293.71 | F135: 2.6.1.3.01
A136: Equipos de cómputo | B136: lsEquiposComputos | C136: Laptop de 14 pulgadas | D136: unidad | E136: 27,200.00 | F136: 2.6.1.3.01
A137: Equipos de seguridad | B137: lsEquiposSeguridad | C137: Arco Detector de Metales de 87' de alto x 35' de anho | D137: unidad | E137: 109,504.00 | F137: 2.6.6.2.01
A138: Equipos de seguridad | B138: lsEquiposSeguridad | C138: Detectores de Metal Portatil de 16,5' de longitud | D138: unidad | E138: 5,723.00 | F138: 2.6.6.2.01
A139: Eventos generales | B139: lsEventosGenerales | C139: Alojamiento por una Noche por persona | D139: unidad | E139: 6,200.00 | F139: 2.2.8.6.01
A140: Eventos generales | B140: lsEventosGenerales | C140: Audivisuales, Decoración, Montaje y Desmontaje de Evento por 50 personas | D140: unidad | E140: 86,568.53 | F140: 2.2.8.6.01
A141: Eventos generales | B141: lsEventosGenerales | C141: Audivisuales, Decoración, Montaje y Desmontaje de Evento por 80 personas | D141: unidad | E141: 100,917.38 | F141: 2.2.8.6.01
A142: Gasoil | B142: lsGasoil | C142: Tickets de Combustible de RD$1,000.00 | D142: unidad | E142: 1,000.00 | F142: 2.3.7.1.02
A143: Gasoil | B143: lsGasoil | C143: Tickets de Combustible de RD$200.00 | D143: unidad | E143: 200.00 | F143: 2.3.7.1.02
A144: Gasoil | B144: lsGasoil | C144: Tickets de Combustible de RD$500.00 | D144: unidad | E144: 500.00 | F144: 2.3.7.1.02
A145: Gasoil | B145: lsGasoil | C145: Galones de Gasoil Optimo | D145: galon | E145: 197.00 | F145: 2.3.7.1.02
A146: Gasoil | B146: lsGasoil | C146: Galones de Gasoil Regular | D146: galon | E146: 181.00 | F146: 2.3.7.1.02
A147: Gasoil | B147: lsGasoil | C147: Galones de Gasolina Premium | D147: galon | E147: 251.00 | F147: 2.3.7.1.02
A148: Gasoil | B148: lsGasoil | C148: Galones de Gasolina Regular | D148: galon | E148: 230.00 | F148: 2.3.7.1.02
A149: Gasoil | B149: lsGasoil | C149: Galones de GPL | D149: galon | E149: 110.00 | F149: 2.3.7.1.02
A150: Herramientas menores | B150: lsHerramientasMenores | C150: 60 pie de Alambre Vinyl #14/2 | D150: pie | E150: 28.32 | F150: 2.3.6.3.04
A151: Herramientas menores | B151: lsHerramientasMenores | C151: Bandeja metálica colectora de agua de 1.50 x 0.70 x 0.70mts | D151: unidad | E151: 8,500.00 | F151: 2.3.6.3.04
A152: Herramientas menores | B152: lsHerramientasMenores | C152: Cajas aéreas plásticas | D152: unidad | E152: 81.17 | F152: 2.3.6.3.04
A153: Herramientas menores | B153: lsHerramientasMenores | C153: Canaleta de 1 pulgada | D153: unidad | E153: 103.36 | F153: 2.3.6.3.04
A154: Herramientas menores | B154: lsHerramientasMenores | C154: Codos de 1' PVC | D154: unidad | E154: 20.06 | F154: 2.3.6.3.04
A155: Herramientas menores | B155: lsHerramientasMenores | C155: Destornillador de Estria | D155: unidad | E155: 208.86 | F155: 2.3.6.3.04
A156: Herramientas menores | B156: lsHerramientasMenores | C156: Destornillador Plano | D156: unidad | E156: 206.74 | F156: 2.3.6.3.04
A157: Herramientas menores | B157: lsHerramientasMenores | C157: Faceplate 1 salida | D157: unidad | E157: 43.29 | F157: 2.3.6.3.04
A158: Herramientas menores | B158: lsHerramientasMenores | C158: Grapas Plasticas para Alambre Vinyl #13 | D158: unidad | E158: 5.90 | F158: 2.3.6.3.04
A159: Herramientas menores | B159: lsHerramientasMenores | C159: Llave de Rueda tipo T | D159: unidad | E159: 944.00 | F159: 2.3.6.3.04
A160: Herramientas menores | B160: lsHerramientasMenores | C160: Llaves de paso de bola (1 pulgada) | D160: unidad | E160: 571.12 | F160: 2.3.6.3.04
A161: Herramientas menores | B161: lsHerramientasMenores | C161: Martillo | D161: unidad | E161: 619.50 | F161: 2.3.6.3.04
A162: Herramientas menores | B162: lsHerramientasMenores | C162: Mini Jack RJ45 | D162: unidad | E162: 100.30 | F162: 2.3.6.3.04
A163: Herramientas menores | B163: lsHerramientasMenores | C163: Niples 1' x 2' hg | D163: unidad | E163: 33.63 | F163: 2.3.6.3.04
A164: Herramientas menores | B164: lsHerramientasMenores | C164: Niples de 1' x 3' hg | D164: unidad | E164: 44.25 | F164: 2.3.6.3.04
A165: Herramientas menores | B165: lsHerramientasMenores | C165: Organizador horizontal plástico | D165: unidad | E165: 855.50 | F165: 2.3.6.3.04
A166: Herramientas menores | B166: lsHerramientasMenores | C166: Patch Cord UTP Cat.6 de 2 pies | D166: unidad | E166: 60.23 | F166: 2.3.6.3.04
A167: Herramientas menores | B167: lsHerramientasMenores | C167: Patch Cord UTP Cat.6 de 7 pies | D167: unidad | E167: 102.81 | F167: 2.3.6.3.04
A168: Herramientas menores | B168: lsHerramientasMenores | C168: Patch Panel 24 puertos Cat.6 | D168: unidad | E168: 3,030.43 | F168: 2.3.6.3.04
A169: Herramientas menores | B169: lsHerramientasMenores | C169: Pinzas para corte de tola | D169: unidad | E169: 858.45 | F169: 2.3.6.3.04
A170: Herramientas menores | B170: lsHerramientasMenores | C170: Punta de Tria para Taladro | D170: unidad | E170: 206.72 | F170: 2.3.6.3.04
A171: Herramientas menores | B171: lsHerramientasMenores | C171: PVC CR80/30 (kit de 500) | D171: unidad | E171: 4,425.00 | F171: 2.3.6.3.04
A172: Herramientas menores | B172: lsHerramientasMenores | C172: Rack (Palometas) de Pared para Monitor NK PVM-2701 | D172: unidad | E172: 13,500.00 | F172: 2.3.6.3.04
A173: Herramientas menores | B173: lsHerramientasMenores | C173: Rack de pared 7U con Bisagras | D173: unidad | E173: 1,416.00 | F173: 2.3.6.3.04
A174: Herramientas menores | B174: lsHerramientasMenores | C174: Tarugos Azules | D174: unidad | E174: 3.54 | F174: 2.3.6.3.04
A175: Herramientas menores | B175: lsHerramientasMenores | C175: tee de 1 pulgada hg | D175: unidad | E175: 73.16 | F175: 2.3.6.3.04
A176: Herramientas menores | B176: lsHerramientasMenores | C176: Tira de Lija 100/1 | D176: unidad | E176: 548.27 | F176: 2.3.6.3.04
A177: Herramientas menores | B177: lsHerramientasMenores | C177: Tira de Lija de Metal 12/1 | D177: unidad | E177: 526.33 | F177: 2.3.6.3.04
A178: Herramientas menores | B178: lsHerramientasMenores | C178: Tornillo para Tarugo Azul | D178: unidad | E178: 3.54 | F178: 2.3.6.3.04
A179: Herramientas menores | B179: lsHerramientasMenores | C179: Tubo de Silicón Transparente | D179: unidad | E179: 265.50 | F179: 2.3.6.3.04
A180: Impresión y encuadernación | B180: lsImpresionyEncuadernacion | C180: Impresión Formularios (dos caras) | D180: unidad | E180: 1.98 | F180: 2.2.2.2.01
A181: Llantas y neumáticos | B181: lsLlantasyNeumaticos | C181: Goma (No.265/70/16 para camioneta Toyota Hilux) | D181: unidad | E181: 7,773.84 | F181: 2.3.5.3.01
A182: Llantas y neumáticos | B182: lsLlantasyNeumaticos | C182: Gomas (No. 265/70/15 para jeep Chevrolet Brazer) | D182: unidad | E182: 9,343.24 | F182: 2.3.5.3.01
A183: Llantas y neumáticos | B183: lsLlantasyNeumaticos | C183: Neumáticos para Ford Ranger, Pirelli 265-70R-16 | D183: unidad | E183: 10,915.00 | F183: 2.3.5.3.01
A184: Llantas y neumáticos | B184: lsLlantasyNeumaticos | C184: Neumáticos para Motocicleta 110/80-18-58, trasera, Michelin | D184: unidad | E184: 3,923.50 | F184: 2.3.5.3.01
A185: Llantas y neumáticos | B185: lsLlantasyNeumaticos | C185: Neumáticos para Motocicletas 80/90-21mc48p, delanteras Michelin | D185: unidad | E185: 4,543.00 | F185: 2.3.5.3.01
A186: Llantas y neumáticos | B186: lsLlantasyNeumaticos | C186: Neumáticos para Toyota Hilux, Firestone 265/70 R 16 | D186: unidad | E186: 9,204.00 | F186: 2.3.5.3.01
A187: Llantas y neumáticos | B187: lsLlantasyNeumaticos | C187: Tubo de Neumáticos para Motocicleta, delantero, Michelin | D187: unidad | E187: 1,239.00 | F187: 2.3.5.3.01
A188: Llantas y neumáticos | B188: lsLlantasyNeumaticos | C188: Tubo de Neumáticos para Motocicleta, trasero, Michelin | D188: unidad | E188: 1,239.00 | F188: 2.3.5.3.01
A189: Mantenimiento y reparación de equipos de transporte, tracción y elevación | B189: lsMantenimiento | C189: Instalación, Correcion de Pintura, Cristal Delantero y Bumper de vehiculo | D189: unidad | E189: 54,999.99 | F189: 2.7.2.6.01
A190: Mantenimiento y reparación de equipos de transporte, tracción y elevación | B190: lsMantenimiento | C190: Mantenimiento de Vehículos | D190: unidad | E190: 17,023.80 | F190: 2.7.2.6.01
A191: Mantenimiento y reparación de equipos para computación | B191: lsMantenimiento | C191: Mantenimiento y/o Reparación Impresora Multifuncional | D191: unidad | E191: 4,130.00 | F191: 2.7.2.2.01
A192: Mantenimiento y reparación de equipos para computación | B192: lsMantenimiento | C192: Mantenimiento y/o Reparación Impresora Laser | D192: unidad | E192: 16,048.00 | F192: 2.7.2.2.01
A193: Mantenimiento y reparación de equipos para computación | B193: lsMantenimiento | C193: Servicio de Reparación y Mantenimiento de Fotocopiadora (anual) | D193: unidad | E193: 24,502.70 | F193: 2.7.2.2.01
A194: Mantenimiento y reparación de equipos sanitarios y de laboratorio | B194: lsMantenimiento | C194: Reparación de Tomógrafo General Electric Brights Speed, serial 277468nm5 | D194: unidad | E194: 715,000.00 | F194: 2.7.2.4.01
A195: Mantenimiento y reparación de maquinarias y equipos | B195: lsMantenimiento | C195: Mantenimiento de Planta Electrica Cummins 20KVA | D195: unidad | E195: 60,742.81 | F195: 2.7.2.6.01
A196: Mantenimiento y reparación de maquinarias y equipos | B196: lsMantenimiento | C196: Mantenimiento y Reparación de Aire Acondicionado de 3 Toneladas | D196: unidad | E196: 30,385.00 | F196: 2.7.2.6.01
A197: Mantenimiento y reparación de maquinarias y equipos | B197: lsMantenimiento | C197: Reparacion y Mantenimiento Planta Eléctrica | D197: unidad | E197: 79,818.74 | F197: 2.7.2.6.01
A198: Mantenimiento y reparación de maquinarias y equipos | B198: lsMantenimiento | C198: Servicio de Mantenimiento de Aire Acondicionado | D198: unidad | E198: 4,500.00 | F198: 2.2.7.2.01
A199: Mantenimiento y reparación de maquinarias y equipos | B199: lsMantenimiento | C199: Servicio de mantenimiento,lavado y brillado de piso | D199: unidad | E199: 44,840.00 | F199: 2.7.1.7.01
A200: Mantenimiento y reparación de maquinarias y equipos | B200: lsMantenimiento | C200: Servicios de Desinstalacion, Instalación y Mantenimiento | D200: unidad | E200: 8,850.00 | F200: 2.7.2.6.01
... 365 more rows

Sheet PPNE5
A1: =+PPNE1!B1 -> Plan Operativo Anual
A2: Servicio Nacional de Salud
A3: Dirección de Planificación y Desarrollo
A4: Consolidado Presupuesto Estimado de Ingresos y Gastos Nivel Especializado por Fuente de Financiamiento
A5: =+PPNE1!C5 -> 2026
A6: Servicio Regional de Salud: | F6: =+PPNE1!B6 -> Cibao Norte
A7: Establecimiento: | F7: =+PPNE1!B7 -> 0
A8: Estimación de Ingresos
A9: Anticipos Financieros | G9: =+PPNE3!F16 -> 561,629,281.00
A10: Venta de Servicios y Otros Ingresos | G10: =+PPNE3!F25 -> 240,000,000.00
A11: Aportes SNS Nómina | G11: =+PPNE3!F15 -> 0.00
A12: Otros Aportes | G12: =+PPNE3!F9+PPNE3!F17+PPNE3!F21+PPNE3!F22 -> 0.00
A13: Transferencias Corrientes | G13: =+PPNE3!F18 -> 0.00
A14: Total Ingresos RD$ | G14: =SUM(G9:G13) -> 801,629,281.00
A15: Estimación de Gastos
A16: Tipo | B16: Objeto | C16: Cuenta | D16: Sub-Cuenta | E16: Auxiliar | F16: Descripción Gasto por Cuenta | G16: Anticipos Financieros / Transferencias | H16: Venta de Servicios | I16: Nómina | J16: Total RD$ | K16: %
A18: 2 | F18: Egresos | G18: =+G19+G67+G170+G254+G270+G323 -> 561,629,281.00 | H18: =+H19+H67+H170+H254+H270+H323 -> 240,000,000.00 | I18: 0.00 | J18: 801,280,531.00 | K18: 100.00
A19: 2 | B19: 1 | F19: Servicios Personales | G19: =+G20+G42+G54+G58 -> 561,629,281.00 | H19: =+H20+H42+H54+H58 -> 24,000,000.00 | I19: 0.00 | J19: 585,629,281.00 | K19: 73.09
A20: 2 | B20: 1 | C20: 1 | F20: Remuneraciones | G20: =+G21+G26+G33+G35+G37 -> 493,704,265.00 | H20: =+H21+H26+H33+H35+H37 -> 0.00 | I20: 0.00 | J20: 493,704,265.00 | K20: 61.61
A21: 2 | B21: 1 | C21: 1 | D21: 1 | F21: Remuneraciones al personal fijo | G21: =SUM(G22:G25) -> 433,807,706.00 | H21: =SUM(H22:H25) -> 0.00 | I21: 0.00 | J21: 433,807,706.00 | K21: 54.14
A22: 2 | B22: 1 | C22: 1 | D22: 1 | E22: `01 | F22: Sueldos fijos | G22: 433,807,706.00 | J22: =SUBTOTAL(9,G22:I22) -> 433,807,706.00 | K22: =IFERROR(J22/$J$18*100,"0.00") -> 54.14
A23: 2 | B23: 1 | C23: 1 | D23: 1 | E23: `02 | F23: Sueldos a medicos | J23: 0.00 | K23: =IFERROR(J23/$J$18*100,"0.00") -> 0.00
A24: 2 | B24: 1 | C24: 1 | D24: 1 | E24: `05 | F24: Incentivos y escalafón | J24: 0.00 | K24: 0.00
A25: 2 | B25: 1 | C25: 1 | D25: 1 | E25: `06 | F25: Nuevas plazas a medicos | J25: 0.00 | K25: 0.00
A26: 2 | B26: 1 | C26: 1 | D26: 2 | F26: Remuneraciones al personal con carácter transitorio | G26: =SUM(G27:G32) -> 17,482,243.00 | H26: =SUM(H27:H32) -> 0.00 | I26: 0.00 | J26: =SUM(J27:J32) -> 17,482,243.00 | K26: 2.18
A27: 2 | B27: 1 | C27: 1 | D27: 2 | E27: `03 | F27: Suplencias | J27: 0.00 | K27: 0.00
A28: 2 | B28: 1 | C28: 1 | D28: 2 | E28: `05 | F28: Sueldo al personal nominal en período probatorio | J28: =SUBTOTAL(9,G28:I28) -> 0.00 | K28: =IFERROR(J28/$J$18*100,"0.00") -> 0.00
A29: 2 | B29: 1 | C29: 1 | D29: 2 | E29: `06 | F29: Jornales | J29: 0.00 | K29: 0.00
A30: 2 | B30: 1 | C30: 1 | D30: 2 | E30: `08 | F30: Empleados temporales | G30: 17,482,243.00 | J30: 17,482,243.00 | K30: 2.18
A31: 2 | B31: 1 | C31: 1 | D31: 2 | E31: `09 | F31: Personal de carácter eventual | J31: 0.00 | K31: 0.00
A32: 2 | B32: 1 | C32: 1 | D32: 2 | E32: `11 | F32: Interinato | J32: 0.00 | K32: 0.00
A33: 2 | B33: 1 | C33: 1 | D33: 3 | F33: Sueldos al personal fijo en trámite de pensiones | G33: =G34 -> 0.00 | H33: =H34 -> 0.00 | I33: 0.00 | J33: 0.00 | K33: 0.00
A34: 2 | B34: 1 | C34: 1 | D34: 3 | E34: `01 | F34: Sueldos al personal fijo en trámite de pensiones | J34: =SUBTOTAL(9,G34:I34) -> 0.00 | K34: 0.00
A35: 2 | B35: 1 | C35: 1 | D35: 4 | F35: Sueldo anual No. 13 | G35: =G36 -> 42,414,316.00 | H35: =H36 -> 0.00 | I35: 0.00 | J35: 42,414,316.00 | K35: 5.29
A36: 2 | B36: 1 | C36: 1 | D36: 4 | E36: `01 | F36: Sueldo anual No. 13 | G36: 42,414,316.00 | J36: 42,414,316.00 | K36: =IFERROR(J36/$J$18*100,"0.00") -> 5.29
A37: 2 | B37: 1 | C37: 1 | D37: 5 | F37: Prestacianes economicas | G37: =SUM(G38:G41) -> 0.00 | H37: =SUM(H38:H41) -> 0.00 | I37: 0.00 | J37: 0.00 | K37: 0.00
A38: 2 | B38: 1 | C38: 1 | D38: 5 | E38: `01 | F38: Prestacianes economicas | J38: 0.00 | K38: 0.00
A39: 2 | B39: 1 | C39: 1 | D39: 5 | E39: `02 | F39: Pago de porcentaje por desvinculación de cargo | J39: 0.00 | K39: 0.00
A40: 2 | B40: 1 | C40: 1 | D40: 5 | E40: `03 | F40: Prestacion laboral por desvinculación | J40: 0.00 | K40: 0.00
A41: 2 | B41: 1 | C41: 1 | D41: 5 | E41: `04 | F41: Proporción de vacaciones no disfrutadas | J41: 0.00 | K41: 0.00
A42: 2 | B42: 1 | C42: 2 | F42: Sobresueldos | G42: =+G43+G45 -> 515,391.00 | H42: =+H43+H45 -> 24,000,000.00 | I42: 0.00 | J42: 24,515,391.00 | K42: 3.06
A43: 2 | B43: 1 | C43: 2 | D43: 1 | F43: Primas por antigüedad | G43: =G44 -> 435,191.00 | H43: =H44 -> 0.00 | I43: 0.00 | J43: 435,191.00 | K43: 0.05
A44: 2 | B44: 1 | C44: 2 | D44: 1 | E44: `01 | F44: Primas por antigüedad | G44: 435,191.00 | J44: =SUBTOTAL(9,G44:I44) -> 435,191.00 | K44: =IFERROR(J44/$J$18*100,"0.00") -> 0.05
A45: 2 | B45: 1 | C45: 2 | D45: 2 | F45: Compensación | G45: =SUM(G46:G53) -> 80,200.00 | H45: =SUM(H46:H53) -> 24,000,000.00 | I45: 0.00 | J45: 24,080,200.00 | K45: 3.01
A46: 2 | B46: 1 | C46: 2 | D46: 2 | E46: `03 | F46: Pago de horas extraordinarias, Horas extraordinarias fin de año (Reglamento 523-09) | J46: =SUBTOTAL(9,G46:I46) -> 0.00 | K46: =IFERROR(J46/$J$18*100,"0.00") -> 0.00
A47: 2 | B47: 1 | C47: 2 | D47: 2 | E47: `04 | F47: Prima de transporte | J47: =SUBTOTAL(9,G47:I47) -> 0.00 | K47: 0.00
A48: 2 | B48: 1 | C48: 2 | D48: 2 | E48: `05 | F48: Compensación servicios de Seguridad | J48: 0.00 | K48: 0.00
A49: 2 | B49: 1 | C49: 2 | D49: 2 | E49: `06 | F49: Incentivo por rendimiento individual | H49: 24,000,000.00 | J49: 24,000,000.00 | K49: 3.00
A50: 2 | B50: 1 | C50: 2 | D50: 2 | E50: `07 | F50: Compensación por distancia | J50: 0.00 | K50: 0.00
A51: 2 | B51: 1 | C51: 2 | D51: 2 | E51: `08 | F51: Compensaciones especiales | G51: 80,200.00 | J51: 80,200.00 | K51: 0.01
A52: 2 | B52: 1 | C52: 2 | D52: 2 | E52: `09 | F52: Bono por desempeño | J52: 0.00 | K52: 0.00
A53: 2 | B53: 1 | C53: 2 | D53: 2 | E53: `10 | F53: Compensación por cumplimiento de indicadores | J53: 0.00 | K53: =IFERROR(J53/$J$18*100,"0.00") -> 0.00
A54: 2 | B54: 1 | C54: 3 | F54: Dietas y Gastos de Representación | G54: =+G55 -> 0.00 | H54: =+H55 -> 0.00 | I54: 0.00 | J54: 0.00 | K54: 0.00
A55: 2 | B55: 1 | C55: 3 | D55: 2 | F55: Gastos de representación | G55: =SUM(G56:G57) -> 0.00 | H55: =SUM(H56:H57) -> 0.00 | I55: 0.00 | J55: 0.00 | K55: =SUM(K56:K57) -> 0.00
A56: 2 | B56: 1 | C56: 3 | D56: 2 | E56: `01 | F56: Gastos de representación en el país | J56: =SUBTOTAL(9,G56:I56) -> 0.00 | K56: =IFERROR(J56/$J$18*100,"0.00") -> 0.00
A57: 2 | B57: 1 | C57: 3 | D57: 2 | E57: `02 | F57: Gastos de representación en el exterior | J57: =SUBTOTAL(9,G57:I57) -> 0.00 | K57: =IFERROR(J57/$J$18*100,"0.00") -> 0.00
A58: 2 | B58: 1 | C58: 5 | F58: Contribuciones a la Seguridad Social y Riesgo Laboral | G58: =G59+G61+G63+G65 -> 67,409,625.00 | H58: =H59+H61+H63+H65 -> 0.00 | I58: 0.00 | J58: 67,409,625.00 | K58: 8.41
A59: 2 | B59: 1 | C59: 5 | D59: 1 | F59: Contribuciones al seguro de salud | G59: =G60 -> 31,336,421.00 | H59: =H60 -> 0.00 | I59: 0.00 | J59: 31,336,421.00 | K59: 3.91
A60: 2 | B60: 1 | C60: 5 | D60: 1 | E60: `01 | F60: Contribuciones al seguro de salud | G60: 31,336,421.00 | J60: 31,336,421.00 | K60: =IFERROR(J60/$J$18*100,"0.00") -> 3.91
A61: 2 | B61: 1 | C61: 5 | D61: 2 | F61: Contribuciones al seguro de pensiones | G61: =G62 -> 31,379,205.00 | H61: =H62 -> 0.00 | I61: =I62 -> 0.00 | J61: =J62 -> 31,379,205.00 | K61: =K62 -> 3.92
A62: 2 | B62: 1 | C62: 5 | D62: 2 | E62: `01 | F62: Contribuciones al seguro de pensiones | G62: 31,379,205.00 | J62: =SUBTOTAL(9,G62:I62) -> 31,379,205.00 | K62: =IFERROR(J62/$J$18*100,"0.00") -> 3.92
A63: 2 | B63: 1 | C63: 5 | D63: 3 | F63: Contribuciones al seguro de riesgo laboral | G63: =G64 -> 4,693,999.00 | H63: =H64 -> 0.00 | I63: 0.00 | J63: 4,693,999.00 | K63: 0.59
A64: 2 | B64: 1 | C64: 5 | D64: 3 | E64: `01 | F64: Contribuciones al seguro de riesgo laboral | G64: 4,693,999.00 | J64: =SUBTOTAL(9,G64:I64) -> 4,693,999.00 | K64: =IFERROR(J64/$J$18*100,"0.00") -> 0.59
A65: 2 | B65: 1 | C65: 5 | D65: 4 | F65: Contribuciones al plan de retiro complementario | G65: =G66 -> 0.00 | H65: =H66 -> 0.00 | I65: 0.00 | J65: 0.00 | K65: 0.00
A66: 2 | B66: 1 | C66: 5 | D66: 4 | E66: `01 | F66: Contribuciones al plan de retiro complementario | J66: =SUBTOTAL(9,G66:I66) -> 0.00 | K66: =IFERROR(J66/$J$18*100,"0.00") -> 0.00
A67: 2 | B67: 2 | F67: Contratacion de servicios | G67: =+G68+G82+G87+G92+G99+G116+G125+G143 -> 0.00 | H67: =+H68+H82+H87+H92+H99+H116+H125+H143 -> 24,730,680.00 | I67: =+I68+I82+I87+I92+I99+I116+I125+I143 -> 0.00 | J67: 24,381,930.00 | K67: 3.04
A68: 2 | B68: 2 | C68: 1 | F68: Servicios Básicos | G68: =+G69+G71+G73+G75+G78+G80 -> 0.00 | H68: =+H69+H71+H73+H75+H78+H80 -> 3,730,000.00 | I68: =+I69+I71+I73+I75+I78+I80 -> 0.00 | J68: 3,730,000.00 | K68: 0.47
A69: 2 | B69: 2 | C69: 1 | D69: 2 | F69: Servicios telefónico de larga distancia | G69: =G70 -> 0.00 | H69: =H70 -> 0.00 | I69: 0.00 | J69: =J70 -> 0.00 | K69: 0.00
A70: 2 | B70: 2 | C70: 1 | D70: 2 | E70: `01 | F70: Servicios telefónico de larga distancia | J70: =SUBTOTAL(9,G70:I70) -> 0.00 | K70: 0.00
A71: 2 | B71: 2 | C71: 1 | D71: 3 | F71: Teléfono local | G71: =G72 -> 0.00 | H71: =H72 -> 2,100,000.00 | I71: 0.00 | J71: 2,100,000.00 | K71: 0.26
A72: 2 | B72: 2 | C72: 1 | D72: 3 | E72: `01 | F72: Teléfono local | H72: 2,100,000.00 | J72: =SUBTOTAL(9,G72:I72) -> 2,100,000.00 | K72: 0.26
A73: 2 | B73: 2 | C73: 1 | D73: 5 | F73: Servicio de internet y televisión por cable | G73: =G74 -> 0.00 | H73: =H74 -> 0.00 | I73: 0.00 | J73: 0.00 | K73: 0.00
A74: 2 | B74: 2 | C74: 1 | D74: 5 | E74: `01 | F74: Servicio de internet y televisión por cable | J74: =SUBTOTAL(9,G74:I74) -> 0.00 | K74: 0.00
A75: 2 | B75: 2 | C75: 1 | D75: 6 | F75: Electricidad | G75: =G76+G77 -> 0.00 | H75: =H76+H77 -> 0.00 | I75: 0.00 | J75: 0.00 | K75: 0.00
A76: 2 | B76: 2 | C76: 1 | D76: 6 | E76: `01 | F76: Energía eléctrica | J76: =SUBTOTAL(9,G76:I76) -> 0.00 | K76: 0.00
A77: 2 | B77: 2 | C77: 1 | D77: 6 | E77: `02 | F77: Electricidad no cortable | J77: =SUBTOTAL(9,G77:I77) -> 0.00 | K77: 0.00
A78: 2 | B78: 2 | C78: 1 | D78: 7 | F78: Agua | G78: =G79 -> 0.00 | H78: =H79 -> 0.00 | I78: 0.00 | J78: 0.00 | K78: 0.00
A79: 2 | B79: 2 | C79: 1 | D79: 7 | E79: `01 | F79: Agua | J79: =SUBTOTAL(9,G79:I79) -> 0.00 | K79: 0.00
A80: 2 | B80: 2 | C80: 1 | D80: 8 | F80: Recolección de residuos sólidos | G80: =G81 -> 0.00 | H80: =H81 -> 1,630,000.00 | I80: 0.00 | J80: 1,630,000.00 | K80: 0.20
A81: 2 | B81: 2 | C81: 1 | D81: 8 | E81: `01 | F81: Recolección de residuos sólidos | H81: 1,630,000.00 | J81: =SUBTOTAL(9,G81:I81) -> 1,630,000.00 | K81: 0.20
A82: 2 | B82: 2 | C82: 2 | F82: Publicidad Impresión y Encuadernación | G82: =+G83+G85 -> 0.00 | H82: =+H83+H85 -> 1,254,000.00 | I82: =+I83+I85 -> 0.00 | J82: 1,254,000.00 | K82: 0.16
A83: 2 | B83: 2 | C83: 2 | D83: 1 | F83: Publicidad y propaganda | G83: =G84 -> 0.00 | H83: =H84 -> 0.00 | I83: 0.00 | J83: 0.00 | K83: 0.00
A84: 2 | B84: 2 | C84: 2 | D84: 1 | E84: `01 | F84: Publicidad y propaganda | J84: =SUBTOTAL(9,G84:I84) -> 0.00 | K84: 0.00
A85: 2 | B85: 2 | C85: 2 | D85: 2 | F85: Impresión y encuadernación | G85: =G86 -> 0.00 | H85: =H86 -> 1,254,000.00 | I85: =I86 -> 0.00 | J85: =J86 -> 1,254,000.00 | K85: =K86 -> 0.16
A86: 2 | B86: 2 | C86: 2 | D86: 2 | E86: `01 | F86: Impresión y encuadernación | H86: 1,254,000.00 | J86: =SUBTOTAL(9,G86:I86) -> 1,254,000.00 | K86: 0.16
A87: 2 | B87: 2 | C87: 3 | F87: Viáticos | G87: =+G88+G90 -> 0.00 | H87: =+H88+H90 -> 0.00 | I87: 0.00 | J87: 0.00 | K87: 0.00
A88: 2 | B88: 2 | C88: 3 | D88: 1 | F88: Viáticos dentro del país | G88: =G89 -> 0.00 | H88: =H89 -> 0.00 | I88: 0.00 | J88: 0.00 | K88: 0.00
A89: 2 | B89: 2 | C89: 3 | D89: 1 | E89: `01 | F89: Viáticos dentro del país | J89: =SUBTOTAL(9,G89:I89) -> 0.00 | K89: 0.00
A90: 2 | B90: 2 | C90: 3 | D90: 2 | F90: Viáticos fuera del país | G90: =G91 -> 0.00 | H90: =H91 -> 0.00 | I90: 0.00 | J90: 0.00 | K90: 0.00
A91: 2 | B91: 2 | C91: 3 | D91: 2 | E91: `01 | F91: Viáticos fuera del país | J91: =SUBTOTAL(9,G91:I91) -> 0.00 | K91: 0.00
A92: 2 | B92: 2 | C92: 4 | F92: Transporte y Alamcenaje | G92: =+G93+G95+G97 -> 0.00 | H92: =+H93+H95+H97 -> 2,280,000.00 | I92: 0.00 | J92: 2,280,000.00 | K92: 0.28
A93: 2 | B93: 2 | C93: 4 | D93: 1 | F93: Pasajes y gastos de transporte | G93: =G94 -> 0.00 | H93: =H94 -> 0.00 | I93: 0.00 | J93: 0.00 | K93: 0.00
A94: 2 | B94: 2 | C94: 4 | D94: 1 | E94: `01 | F94: Pasajes y gastos de transporte | J94: =SUBTOTAL(9,G94:I94) -> 0.00 | K94: 0.00
A95: 2 | B95: 2 | C95: 4 | D95: 2 | F95: Fletes | G95: =G96 -> 0.00 | H95: =H96 -> 2,200,000.00 | I95: 0.00 | J95: 2,200,000.00 | K95: 0.27
A96: 2 | B96: 2 | C96: 4 | D96: 2 | E96: `01 | F96: Fletes | H96: 2,200,000.00 | J96: =SUBTOTAL(9,G96:I96) -> 2,200,000.00 | K96: 0.27
A97: 2 | B97: 2 | C97: 4 | D97: 4 | F97: Peaje | G97: =G98 -> 0.00 | H97: =H98 -> 80,000.00 | I97: 0.00 | J97: 80,000.00 | K97: 0.01
A98: 2 | B98: 2 | C98: 4 | D98: 4 | E98: `01 | F98: Peaje | H98: 80,000.00 | J98: =SUBTOTAL(9,G98:I98) -> 80,000.00 | K98: 0.01
A99: 2 | B99: 2 | C99: 5 | F99: Alquileres y Rentas | G99: =+G100+G102+G104+G110+G112 -> 0.00 | H99: =+H100+H102+H104+H110+H112 -> 340,000.00 | I99: 0.00 | J99: 340,000.00 | K99: 0.04
A100: 2 | B100: 2 | C100: 5 | D100: 1 | F100: Alquilleres y rentas de edificios y locales | G100: =G101 -> 0.00 | H100: =H101 -> 0.00 | I100: 0.00 | J100: 0.00 | K100: 0.00
A101: 2 | B101: 2 | C101: 5 | D101: 1 | E101: `01 | F101: Alquilleres y rentas de edificios y locales | J101: =SUBTOTAL(9,G101:I101) -> 0.00 | K101: 0.00
A102: 2 | B102: 2 | C102: 5 | D102: 2 | F102: Alquileres de máquinas y equipos de producción | G102: =G103 -> 0.00 | H102: =H103 -> 0.00 | I102: 0.00 | J102: 0.00 | K102: 0.00
A103: 2 | B103: 2 | C103: 5 | D103: 2 | E103: `01 | F103: Alquileres de máquinas y equipos de producción | J103: =SUBTOTAL(9,G103:I103) -> 0.00 | K103: 0.00
A104: 2 | B104: 2 | C104: 5 | D104: 3 | F104: Alquileres de equipos | G104: =SUM(G105:G109) -> 0.00 | H104: =SUM(H105:H109) -> 0.00 | I104: 0.00 | J104: =SUM(J105:J109) -> 0.00 | K104: =SUM(K105:K109) -> 0.00
A105: 2 | B105: 2 | C105: 5 | D105: 3 | E105: `01 | F105: Alquiler de equipo educacional | J105: =SUBTOTAL(9,G105:I105) -> 0.00 | K105: 0.00
A106: 2 | B106: 2 | C106: 5 | D106: 3 | E106: `02 | F106: Alquiler de equipo para computación | J106: =SUBTOTAL(9,G106:I106) -> 0.00 | K106: 0.00
A107: 2 | B107: 2 | C107: 5 | D107: 3 | E107: `03 | F107: Alquiler de equipo de comunicación | J107: 0.00 | K107: 0.00
A108: 2 | B108: 2 | C108: 5 | D108: 3 | E108: `04 | F108: Alquiler de equipo de oficina y muebles | J108: 0.00 | K108: 0.00
A109: 2 | B109: 2 | C109: 5 | D109: 3 | E109: `05 | F109: Alquiler de equipos sanitarios y de laboratorios | J109: 0.00 | K109: 0.00
A110: 2 | B110: 2 | C110: 5 | D110: 4 | F110: Alquileres de equipos de transporte, tracción y elevación | G110: =G111 -> 0.00 | H110: =H111 -> 340,000.00 | I110: 0.00 | J110: 340,000.00 | K110: 0.04
A111: 2 | B111: 2 | C111: 5 | D111: 4 | E111: `01 | F111: Alquileres de equipos de transporte, tracción y elevación | H111: 340,000.00 | J111: 340,000.00 | K111: 0.04
A112: 2 | B112: 2 | C112: 5 | D112: 8 | F112: Otros alquileres | G112: =G113 -> 0.00 | H112: =H113 -> 0.00 | I112: =I113 -> 0.00 | J112: =J113 -> 0.00 | K112: 0.00
A113: 2 | B113: 2 | C113: 5 | D113: 8 | E113: `01 | F113: Otros alquileres | J113: =SUBTOTAL(9,G113:I113) -> 0.00 | K113: 0.00
A114: 2 | B114: 2 | C114: 5 | D114: 9 | F114: Derecho de uso | G114: =+G115 -> 0.00 | H114: =+H115 -> 0.00 | I114: 0.00 | J114: 0.00 | K114: 0.00
A115: 2 | B115: 2 | C115: 5 | D115: 9 | E115: `01 | F115: Licencias informaticas | J115: =SUBTOTAL(9,G115:I115) -> 0.00 | K115: 0.00
A116: 2 | B116: 2 | C116: 6 | F116: Seguros | G116: =+G117+G119+G121+G123 -> 0.00 | H116: =+H117+H119+H121+H123 -> 0.00 | I116: =+I117+I119+I121+I123 -> 0.00 | J116: =+J117+J119+J121+J123 -> 0.00 | K116: =+K117+K119+K121+K123 -> 0.00
A117: 2 | B117: 2 | C117: 6 | D117: 1 | F117: Seguro de bienes inmuebles e infraestructura | G117: =G118 -> 0.00 | H117: =H118 -> 0.00 | I117: 0.00 | J117: 0.00 | K117: 0.00
A118: 2 | B118: 2 | C118: 6 | D118: 1 | E118: `01 | F118: Seguro de bienes inmuebles e infraestructura | J118: =SUBTOTAL(9,G118:I118) -> 0.00 | K118: 0.00
A119: 2 | B119: 2 | C119: 6 | D119: 2 | F119: Seguro de bienes muebles | G119: =G120 -> 0.00 | H119: =H120 -> 0.00 | I119: 0.00 | J119: 0.00 | K119: 0.00
A120: 2 | B120: 2 | C120: 6 | D120: 2 | E120: `01 | F120: Seguro de bienes muebles | J120: =SUBTOTAL(9,G120:I120) -> 0.00 | K120: 0.00
A121: 2 | B121: 2 | C121: 6 | D121: 3 | F121: Seguros de personas | G121: =G122 -> 0.00 | H121: =H122 -> 0.00 | I121: 0.00 | J121: 0.00 | K121: 0.00
A122: 2 | B122: 2 | C122: 6 | D122: 3 | E122: `01 | F122: Seguros de personas | J122: =SUBTOTAL(9,G122:I122) -> 0.00 | K122: 0.00
A123: 2 | B123: 2 | C123: 6 | D123: 9 | F123: Otros seguros | G123: =+G124 -> 0.00 | H123: =+H124 -> 0.00 | I123: 0.00 | J123: 0.00 | K123: 0.00
A124: 2 | B124: 2 | C124: 6 | D124: 9 | E124: `01 | F124: Otros seguros | J124: =SUBTOTAL(9,G124:I124) -> 0.00 | K124: 0.00
A125: 2 | B125: 2 | C125: 7 | F125: Servicios de Conservación, Reparaciones Menores e Instalaciones Temporales | G125: =+G126+G131+G141 -> 0.00 | H125: =+H126+H131+H141 -> 11,464,688.00 | I125: =+I126+I131+I141 -> 0.00 | J125: 11,464,688.00 | K125: 1.43
A126: 2 | B126: 2 | C126: 7 | D126: 1 | F126: Contratación de mantenimiento y reparaciones menores | G126: =SUM(G127:G130) -> 0.00 | H126: =SUM(H127:H130) -> 2,055,866.00 | I126: =SUM(I127:I130) -> 0.00 | J126: 2,055,866.00 | K126: 0.26
A127: 2 | B127: 2 | C127: 7 | D127: 1 | E127: `01 | F127: Mantenimiento y reparaciones menores en edificaciones | H127: 1,555,866.00 | J127: =SUBTOTAL(9,G127:I127) -> 1,555,866.00 | K127: 0.19
A128: 2 | B128: 2 | C128: 7 | D128: 1 | E128: `06 | F128: Mantenimiento y reparación de Instalaciones eléctricas | H128: 500,000.00 | J128: =SUBTOTAL(9,G128:I128) -> 500,000.00 | K128: 0.06
A129: 2 | B129: 2 | C129: 7 | D129: 1 | E129: `07 | F129: Mantenimiento y reparación, servicios de pintura y sus derivados | J129: 0.00 | K129: =IFERROR(J129/$J$18*100,"0.00") -> 0.00
A130: 2 | B130: 2 | C130: 7 | D130: 1 | E130: `99 | F130: Otros mantenimientos, reparaciones y sus derivados, no identificados precedentamente. | J130: 0.00 | K130: 0.00
A131: 2 | B131: 2 | C131: 7 | D131: 2 | F131: Mantenimientos y reparacion de maquinarias y equipos | G131: =SUM(G132:G140) -> 0.00 | H131: =SUM(H132:H140) -> 7,296,442.00 | I131: =SUM(I132:I140) -> 0.00 | J131: 7,296,442.00 | K131: 0.91
A132: 2 | B132: 2 | C132: 7 | D132: 2 | E132: `01 | F132: Mantenimiento y reparación de mobiliarios y equipos de oficina | H132: 475,000.00 | J132: =SUBTOTAL(9,G132:I132) -> 475,000.00 | K132: 0.06
A133: 2 | B133: 2 | C133: 7 | D133: 2 | E133: `02 | F133: Mantenimiento y reparación de equipo tecnologia e informacion | J133: =SUBTOTAL(9,G133:I133) -> 0.00 | K133: 0.00
A134: 2 | B134: 2 | C134: 7 | D134: 2 | E134: `03 | F134: Mantenimiento y reparación de equipo de educacionales, deportivos y recreativos | J134: 0.00 | K134: 0.00
A135: 2 | B135: 2 | C135: 7 | D135: 2 | E135: `04 | F135: Mantenimiento y reparación de equipos medicos, sanitarios y de laboratorio | H135: 2,395,000.00 | J135: 2,395,000.00 | K135: 0.30
A136: 2 | B136: 2 | C136: 7 | D136: 2 | E136: `05 | F136: Mantenimiento y reparación de equipos de comunicación | J136: 0.00 | K136: 0.00
A137: 2 | B137: 2 | C137: 7 | D137: 2 | E137: `06 | F137: Mantenimiento y reparación de equipos de transporte, tracción y elevación | H137: 1,630,000.00 | J137: 1,630,000.00 | K137: 0.20
A138: 2 | B138: 2 | C138: 7 | D138: 2 | E138: `07 | F138: Mantenimiento y reparación de equipos industriales y producción | H138: 202,854.00 | J138: 202,854.00 | K138: 0.03
A139: 2 | B139: 2 | C139: 7 | D139: 2 | E139: `08 | F139: Servicios de mantenimiento, reparación, desmonte e instalación | H139: 2,593,588.00 | J139: =SUBTOTAL(9,G139:I139) -> 2,593,588.00 | K139: 0.32
A140: 2 | B140: 2 | C140: 7 | D140: 2 | E140: `99 | F140: Otros servicios de mantenimiento, reparacion de maquinaria y equipos no identicados en los conceptos anteriores | J140: 0.00 | K140: 0.00
A141: 2 | B141: 2 | C141: 7 | D141: 3 | F141: Instalaciones temporales | G141: =G142 -> 0.00 | H141: =H142 -> 2,112,380.00 | I141: =I142 -> 0.00 | J141: =J142 -> 2,112,380.00 | K141: 0.26
A142: 2 | B142: 2 | C142: 7 | D142: 3 | E142: `01 | F142: Instalaciones temporales | H142: 2,112,380.00 | J142: 2,112,380.00 | K142: 0.26
A143: 2 | B143: 2 | C143: 8 | F143: Otros Servicios No Incluidos en conceptos anteriores | G143: =+G144+G146+G148+G150+G154+G157+G164+G167 -> 0.00 | H143: =+H144+H146+H148+H150+H154+H157+H164+H167 -> 5,661,992.00 | I143: =+I144+I146+I148+I150+I154+I157+I164+I167 -> 0.00 | J143: =+J144+J146+J148+J150+J154+J157+J164 -> 5,313,242.00 | K143: 0.66
A144: 2 | B144: 2 | C144: 8 | D144: 1 | F144: Gastos y representación judiciales | G144: =G145 -> 0.00 | H144: =H145 -> 0.00 | I144: 0.00 | J144: 0.00 | K144: 0.00
A145: 2 | B145: 2 | C145: 8 | D145: 1 | E145: `01 | F145: Gastos y representación judiciales | J145: =SUBTOTAL(9,G145:I145) -> 0.00 | K145: 0.00
A146: 2 | B146: 2 | C146: 8 | D146: 2 | F146: Comisiones y gastos | G146: =G147 -> 0.00 | H146: =H147 -> 0.00 | I146: 0.00 | J146: 0.00 | K146: 0.00
A147: 2 | B147: 2 | C147: 8 | D147: 2 | E147: `01 | F147: Comisiones y gastos | J147: =SUBTOTAL(9,G147:I147) -> 0.00 | K147: 0.00
A148: 2 | B148: 2 | C148: 8 | D148: 4 | F148: Servicios funerarios y gastos conexos | G148: =G149 -> 0.00 | H148: =H149 -> 0.00 | I148: 0.00 | J148: 0.00 | K148: 0.00
A149: 2 | B149: 2 | C149: 8 | D149: 4 | E149: `01 | F149: Servicios funerarios y gastos conexos | J149: =SUBTOTAL(9,G149:I149) -> 0.00 | K149: 0.00
A150: 2 | B150: 2 | C150: 8 | D150: 5 | F150: Fumigación, lavandería, limpieza e higiene | G150: =SUM(G151:G153) -> 0.00 | H150: =SUM(H151:H153) -> 3,680,000.00 | I150: =SUM(I151:I153) -> 0.00 | J150: 3,680,000.00 | K150: 0.46
A151: 2 | B151: 2 | C151: 8 | D151: 5 | E151: `01 | F151: Fumigación | H151: 2,880,000.00 | J151: =SUBTOTAL(9,G151:I151) -> 2,880,000.00 | K151: 0.36
A152: 2 | B152: 2 | C152: 8 | D152: 5 | E152: `02 | F152: Lavandería | J152: =SUBTOTAL(9,G152:I152) -> 0.00 | K152: 0.00
A153: 2 | B153: 2 | C153: 8 | D153: 5 | E153: `03 | F153: Limpieza e higiene | H153: 800,000.00 | J153: =SUBTOTAL(9,G153:I153) -> 800,000.00 | K153: =IFERROR(J153/$J$18*100,"0.00") -> 0.10
A154: 2 | B154: 2 | C154: 8 | D154: 6 | F154: Servicio de organización de eventos, festividades y actividades de entretenimiento | G154: =SUM(G155:G156) -> 0.00 | H154: =SUM(H155:H156) -> 0.00 | I154: 0.00 | J154: 0.00 | K154: 0.00
A155: 2 | B155: 2 | C155: 8 | D155: 6 | E155: `01 | F155: Eventos generales | J155: 0.00 | K155: 0.00
A156: 2 | B156: 2 | C156: 8 | D156: 6 | E156: `02 | F156: Festividades | J156: 0.00 | K156: 0.00
A157: 2 | B157: 2 | C157: 8 | D157: 7 | F157: Servicios Técnicos y Profesionales | G157: =SUM(G158:G163) -> 0.00 | H157: =SUM(H158:H163) -> 1,633,242.00 | I157: =+I158 -> 0.00 | J157: 1,633,242.00 | K157: 0.20
A158: 2 | B158: 2 | C158: 8 | D158: 7 | E158: `01 | F158: Servicios Técnicos y Profesionales | H158: 240,000.00 | J158: =SUBTOTAL(9,G158:I158) -> 240,000.00 | K158: 0.03
A159: 2 | B159: 2 | C159: 8 | D159: 7 | E159: `02 | F159: Servicios jurídicos | J159: 0.00 | K159: 0.00
A160: 2 | B160: 2 | C160: 8 | D160: 7 | E160: `03 | F160: Servicios de contabilidad y auditoría | J160: 0.00 | K160: 0.00
A161: 2 | B161: 2 | C161: 8 | D161: 7 | E161: `04 | F161: Servicios de capacitación | J161: 0.00 | K161: 0.00
A162: 2 | B162: 2 | C162: 8 | D162: 7 | E162: `05 | F162: Servicios de informática y sistemas computarizados | H162: 517,600.00 | J162: 517,600.00 | K162: 0.06
A163: 2 | B163: 2 | C163: 8 | D163: 7 | E163: `06 | F163: Otros servicios técnicos profesionales | H163: 875,642.00 | J163: 875,642.00 | K163: 0.11
A164: 2 | B164: 2 | C164: 8 | D164: 8 | F164: Impuestos, derechos y tasas | G164: =SUM(G165:G166) -> 0.00 | H164: =SUM(H165:H166) -> 0.00 | I164: 0.00 | J164: 0.00 | K164: 0.00
A165: 2 | B165: 2 | C165: 8 | D165: 8 | E165: `01 | F165: Impuestos | J165: 0.00 | K165: 0.00
A166: 2 | B166: 2 | C166: 8 | D166: 8 | E166: `02 | F166: Derechos | J166: 0.00 | K166: 0.00
A167: 2 | B167: 2 | C167: 9 | D167: 2 | F167: Servicios de alimentación | G167: =+G168+G169 -> 0.00 | H167: =+H168+H169 -> 348,750.00 | I167: =+I168+I169 -> 0.00 | J167: =SUBTOTAL(9,G167:I167) -> 348,750.00 | K167: 348,750.00
A168: 2 | B168: 2 | C168: 9 | D168: 2 | E168: ´01 | F168: Servicios de alimentación | J168: =SUBTOTAL(9,G168:I168) -> 0.00 | K168: 0.00
A169: 2 | B169: 2 | C169: 9 | D169: 2 | E169: `03 | F169: Servicios de catering | H169: 348,750.00 | J169: =SUBTOTAL(9,G169:I169) -> 348,750.00 | K169: 0.04
A170: 2 | B170: 3 | F170: Materiales y Suministros | G170: =+G171+G179+G188+G197+G200+G209+G224+G237 -> 0.00 | H170: =+H171+H179+H188+H197+H200+H209+H224+H237 -> 165,654,647.00 | I170: 0.00 | J170: 165,654,647.00 | K170: 20.67
A171: 2 | B171: 3 | C171: 1 | F171: Alimentos y Productos Agroforestales | G171: =+G172+G174+G177 -> 0.00 | H171: =+H172+H174+H177 -> 26,875,000.00 | I171: 0.00 | J171: 26,875,000.00 | K171: 3.35
A172: 2 | B172: 3 | C172: 1 | D172: 1 | F172: Alimentos y bebidas para personas | G172: =+G173 -> 0.00 | H172: =+H173 -> 26,875,000.00 | I172: 0.00 | J172: 26,875,000.00 | K172: 3.35
A173: 2 | B173: 3 | C173: 1 | D173: 1 | E173: `01 | F173: Alimentos y bebidas para personas | H173: 26,875,000.00 | J173: 26,875,000.00 | K173: 3.35
A174: 2 | B174: 3 | C174: 1 | D174: 3 | F174: Productos agroforestales y pecuarios | G174: =SUM(G175:G176) -> 0.00 | H174: =SUM(H175:H176) -> 0.00 | I174: 0.00 | J174: 0.00 | K174: 0.00
A175: 2 | B175: 3 | C175: 1 | D175: 3 | E175: `02 | F175: Productos agrícolas | J175: =SUBTOTAL(9,G175:I175) -> 0.00 | K175: 0.00
A176: 2 | B176: 3 | C176: 1 | D176: 3 | E176: `03 | F176: Productos forestales | J176: 0.00 | K176: 0.00
A177: 2 | B177: 3 | C177: 1 | D177: 4 | F177: Madera, corcho y sus manufacturas | G177: =+G178 -> 0.00 | H177: =+H178 -> 0.00 | I177: 0.00 | J177: 0.00 | K177: 0.00
A178: 2 | B178: 3 | C178: 1 | D178: 4 | E178: `01 | F178: Madera, corcho y sus manufacturas | J178: 0.00 | K178: 0.00
A179: 2 | B179: 3 | C179: 2 | F179: Textiles y Vestuarios | G179: =+G180+G182+G184+G186 -> 0.00 | H179: =+H180+H182+H184+H186 -> 600,000.00 | I179: 0.00 | J179: 600,000.00 | K179: 0.07
A180: 2 | B180: 3 | C180: 2 | D180: 1 | F180: Hilados, fibras y telas | G180: =+G181 -> 0.00 | H180: =+H181 -> 0.00 | I180: 0.00 | J180: 0.00 | K180: 0.00
A181: 2 | B181: 3 | C181: 2 | D181: 1 | E181: `01 | F181: Hilados, fibras y telas | J181: 0.00 | K181: 0.00
A182: 2 | B182: 3 | C182: 2 | D182: 2 | F182: Acabados textiles | G182: =+G183 -> 0.00 | H182: =+H183 -> 600,000.00 | I182: 0.00 | J182: 600,000.00 | K182: 0.07
A183: 2 | B183: 3 | C183: 2 | D183: 2 | E183: `01 | F183: Acabados textiles | H183: 600,000.00 | J183: =SUBTOTAL(9,G183:I183) -> 600,000.00 | K183: 0.07
A184: 2 | B184: 3 | C184: 2 | D184: 3 | F184: Prendas de vestir | G184: =+G185 -> 0.00 | H184: =+H185 -> 0.00 | I184: 0.00 | J184: 0.00 | K184: 0.00
A185: 2 | B185: 3 | C185: 2 | D185: 3 | E185: `01 | F185: Prendas de vestir | J185: =SUBTOTAL(9,G185:I185) -> 0.00 | K185: 0.00
A186: 2 | B186: 3 | C186: 2 | D186: 4 | F186: Calzados | G186: =+G187 -> 0.00 | H186: =+H187 -> 0.00 | I186: 0.00 | J186: 0.00 | K186: 0.00
A187: 2 | B187: 3 | C187: 2 | D187: 4 | E187: `01 | F187: Calzados | J187: =SUBTOTAL(9,G187:I187) -> 0.00 | K187: 0.00
A188: 2 | B188: 3 | C188: 3 | F188: Productos de Papel, Cartón e Impresos | G188: =+G189+G191+G193+G195 -> 0.00 | H188: =+H189+H191+H193+H195 -> 4,783,028.00 | I188: 0.00 | J188: 4,783,028.00 | K188: 0.60
A189: 2 | B189: 3 | C189: 3 | D189: 1 | F189: Papel de escritorio | G189: =G190 -> 0.00 | H189: =H190 -> 2,203,028.00 | I189: 0.00 | J189: 2,203,028.00 | K189: 0.27
A190: 2 | B190: 3 | C190: 3 | D190: 1 | E190: `01 | F190: Papel de escritorio | H190: 2,203,028.00 | J190: =SUBTOTAL(9,G190:I190) -> 2,203,028.00 | K190: 0.27
A191: 2 | B191: 3 | C191: 3 | D191: 2 | F191: Productos de papel y cartón | G191: =+G192 -> 0.00 | H191: =+H192 -> 2,580,000.00 | I191: 0.00 | J191: 2,580,000.00 | K191: 0.32
A192: 2 | B192: 3 | C192: 3 | D192: 2 | E192: `01 | F192: Productos de papel y cartón | H192: 2,580,000.00 | J192: =SUBTOTAL(9,G192:I192) -> 2,580,000.00 | K192: 0.32
A193: 2 | B193: 3 | C193: 3 | D193: 3 | F193: Productos de artes gráficas | G193: =+G194 -> 0.00 | H193: =+H194 -> 0.00 | I193: 0.00 | J193: 0.00 | K193: =IFERROR(J193/$J$18*100,"0.00") -> 0.00
A194: 2 | B194: 3 | C194: 3 | D194: 3 | E194: `01 | F194: Productos de artes gráficas | J194: 0.00 | K194: 0.00
A195: 2 | B195: 3 | C195: 3 | D195: 4 | F195: Libros, revistas y periódicos | G195: =+G196 -> 0.00 | H195: =+H196 -> 0.00 | I195: 0.00 | J195: 0.00 | K195: 0.00
A196: 2 | B196: 3 | C196: 3 | D196: 4 | E196: `01 | F196: Libros, revistas y periódicos | J196: 0.00 | K196: 0.00
A197: 2 | B197: 3 | C197: 4 | F197: Productos Farmacéuticos | G197: =+G198 -> 0.00 | H197: 48,798,950.00 | I197: 0.00 | J197: 48,798,950.00 | K197: 6.09
A198: 2 | B198: 3 | C198: 4 | D198: 1 | F198: Productos medicinales para uso humano | G198: 0.00 | H198: 48,798,950.00 | I198: 0.00 | J198: 48,798,950.00 | K198: 6.09
A199: 2 | B199: 3 | C199: 4 | D199: 1 | E199: `01 | F199: Productos medicinales para uso humano | H199: 48,798,950.00 | J199: 48,798,950.00 | K199: 6.09
A200: 2 | B200: 3 | C200: 5 | F200: Productos de Cuero, Caucho y Plasticos | G200: =+G201+G203+G205+G207 -> 0.00 | H200: =+H201+H203+H205+H207 -> 1,459,010.00 | I200: 0.00 | J200: 1,459,010.00 | K200: 0.18
A201: 2 | B201: 3 | C201: 5 | D201: 2 | F201: Producto de cuero | G201: =+G202 -> 0.00 | H201: =+H202 -> 0.00 | I201: 0.00 | J201: 0.00 | K201: 0.00
... 125 more rows
